Departmental Family,Entity,Date,Expense Type,Expenditure Area,Supplier,Transaction Number,Amount
Department for Work and Pensions,Jobcentre Plus,28/04/2011,ACCOMMODATION,Jobcentre Plus,TELEREAL TRILLIUM,2020687068,"29,512,539.75"
Department for Work and Pensions,Employment Programmes,04/04/2011,Grant in Aid,WWEG EMPLOYMENT PROGRAMMES,REMPLOY,1004742,"21,500,000.00"
Department for Work and Pensions,Corporate,19/04/2011,HOSTING,Corporate IT ,HP ENTERPRISE SERVICES UK LTD,2020483520,"14,432,376.74"
Department for Work and Pensions,European Social Fund,19/04/2011,ESF NON-PREFUNDED EXPENDITURE,WWEG EUROPEAN SOCIAL FUND,NORTH WEST SKILLS FUNDING AGENCY,5000000545,"13,795,819.00"
Department for Work and Pensions,Corporate,11/04/2011,Grant in Aid,Corporate and Support Services,PENSION PROTECTION FUND,1004754,"13,701,000.00"
Department for Work and Pensions,Corporate,01/04/2011,NETWORK,Corporate IT ,BT GLOBAL SERVICES,2020243084,"13,199,655.60"
Department for Work and Pensions,Employment Programmes,12/04/2011,Grant in Aid,WWEG EMPLOYMENT PROGRAMMES,REMPLOY,1004758,"10,000,000.00"
Department for Work and Pensions,Employment Programmes,27/04/2011,Grant in Aid,WWEG EMPLOYMENT PROGRAMMES,REMPLOY,1004779,"10,000,000.00"
Department for Work and Pensions,European Social Fund,19/04/2011,ESF NON-PREFUNDED EXPENDITURE,WWEG EUROPEAN SOCIAL FUND,SOUTH WEST SKILLS FUNDING AGENCY,5000000546,"8,834,803.00"
Department for Work and Pensions,Corporate,06/04/2011,Pensions Programme Costs,Corporate and Support Services,THE PENSIONS REGULATOR,1004745,"8,730,000.00"
Department for Work and Pensions,Corporate,19/04/2011,COMPUTER SERVICES,Corporate IT ,HP ENTERPRISE SERVICES UK LTD,2020483520,"8,666,199.15"
Department for Work and Pensions,Corporate,28/04/2011,BANKING AND ENCASHMENT COSTS,Group Finance,POST OFFICE LTD,1004782,"5,559,774.52"
Department for Work and Pensions,Corporate,19/04/2011,IT EQUIPMENT CAPITAL,Corporate and Support Services,HP ENTERPRISE SERVICES UK LTD,2020483520,"5,460,000.00"
Department for Work and Pensions,Jobcentre Plus,28/04/2011,ACCOMMODATION,Jobcentre Plus,TELEREAL TRILLIUM,2020687069,"4,679,793.48"
Department for Work and Pensions,Corporate,28/04/2011,TRADE DEBTORS,Balance Sheet Payments,TELEREAL TRILLIUM,2020687068,"4,589,375.14"
Department for Work and Pensions,Corporate,19/04/2011,NETWORK,Corporate IT ,BT GLOBAL SERVICES,2020478891,"4,271,761.87"
Department for Work and Pensions,European Social Fund,19/04/2011,ESF NON-PREFUNDED EXPENDITURE,WWEG EUROPEAN SOCIAL FUND,EAST MIDLANDS SKILLS FUNDING AGENCY,5000000539,"4,104,660.00"
Department for Work and Pensions,Jobcentre Plus,20/04/2011,COMPUTER SERVICES,Jobcentre Plus,HP ENTERPRISE SERVICES UK LTD,2020520600,"3,822,224.25"
Department for Work and Pensions,Corporate,19/04/2011,COMPUTER SERVICES,Corporate IT ,HP ENTERPRISE SERVICES UK LTD,2020483520,"3,724,133.87"
Department for Work and Pensions,Corporate,15/04/2011,IS/IT,Corporate IT ,SPECIALIST COMPUTER CENTRES PLC,2020469607,"3,538,072.80"
Department for Work and Pensions,Corporate,19/04/2011,IS/IT,Corporate IT ,HP ENTERPRISE SERVICES UK LTD,2020483520,"3,147,517.85"
Department for Work and Pensions,Jobcentre Plus,11/04/2011,IS/IT,Jobcentre Plus,SPECIALIST COMPUTER CENTRES PLC,2020364588,"2,956,420.77"
Department for Work and Pensions,Jobcentre Plus,04/04/2011,MEDICAL SERVICES,Jobcentre Plus,ATOS ORIGIN MEDICAL SERVICES,2020247326,"2,547,422.26"
Department for Work and Pensions,"Pension, Disability Carers Services",28/04/2011,ACCOMMODATION,Pensions & Disability Carers Service ,TELEREAL TRILLIUM,2020687068,"2,438,999.33"
Department for Work and Pensions,Jobcentre Plus,06/04/2011,AOS CONTRACTED OUT SERVICES,Jobcentre Plus,BALFOUR BEATTY WORKPLACE LTD,2020277476,"2,417,219.57"
Department for Work and Pensions,Jobcentre Plus,28/04/2011,ACCOMMODATION,Jobcentre Plus,TELEREAL TRILLIUM,2020687068,"2,124,906.39"
Department for Work and Pensions,Corporate,11/04/2011,IS/IT,Corporate IT ,SPECIALIST COMPUTER CENTRES PLC,2020364588,"2,110,805.18"
Department for Work and Pensions,Corporate,21/04/2011,TELEPHONE AND POSTAGE,Group Finance,UK MAIL,2020589128,"2,063,019.70"
Department for Work and Pensions,Employment Programmes,19/04/2011,YOUNG PERSON'S GUARANTEE,WWEG EMPLOYMENT PROGRAMMES,SALFORD CITY COUNCIL,2020489406,"2,056,950.00"
Department for Work and Pensions,European Social Fund,15/04/2011,ESF NON-PREFUNDED EXPENDITURE,WWEG EUROPEAN SOCIAL FUND,EAST MIDLANDS SKILLS FUNDING AGENCY,5000000533,"1,997,853.00"
Department for Work and Pensions,Employment Programmes,04/04/2011,FND,WWEG EMPLOYMENT PROGRAMMES,REMPLOY LTD,2020253677,"1,967,008.96"
Department for Work and Pensions,Employment Programmes,01/04/2011,YOUNG PERSON'S GUARANTEE,WWEG EMPLOYMENT PROGRAMMES,SALFORD CITY COUNCIL,2020244901,"1,956,000.00"
Department for Work and Pensions,Corporate,19/04/2011,COMPUTER SERVICES,Corporate IT ,BT GLOBAL SERVICES,2020478891,"1,955,152.91"
Department for Work and Pensions,Corporate,20/04/2011,SIAM,Corporate IT ,HP ENTERPRISE SERVICES UK LTD,2020520600,"1,813,926.70"
Department for Work and Pensions,Jobcentre Plus,28/04/2011,ACCOMMODATION,Jobcentre Plus,TELEREAL TRILLIUM,2020687070,"1,765,374.72"
Department for Work and Pensions,Employment Programmes,28/04/2011,YOUNG PERSON'S GUARANTEE,WWEG EMPLOYMENT PROGRAMMES,NATIONAL SKILLS ACADEMY FOR SPORT & ACTIVE LEISURE,2020683427,"1,729,350.00"
Department for Work and Pensions,Corporate,11/04/2011,IS/IT,Corporate IT ,SPECIALIST COMPUTER CENTRES PLC,2020364588,"1,610,483.76"
Department for Work and Pensions,Corporate,05/04/2011,COMPUTER SERVICES,Corporate IT ,XEROX UK LTD 3W,2020267908,"1,455,752.05"
Department for Work and Pensions,Corporate,13/04/2011,CONTRACTED OUT SERVICES,Group Finance,XEROX UK LTD 3W,2020452322,"1,391,054.00"
Department for Work and Pensions,Employment Programmes,14/04/2011,HELP FOR UNEMPLOYED PEOPLE OTHER,WWEG EMPLOYMENT PROGRAMMES,GLASGOW CITY STRATEGY,2020458503,"1,349,160.00"
Department for Work and Pensions,Corporate,07/04/2011,OTHER GOODS AND SERVICES,WWG SUMMARY,VALUATION OFFICE AGENCY,2002561,"1,300,832.58"
Department for Work and Pensions,Jobcentre Plus,19/04/2011,MEDICAL SERVICES,Jobcentre Plus,ATOS ORIGIN MEDICAL SERVICES,2020478602,"1,299,045.63"
Department for Work and Pensions,Jobcentre Plus,08/04/2011,APPS DEV,Jobcentre Plus,ACCENTURE,2020352589,"1,209,291.00"
Department for Work and Pensions,Corporate,18/04/2011,OTHER MAJOR CONTRACTS,Group Finance,SANTANDER,1004767,"1,191,476.00"
Department for Work and Pensions,Corporate,28/04/2011,ACCOMMODATION,Group Finance,TELEREAL TRILLIUM,2020687068,"1,181,466.63"
Department for Work and Pensions,Employment Programmes,07/04/2011,YOUNG PERSON'S GUARANTEE,WWEG EMPLOYMENT PROGRAMMES,KNOWSLEY METROPOLITAN BOROUGH COUNCIL,2020348887,"1,155,715.92"
Department for Work and Pensions,Jobcentre Plus,26/04/2011,MEDICAL SERVICES,Jobcentre Plus,ATOS HEALTHCARE,2020597442,"1,152,962.20"
Department for Work and Pensions,Jobcentre Plus,11/04/2011,MEDICAL SERVICES,Jobcentre Plus,ATOS ORIGIN MEDICAL SERVICES,2020359727,"1,113,441.71"
Department for Work and Pensions,Employment Programmes,12/04/2011,YOUNG PERSON'S GUARANTEE,WWEG EMPLOYMENT PROGRAMMES,GROUNDWORK UK,2020370901,"1,089,000.00"
Department for Work and Pensions,Employment Programmes,18/04/2011,EP GENERIC PROVIDER PAYMENTS,WWEG EMPLOYMENT PROGRAMMES,A4E LTD,2020471626,"1,077,915.67"
Department for Work and Pensions,Jobcentre Plus,05/04/2011,POSTAGE,Jobcentre Plus,TNT UK LTD,2020267636,"1,255,488.00"
Department for Work and Pensions,Corporate,19/04/2011,COMPUTER SERVICES,Corporate IT ,BT GLOBAL SERVICES,2020478891,"1,067,177.98"
Department for Work and Pensions,Employment Programmes,28/04/2011,YOUNG PERSON'S GUARANTEE,WWEG EMPLOYMENT PROGRAMMES,KNOWSLEY METROPOLITAN BOROUGH COUNCIL,2020680822,"1,053,375.20"
Department for Work and Pensions,Jobcentre Plus,15/04/2011,ACCOMMODATION,Jobcentre Plus,TELEREAL TRILLIUM,2020469787,"1,049,230.05"
Department for Work and Pensions,Corporate,21/04/2011,PROFESSIONAL FEES,LSPG,FIELD FISHER WATERHOUSE LLP,2020581045,"1,047,376.50"
Department for Work and Pensions,Housing Benefits,14/04/2011,Housing Benefit Admin,WWG Housing Benefit,BIRMINGHAM CITY COUNCIL,2020463868,"1,032,452.00"
Department for Work and Pensions,Employment Programmes,18/04/2011,EP GENERIC PROVIDER PAYMENTS,WWEG EMPLOYMENT PROGRAMMES,SERCO LTD,2020476240,"1,013,347.50"
Department for Work and Pensions,Jobcentre Plus,21/04/2011,EMPLOYMENT PROGRAMMES,Balance Sheet Payments,WORKING LINKS,2020589440,"985,876.68"
Department for Work and Pensions,Corporate,28/04/2011,TRADE DEBTORS,Balance Sheet Payments,TELEREAL TRILLIUM,2020687069,"982,475.90"
Department for Work and Pensions,Employment Programmes,18/04/2011,EP GENERIC PROVIDER PAYMENTS,WWEG EMPLOYMENT PROGRAMMES,CALDER UK LTD,2020472050,"969,432.10"
Department for Work and Pensions,Employment Programmes,12/04/2011,EP GENERIC PROVIDER PAYMENTS,WWEG EMPLOYMENT PROGRAMMES,A4E LTD,2020367092,"962,271.85"
Department for Work and Pensions,Corporate,19/04/2011,COMPUTER SERVICES,Corporate IT ,HP ENTERPRISE SERVICES UK LTD,2020483520,"933,380.22"
Department for Work and Pensions,Corporate,28/04/2011,COMPUTER SERVICES,Corporate IT ,ACCENTURE UK LTD,2020673304,"924,868.86"
Department for Work and Pensions,Corporate,05/04/2011,COMPUTER SERVICES,Group Finance,HP ENTERPRISE SERVICES UK LTD,2020261368,"905,013.00"
Department for Work and Pensions,Jobcentre Plus,18/04/2011,APPS DEV,Jobcentre Plus,ACCENTURE,2020471634,"880,372.45"
Department for Work and Pensions,Corporate,04/04/2011,TELEPHONE AND POSTAGE,Group Finance,ROYAL MAIL GROUP PLC,2020253702,"837,471.20"
Department for Work and Pensions,Corporate,08/04/2011,EU PROGRAMMES,WWG SUMMARY,DFE RM SHARED SERVICES,2002563,"819,230.25"
Department for Work and Pensions,Employment Programmes,08/04/2011,YOUNG PERSON'S GUARANTEE,WWEG EMPLOYMENT PROGRAMMES,3SC,2020352218,"813,000.00"
Department for Work and Pensions,European Social Fund,04/04/2011,ESF NON-PREFUNDED EXPENDITURE,WWEG EUROPEAN SOCIAL FUND,SKILLS FUNDING AGENCY,5000000525,"793,812.00"
Department for Work and Pensions,Housing Benefits,14/04/2011,Housing Benefit Admin,WWG Housing Benefit,CITY OF GLASGOW,2020463917,"789,476.00"
Department for Work and Pensions,Employment Programmes,18/04/2011,EP GENERIC PROVIDER PAYMENTS,WWEG EMPLOYMENT PROGRAMMES,WORKING LINKS,2020476559,"781,586.95"
Department for Work and Pensions,Employment Programmes,18/04/2011,EP GENERIC PROVIDER PAYMENTS,WWEG EMPLOYMENT PROGRAMMES,A4E LTD,2020471626,"768,953.67"
Department for Work and Pensions,Employment Programmes,18/04/2011,EP GENERIC PROVIDER PAYMENTS,WWEG EMPLOYMENT PROGRAMMES,DUDLEY MBC FUTURE SKILLS,2020473499,"746,607.67"
Department for Work and Pensions,Corporate,20/04/2011,COMPUTER SERVICES,Group Finance,HP ENTERPRISE SERVICES UK LTD,2020520600,"738,251.00"
Department for Work and Pensions,Employment Programmes,05/04/2011,YOUNG PERSON'S GUARANTEE,WWEG EMPLOYMENT PROGRAMMES,NORTH TYNESIDE COUNCIL,2020264995,"733,350.00"
Department for Work and Pensions,Employment Programmes,18/04/2011,EP GENERIC PROVIDER PAYMENTS,WWEG EMPLOYMENT PROGRAMMES,A4E LTD,2020471626,"732,710.83"
Department for Work and Pensions,Employment Programmes,06/04/2011,HELP FOR UNEMPLOYED PEOPLE OTHER,WWEG EMPLOYMENT PROGRAMMES,SWANSEA BAY PARTNERSHIP,2020338554,"702,728.50"
Department for Work and Pensions,Employment Programmes,18/04/2011,EP GENERIC PROVIDER PAYMENTS,WWEG EMPLOYMENT PROGRAMMES,WORKING LINKS,2020476559,"697,742.26"
Department for Work and Pensions,Corporate,04/04/2011,APPS DEV,CHANGE MANAGEMENT DIRECTORATE,HP ENTERPRISE SERVICES UK LTD,2020251016,"692,152.90"
Department for Work and Pensions,European Social Fund,28/04/2011,ESF NON-PREFUNDED EXPENDITURE,WWEG EUROPEAN SOCIAL FUND,SKILLS FUNDING AGENCY,5000000557,"690,188.00"
Department for Work and Pensions,"Pension, Disability Carers Services",06/04/2011,AOS CONTRACTED OUT SERVICES,Pensions & Disability Carers Service ,BALFOUR BEATTY WORKPLACE LTD,2020277476,"690,067.97"
Department for Work and Pensions,Corporate,28/04/2011,ACCOMMODATION,Group Finance,TELEREAL TRILLIUM,2020687068,"684,685.89"
Department for Work and Pensions,Employment Programmes,18/04/2011,EP GENERIC PROVIDER PAYMENTS,WWEG EMPLOYMENT PROGRAMMES,WORKING LINKS,2020476559,"679,445.53"
Department for Work and Pensions,Employment Programmes,18/04/2011,YOUNG PERSON'S GUARANTEE,WWEG EMPLOYMENT PROGRAMMES,WALES COUNCIL FOR VOLUNTARY ACTION,2020476541,"678,450.00"
Department for Work and Pensions,Employment Programmes,04/04/2011,NDDP,WWEG EMPLOYMENT PROGRAMMES,SHAW TRUST LTD,2020254245,"671,528.74"
Department for Work and Pensions,Jobcentre Plus,08/04/2011,IS/IT,Jobcentre Plus,SPECIALIST COMPUTER CENTRES PLC,2020357701,"648,456.43"
Department for Work and Pensions,Employment Programmes,18/04/2011,EP GENERIC PROVIDER PAYMENTS,WWEG EMPLOYMENT PROGRAMMES,A4E LTD,2020471626,"638,575.83"
Department for Work and Pensions,Housing Benefits,14/04/2011,Housing Benefit Admin,WWG Housing Benefit,LIVERPOOL CITY COUNCIL,2020464018,"625,683.00"
Department for Work and Pensions,Employment Programmes,18/04/2011,EP GENERIC PROVIDER PAYMENTS,WWEG EMPLOYMENT PROGRAMMES,A4E LTD,2020471626,"614,416.17"
Department for Work and Pensions,Corporate,07/04/2011,COMPUTER SERVICES,CHANGE MANAGEMENT DIRECTORATE,ACCENTURE,2020347183,"610,580.33"
Department for Work and Pensions,Employment Programmes,28/04/2011,OTHER PROGRAMME COSTS,WWEG EMPLOYMENT PROGRAMMES,SKILLS FUNDING AGENCY,1004783,"607,807.85"
Department for Work and Pensions,"Pension, Disability Carers Services",26/04/2011,Accomodation Costs,Pensions & Disability Carers Service ,NORTH TYNESIDE COUNCIL,2020643630,"602,164.98"
Department for Work and Pensions,Employment Programmes,18/04/2011,EP GENERIC PROVIDER PAYMENTS,WWEG EMPLOYMENT PROGRAMMES,SEETEC BUSINESS TECHNOLOGY CENTRE LTD,2020476235,"598,372.85"
Department for Work and Pensions,Employment Programmes,12/04/2011,YOUNG PERSON'S GUARANTEE,WWEG EMPLOYMENT PROGRAMMES,NORTH TYNESIDE COUNCIL,2020375354,"595,950.00"
Department for Work and Pensions,Employment Programmes,18/04/2011,EP GENERIC PROVIDER PAYMENTS,WWEG EMPLOYMENT PROGRAMMES,INGEUS UK LTD,2020473977,"587,831.55"
Department for Work and Pensions,Corporate,11/04/2011,COMPUTER SERVICES,SHARED SERVICES,FUJITSU SERVICES,2020362089,"586,967.00"
Department for Work and Pensions,Employment Programmes,18/04/2011,EP GENERIC PROVIDER PAYMENTS,WWEG EMPLOYMENT PROGRAMMES,SKILLS TRAINING UK LIMITED,2020476257,"581,835.75"
Department for Work and Pensions,Housing Benefits,14/04/2011,Housing Benefit Admin,WWG Housing Benefit,LEEDS CITY COUNCIL,2020464013,"559,512.00"
Department for Work and Pensions,Jobcentre Plus,21/04/2011,EMPLOYMENT PROGRAMMES,Balance Sheet Payments,SHAW TRUST LTD,2020588552,"552,976.11"
Department for Work and Pensions,Corporate,20/04/2011,COMPUTER SERVICES,Corporate IT ,HP ENTERPRISE SERVICES UK LTD,2020520600,"542,601.06"
Department for Work and Pensions,Corporate,14/04/2011,IS/IT,EG SUMMARY,SPECIALIST COMPUTER CENTRES PLC,2020461382,"534,260.58"
Department for Work and Pensions,Housing Benefits,04/04/2011,PROFESSIONAL FEES,WWG Housing Benefit,EXPERIAN LTD,2020250572,"534,000.00"
Department for Work and Pensions,Corporate,14/04/2011,COMPUTER SERVICES,CHANGE MANAGEMENT DIRECTORATE,ACCENTURE,2020455614,"532,856.73"
Department for Work and Pensions,Corporate,28/04/2011,ACCOMMODATION,Group Finance,TELEREAL TRILLIUM,2020687068,"526,732.30"
Department for Work and Pensions,Corporate,14/04/2011,IS/IT,CHANGE MANAGEMENT DIRECTORATE,SPECIALIST COMPUTER CENTRES PLC,2020461382,"526,460.92"
Department for Work and Pensions,Employment Programmes,18/04/2011,EP GENERIC PROVIDER PAYMENTS,WWEG EMPLOYMENT PROGRAMMES,INGEUS UK LTD,2020473977,"525,899.09"
Department for Work and Pensions,Corporate,28/04/2011,ACCOMMODATION,Group Finance,TELEREAL TRILLIUM,2020687068,"524,741.80"
Department for Work and Pensions,Employment Programmes,04/04/2011,YOUNG PERSON'S GUARANTEE,WWEG EMPLOYMENT PROGRAMMES,BIRMINGHAM CITY COUNCIL,2020247472,"522,450.00"
Department for Work and Pensions,Corporate,19/04/2011,COMPUTER SERVICES,Corporate IT ,HP ENTERPRISE SERVICES UK LTD,2020483520,"521,870.64"
Department for Work and Pensions,Housing Benefits,14/04/2011,Housing Benefit Admin,WWG Housing Benefit,MANCHESTER CITY COUNCIL,2020464051,"521,148.00"
Department for Work and Pensions,Corporate,20/04/2011,COMPUTER SERVICES,Corporate IT ,HP ENTERPRISE SERVICES UK LTD,2020520600,"519,957.23"
Department for Work and Pensions,Corporate,13/04/2011,COMPUTER SERVICES,CHANGE MANAGEMENT DIRECTORATE,ACCENTURE UK LTD,2020385718,"507,840.26"
Department for Work and Pensions,Corporate,28/04/2011,ACCOMMODATION,SHARED SERVICES,TELEREAL TRILLIUM,2020687068,"504,013.85"
Department for Work and Pensions,Corporate,07/04/2011,BANKING AND ENCASHMENT COSTS,Group Finance,VOCALINK,2020350355,"500,000.00"
Department for Work and Pensions,Employment Programmes,07/04/2011,YOUNG PERSON'S GUARANTEE,WWEG EMPLOYMENT PROGRAMMES,HULL CITY COUNCIL,2020348359,"498,600.00"
Department for Work and Pensions,Jobcentre Plus,04/04/2011,MEDICAL SERVICES,Jobcentre Plus,ATOS ORIGIN MEDICAL SERVICES,2020247327,"498,094.00"
Department for Work and Pensions,"Pension, Disability Carers Services",15/04/2011,MEDICAL SERVICES,Pensions & Disability Carers Service ,ATOS ORIGIN IT SERVICES UK LTD,2020464714,"490,703.16"
Department for Work and Pensions,European Social Fund,26/04/2011,MA ESF(D) LA NON-PREFUNDED EXPENDITURE,WWEG EUROPEAN SOCIAL FUND,LOCAL AUTHORITIES IN THE EAST MIDLANDS,5000000553,"489,858.00"
Department for Work and Pensions,Employment Programmes,11/04/2011,YOUNG PERSON'S GUARANTEE,WWEG EMPLOYMENT PROGRAMMES,BRADFORD METROPOLITAN DISTRICT COUNCIL,2020359826,"488,250.00"
Department for Work and Pensions,Corporate,08/04/2011,IS/IT,Corporate IT ,COMPUTACENTER UK LTD,2020353050,"481,526.52"
Department for Work and Pensions,Employment Programmes,18/04/2011,EP GENERIC PROVIDER PAYMENTS,WWEG EMPLOYMENT PROGRAMMES,THE WISE GROUP,2020476423,"478,842.33"
Department for Work and Pensions,Corporate,19/04/2011,AMS,Corporate IT ,HP ENTERPRISE SERVICES UK LTD,2020483520,"476,685.10"
Department for Work and Pensions,Employment Programmes,18/04/2011,EP GENERIC PROVIDER PAYMENTS,WWEG EMPLOYMENT PROGRAMMES,SERCO LTD,2020476240,"472,365.17"
Department for Work and Pensions,Employment Programmes,18/04/2011,EP GENERIC PROVIDER PAYMENTS,WWEG EMPLOYMENT PROGRAMMES,SERCO LTD,2020476240,"470,488.83"
Department for Work and Pensions,Corporate,27/04/2011,COMPUTER SERVICES,Corporate IT ,ACCENTURE UK LTD,2020665758,"464,915.95"
Department for Work and Pensions,Employment Programmes,21/04/2011,YOUNG PERSON'S GUARANTEE,WWEG EMPLOYMENT PROGRAMMES,MERTHYR TYDFIL COUNTY BOROUGH COUNCIL,2020589725,"458,700.00"
Department for Work and Pensions,Housing Benefits,14/04/2011,Housing Benefit Admin,WWG Housing Benefit,DURHAM COUNCIL,2020463946,"446,708.00"
Department for Work and Pensions,Housing Benefits,14/04/2011,Housing Benefit Admin,WWG Housing Benefit,BRADFORD METROPOLITAN BOROUGH COUNCIL,2020463881,"443,966.00"
Department for Work and Pensions,Employment Programmes,18/04/2011,EP GENERIC PROVIDER PAYMENTS,WWEG EMPLOYMENT PROGRAMMES,WORKING LINKS,2020476559,"443,844.23"
Department for Work and Pensions,Corporate,27/04/2011,COMPUTER SERVICES,SHARED SERVICES,ATOS ORIGIN IT SERVICES UK LTD,2020665790,"442,079.22"
Department for Work and Pensions,Corporate,19/04/2011,COMPUTER SERVICES,Universal Credit,HP ENTERPRISE SERVICES UK LTD,2020483520,"441,180.00"
Department for Work and Pensions,Employment Programmes,07/04/2011,NDDP,WWEG EMPLOYMENT PROGRAMMES,SHAW TRUST LTD,2020350123,"435,962.02"
Department for Work and Pensions,Employment Programmes,15/04/2011,EMPLOYMENT INITIATIVES,WWEG EMPLOYMENT PROGRAMMES,REED IN PARTNERSHIP HACKNEY LTD,2020469061,"429,541.00"
Department for Work and Pensions,"Pension, Disability Carers Services",28/04/2011,ACCOMMODATION,Pensions & Disability Carers Service ,TELEREAL TRILLIUM,2020687069,"420,561.02"
Department for Work and Pensions,Employment Programmes,19/04/2011,JSP ESF DEL P COSTS,WWEG EMPLOYMENT PROGRAMMES,INGEUS UK LTD,2020483659,"413,710.19"
Department for Work and Pensions,Corporate,05/04/2011,AOS CONTRACTED OUT SERVICES,SHARED SERVICES,CAPITA BUSINESS SERVICES LTD,2020258440,"395,103.27"
Department for Work and Pensions,Jobcentre Plus,14/04/2011,EMPLOYMENT PROGRAMMES,Balance Sheet Payments,WORKING LINKS EMPLOYMENT LTD,2020461753,"388,840.76"
Department for Work and Pensions,Housing Benefits,14/04/2011,Housing Benefit Admin,WWG Housing Benefit,LONDON BOROUGH OF TOWER HAMLETS,2020464044,"388,535.00"
Department for Work and Pensions,Employment Programmes,15/04/2011,EMPLOYMENT INITIATIVES,WWEG EMPLOYMENT PROGRAMMES,REED IN PARTNERSHIP HACKNEY LTD,2020469061,"386,846.00"
Department for Work and Pensions,Corporate,28/04/2011,TRADE DEBTORS,Balance Sheet Payments,TELEREAL TRILLIUM,2020687070,"383,842.38"
Department for Work and Pensions,Housing Benefits,14/04/2011,Housing Benefit Admin,WWG Housing Benefit,SHEFFIELD CITY COUNCIL,2020464131,"382,037.00"
Department for Work and Pensions,Employment Programmes,21/04/2011,YOUNG PERSON'S GUARANTEE,WWEG EMPLOYMENT PROGRAMMES,GROUNDWORK WEST MIDLANDS,2020581467,"373,350.00"
Department for Work and Pensions,Housing Benefits,14/04/2011,Housing Benefit Admin,WWG Housing Benefit,LONDON BOROUGH OF LAMBETH,2020464036,"370,235.00"
Department for Work and Pensions,Housing Benefits,14/04/2011,Housing Benefit Admin,WWG Housing Benefit,CORNWALL COUNCIL,2020463926,"368,509.00"
Department for Work and Pensions,Corporate,11/04/2011,COMPUTER SERVICES,Corporate IT ,VODAFONE LTD,2020364786,"367,774.73"
Department for Work and Pensions,European Social Fund,19/04/2011,MA ESF(D) LA NON-PREFUNDED EXPENDITURE,WWEG EUROPEAN SOCIAL FUND,ST HELENS COUNCIL,5000000547,"366,892.00"
Department for Work and Pensions,Housing Benefits,14/04/2011,Housing Benefit Admin,WWG Housing Benefit,LONDON BOROUGH OF LEWISHAM,2020464037,"365,854.00"
Department for Work and Pensions,Housing Benefits,14/04/2011,Housing Benefit Admin,WWG Housing Benefit,HACKNEY LBC,2020463985,"364,812.00"
Department for Work and Pensions,Housing Benefits,14/04/2011,Housing Benefit Admin,WWG Housing Benefit,BRISTOL CITY COUNCIL,2020463887,"363,124.00"
Department for Work and Pensions,Corporate,07/04/2011,IS/IT,Corporate IT ,SPECIALIST COMPUTER CENTRES PLC,2020350151,"357,835.69"
Department for Work and Pensions,Housing Benefits,14/04/2011,Housing Benefit Admin,WWG Housing Benefit,LONDON BOROUGH OF SOUTHWARK,2020464042,"353,365.00"
Department for Work and Pensions,Employment Programmes,15/04/2011,EMPLOYMENT INITIATIVES,WWEG EMPLOYMENT PROGRAMMES,REED IN PARTNERSHIP HACKNEY LTD,2020469061,"352,938.00"
Department for Work and Pensions,European Social Fund,19/04/2011,ESF NON-PREFUNDED EXPENDITURE,WWEG EUROPEAN SOCIAL FUND,NATIONAL OFFENDER MANAGEMENT SERVICES,5000000544,"351,932.00"
Department for Work and Pensions,Employment Programmes,12/04/2011,EP GENERIC PROVIDER PAYMENTS,WWEG EMPLOYMENT PROGRAMMES,STANDGUIDE LTD,2020378045,"351,068.75"
Department for Work and Pensions,Jobcentre Plus,26/04/2011,JOBCENTRE PLUS PATHWAYS TO WORK,Jobcentre Plus,NHS WEST ESSEX,2020643586,"351,027.00"
Department for Work and Pensions,Corporate,14/04/2011,COMPUTER SERVICES,CHANGE MANAGEMENT DIRECTORATE,ACCENTURE UK LTD,2020455616,"349,496.80"
Department for Work and Pensions,Corporate,15/04/2011,COMPUTER SERVICES,Corporate IT ,HMRC,2020466595,"346,791.76"
Department for Work and Pensions,Employment Programmes,18/04/2011,EMPLOYMENT INITIATIVES,WWEG EMPLOYMENT PROGRAMMES,WORKING LINKS,2020476558,"346,270.00"
Department for Work and Pensions,Corporate,28/04/2011,ACCOMMODATION,Group Finance,TELEREAL TRILLIUM,2020687069,"345,486.73"
Department for Work and Pensions,Jobcentre Plus,14/04/2011,EMPLOYMENT PROGRAMMES,Balance Sheet Payments,INBIZ LTD,2020458706,"344,407.67"
Department for Work and Pensions,Jobcentre Plus,20/04/2011,APPS DEV,Jobcentre Plus,HP ENTERPRISE SERVICES UK LTD,2020520600,"343,306.45"
Department for Work and Pensions,Housing Benefits,14/04/2011,Housing Benefit Admin,WWG Housing Benefit,LONDON BOROUGH OF NEWHAM,2020464039,"338,233.00"
Department for Work and Pensions,Housing Benefits,14/04/2011,Housing Benefit Admin,WWG Housing Benefit,EDINBURGH DISTRICT COUNCIL,2020463963,"338,190.00"
Department for Work and Pensions,Employment Programmes,15/04/2011,EMPLOYMENT INITIATIVES,WWEG EMPLOYMENT PROGRAMMES,REED IN PARTNERSHIP HACKNEY LTD,2020469061,"331,960.00"
Department for Work and Pensions,Corporate,04/04/2011,CAPITAL GRANTS,Group Finance,THE FIVE LAMPS ORGANISATION,2020254498,"319,728.00"
Department for Work and Pensions,Housing Benefits,14/04/2011,Housing Benefit Admin,WWG Housing Benefit,LONDON BOROUGH OF BRENT,2020464022,"317,783.00"
Department for Work and Pensions,Corporate,20/04/2011,PRINTING SATIONERY IT CONSUMABLES,Group Finance,XEROX UK LTD 3W,2020572993,"317,273.17"
Department for Work and Pensions,Employment Programmes,19/04/2011,EMPLOYMENT INITIATIVES,WWEG EMPLOYMENT PROGRAMMES,INGEUS UK LTD,2020483658,"315,592.00"
Department for Work and Pensions,Employment Programmes,15/04/2011,EMPLOYMENT INITIATIVES,WWEG EMPLOYMENT PROGRAMMES,TNG WORKZONE LTD,2020469803,"312,448.00"
Department for Work and Pensions,Jobcentre Plus,28/04/2011,ACCOMMODATION,Jobcentre Plus,TELEREAL TRILLIUM,2020687069,"312,423.18"
Department for Work and Pensions,Housing Benefits,14/04/2011,Housing Benefit Admin,WWG Housing Benefit,KIRKLEES METROPOLITAN BOROUGH COUNCIL,2020464010,"311,862.00"
Department for Work and Pensions,Corporate,19/04/2011,APPS DEV,Group Finance,HP ENTERPRISE SERVICES UK LTD,2020483520,"309,763.35"
Department for Work and Pensions,Housing Benefits,14/04/2011,Housing Benefit Admin,WWG Housing Benefit,SANDWELL BOROUGH COUNCIL,2020464124,"306,783.00"
Department for Work and Pensions,Housing Benefits,14/04/2011,Housing Benefit Admin,WWG Housing Benefit,CROYDON PEO%,2020463933,"305,707.00"
Department for Work and Pensions,Housing Benefits,14/04/2011,Housing Benefit Admin,WWG Housing Benefit,LONDON BOROUGH OF ISLINGTON,2020464034,"302,185.00"
Department for Work and Pensions,Housing Benefits,14/04/2011,Housing Benefit Admin,WWG Housing Benefit,LONDON BOROUGH OF EALING,2020464025,"301,452.00"
Department for Work and Pensions,Employment Programmes,18/04/2011,YOUNG PERSON'S GUARANTEE,WWEG EMPLOYMENT PROGRAMMES,CSV,2020472094,"300,600.00"
Department for Work and Pensions,Employment Programmes,04/04/2011,YOUNG PERSON'S GUARANTEE,WWEG EMPLOYMENT PROGRAMMES,THE INTRAINING GROUP,2020254503,"300,450.00"
Department for Work and Pensions,Corporate,28/04/2011,ACCOMMODATION,Group Finance,TELEREAL TRILLIUM,2020687068,"298,681.12"
Department for Work and Pensions,Employment Programmes,13/04/2011,YOUNG PERSON'S GUARANTEE,WWEG EMPLOYMENT PROGRAMMES,SHEFFIELD CITY COUNCIL,2020447092,"294,900.00"
Department for Work and Pensions,"Pension, Disability Carers Services",13/04/2011,CONTRACTED OUT OFFICE SERVICES,Pensions & Disability Carers Service ,CAPITA BUSINESS SERVICES LTD,2020392571,"294,701.35"
Department for Work and Pensions,Corporate,11/04/2011,IS/IT,CHANGE MANAGEMENT DIRECTORATE,COMPUTACENTER UK LTD,2020360099,"294,417.97"
Department for Work and Pensions,Housing Benefits,14/04/2011,Housing Benefit Admin,WWG Housing Benefit,LONDON BOROUGH OF HARINGEY,2020464029,"293,615.00"
Department for Work and Pensions,Housing Benefits,14/04/2011,Housing Benefit Admin,WWG Housing Benefit,NOTTINGHAM CITY COUNCIL,2020464088,"293,187.00"
Department for Work and Pensions,Employment Programmes,20/04/2011,YOUNG PERSON'S GUARANTEE,WWEG EMPLOYMENT PROGRAMMES,LANCASHIRE COUNTY COUNCIL,2020541103,"292,800.00"
Department for Work and Pensions,Corporate,20/04/2011,APPS DEV,Group Finance,HP ENTERPRISE SERVICES UK LTD,2020520600,"288,820.90"
Department for Work and Pensions,Jobcentre Plus,19/04/2011,TOTAL IT & EQUIPMENT COSTS,Jobcentre Plus,CABINET OFFICE RM SHARED SERVICES,2020479658,"288,047.79"
Department for Work and Pensions,Housing Benefits,14/04/2011,Housing Benefit Admin,WWG Housing Benefit,LEICESTER CITY COUNCIL,2020464014,"287,913.00"
Department for Work and Pensions,Employment Programmes,19/04/2011,RESIDENTIAL TRAINING,WWEG EMPLOYMENT PROGRAMMES,QUEEN ELIZABETHS FOUNDATION TRAINING COLLEGE,2020487735,"287,817.58"
Department for Work and Pensions,Housing Benefits,14/04/2011,Housing Benefit Admin,WWG Housing Benefit,LONDON BOROUGH OF ENFIELD,2020464026,"287,554.00"
Department for Work and Pensions,Corporate,28/04/2011,ACCOMMODATION,Group Finance,TELEREAL TRILLIUM,2020687069,"284,232.75"
Department for Work and Pensions,Housing Benefits,14/04/2011,Housing Benefit Admin,WWG Housing Benefit,NORTH LANARKSHIRE COUNCIL,2020464078,"283,007.00"
Department for Work and Pensions,Housing Benefits,14/04/2011,Housing Benefit Admin,WWG Housing Benefit,SUNDERLAND CITY COUNCIL,2020464170,"281,931.00"
Department for Work and Pensions,Employment Programmes,08/04/2011,YOUNG PERSON'S GUARANTEE,WWEG EMPLOYMENT PROGRAMMES,GROUNDWORK WEST MIDLANDS,2020355101,"279,150.00"
Department for Work and Pensions,Corporate,28/04/2011,ACCOMMODATION,Group Finance,TELEREAL TRILLIUM,2020687068,"278,506.85"
Department for Work and Pensions,Employment Programmes,01/04/2011,YOUNG PERSON'S GUARANTEE,WWEG EMPLOYMENT PROGRAMMES,BRADFORD METROPOLITAN DISTRICT COUNCIL,2020243083,"278,250.00"
Department for Work and Pensions,Corporate,18/04/2011,APPS DEV,SHARED SERVICES,FUJITSU SERVICES,2020473681,"277,776.00"
Department for Work and Pensions,Employment Programmes,04/04/2011,YOUNG PERSON'S GUARANTEE,WWEG EMPLOYMENT PROGRAMMES,TNG LTD,2020254529,"277,096.00"
Department for Work and Pensions,Employment Programmes,12/04/2011,EP GENERIC PROVIDER PAYMENTS,WWEG EMPLOYMENT PROGRAMMES,A4E LTD,2020367092,"276,631.67"
Department for Work and Pensions,Housing Benefits,14/04/2011,Housing Benefit Admin,WWG Housing Benefit,WAKEFIELD METROPOLITAN DISTRICT COUNCIL,2020464196,"276,618.00"
Department for Work and Pensions,Housing Benefits,14/04/2011,Housing Benefit Admin,WWG Housing Benefit,COVENTRY CITY COUNCIL,2020463930,"276,337.00"
Department for Work and Pensions,Employment Programmes,12/04/2011,EP GENERIC PROVIDER PAYMENTS,WWEG EMPLOYMENT PROGRAMMES,PERTEMPS,2020376008,"274,593.68"
Department for Work and Pensions,Housing Benefits,14/04/2011,Housing Benefit Admin,WWG Housing Benefit,KINGSTON UPON HULL CITY COUNCIL,2020464009,"274,061.00"
Department for Work and Pensions,Housing Benefits,14/04/2011,Housing Benefit Admin,WWG Housing Benefit,WIRRAL BOROUGH COUNCIL,2020464219,"271,978.00"
Department for Work and Pensions,Housing Benefits,14/04/2011,Housing Benefit Admin,WWG Housing Benefit,BRIGHTON & HOVE COUNCIL,2020463886,"271,462.00"
Department for Work and Pensions,Housing Benefits,14/04/2011,Housing Benefit Admin,WWG Housing Benefit,WALSALL BOROUGH COUNCIL,2020464197,"270,578.00"
Department for Work and Pensions,Employment Programmes,12/04/2011,EP GENERIC PROVIDER PAYMENTS,WWEG EMPLOYMENT PROGRAMMES,ESG HOLDINGS LTD,2020370327,"270,433.41"
Department for Work and Pensions,Corporate,06/04/2011,Audit Consultancy Fees,Group Finance,LOVELLS,2020315179,"266,400.00"
Department for Work and Pensions,Housing Benefits,14/04/2011,Housing Benefit Admin,WWG Housing Benefit,LONDON BOROUGH OF WANDSWORTH,2020464046,"264,293.00"
Department for Work and Pensions,Housing Benefits,14/04/2011,Housing Benefit Admin,WWG Housing Benefit,FIFE COUNCIL,2020463972,"262,739.00"
Department for Work and Pensions,Employment Programmes,04/04/2011,YOUNG PERSON'S GUARANTEE,WWEG EMPLOYMENT PROGRAMMES,THE INTRAINING GROUP,2020254503,"262,517.00"
Department for Work and Pensions,Housing Benefits,14/04/2011,Housing Benefit Admin,WWG Housing Benefit,LONDON BOROUGH OF GREENWICH,2020464027,"260,369.00"
Department for Work and Pensions,Employment Programmes,04/04/2011,YOUNG PERSON'S GUARANTEE,WWEG EMPLOYMENT PROGRAMMES,TNG LTD,2020254529,"259,798.00"
Department for Work and Pensions,Employment Programmes,12/04/2011,EP GENERIC PROVIDER PAYMENTS,WWEG EMPLOYMENT PROGRAMMES,A4E LTD,2020367092,"256,647.85"
Department for Work and Pensions,Corporate,06/04/2011,AOS CONTRACTED OUT SERVICES,Group Finance,BALFOUR BEATTY WORKPLACE LTD,2020277476,"256,086.06"
Department for Work and Pensions,Housing Benefits,14/04/2011,Housing Benefit Admin,WWG Housing Benefit,CARDIFF CITY COUNCIL,2020463899,"255,850.00"
Department for Work and Pensions,Employment Programmes,20/04/2011,YOUNG PERSON'S GUARANTEE,WWEG EMPLOYMENT PROGRAMMES,IXION HOLDINGS LTD,2020521333,"255,450.00"
Department for Work and Pensions,Housing Benefits,14/04/2011,Housing Benefit Admin,WWG Housing Benefit,LONDON BOROUGH OF CAMDEN,2020464024,"255,078.00"
Department for Work and Pensions,Corporate,06/04/2011,COMPUTER SERVICES,Group Finance,ACCENTURE UK LTD,2020275952,"254,012.65"
Department for Work and Pensions,Employment Programmes,12/04/2011,EP GENERIC PROVIDER PAYMENTS,WWEG EMPLOYMENT PROGRAMMES,JHP GROUP LTD,2020372531,"253,734.83"
Department for Work and Pensions,Corporate,19/04/2011,COMPUTER SERVICES,Corporate IT ,HP ENTERPRISE SERVICES UK LTD,2020483520,"253,541.60"
Department for Work and Pensions,Employment Programmes,12/04/2011,EP GENERIC PROVIDER PAYMENTS,WWEG EMPLOYMENT PROGRAMMES,A4E LTD,2020367092,"252,843.20"
Department for Work and Pensions,Employment Programmes,19/04/2011,YOUNG PERSON'S GUARANTEE,WWEG EMPLOYMENT PROGRAMMES,NORFOLK COUNTY COUNCIL,2020487174,"252,600.00"
Department for Work and Pensions,Housing Benefits,14/04/2011,Housing Benefit Admin,WWG Housing Benefit,WOLVERHAMPTON CITY COUNCIL,2020464222,"251,247.00"
Department for Work and Pensions,Employment Programmes,12/04/2011,EP GENERIC PROVIDER PAYMENTS,WWEG EMPLOYMENT PROGRAMMES,REED IN PARTNERSHIP,2020376688,"250,083.33"
Department for Work and Pensions,Employment Programmes,18/04/2011,YOUNG PERSON'S GUARANTEE,WWEG EMPLOYMENT PROGRAMMES,KENT COUNTY COUNCIL,2020474583,"249,600.00"
Department for Work and Pensions,Employment Programmes,04/04/2011,YOUNG PERSON'S GUARANTEE,WWEG EMPLOYMENT PROGRAMMES,THE INTRAINING GROUP,2020254503,"249,161.00"
Department for Work and Pensions,Corporate,08/04/2011,COMPUTER SERVICES,Universal Credit,ACCENTURE UK LTD,2020352590,"248,908.06"
Department for Work and Pensions,Employment Programmes,12/04/2011,EP GENERIC PROVIDER PAYMENTS,WWEG EMPLOYMENT PROGRAMMES,INGEUS UK LTD,2020371279,"248,306.51"
Department for Work and Pensions,Housing Benefits,14/04/2011,Housing Benefit Admin,WWG Housing Benefit,LONDON BOROUGH OF BARNET,2020464020,"246,635.00"
Department for Work and Pensions,Employment Programmes,04/04/2011,YOUNG PERSON'S GUARANTEE,WWEG EMPLOYMENT PROGRAMMES,TNG LTD,2020254529,"246,328.00"
Department for Work and Pensions,Employment Programmes,15/04/2011,EMPLOYMENT INITIATIVES,WWEG EMPLOYMENT PROGRAMMES,THE WISE GROUP,2020469797,"245,922.00"
Department for Work and Pensions,Employment Programmes,19/04/2011,RESIDENTIAL TRAINING,WWEG EMPLOYMENT PROGRAMMES,ST LOYES COLLEGE FOUNDATION,2020489469,"244,273.33"
Department for Work and Pensions,Housing Benefits,14/04/2011,Housing Benefit Admin,WWG Housing Benefit,NEWCASTLE CITY COUNCIL,2020464068,"244,177.00"
Department for Work and Pensions,Housing Benefits,14/04/2011,Housing Benefit Admin,WWG Housing Benefit,DONCASTER METROPOLITAN BOROUGH COUNCIL,2020463941,"242,625.00"
Department for Work and Pensions,Employment Programmes,04/04/2011,YOUNG PERSON'S GUARANTEE,WWEG EMPLOYMENT PROGRAMMES,SARINA RUSSO JOB ACCESS GB PTY LTD,2020254228,"241,911.00"
Department for Work and Pensions,Housing Benefits,14/04/2011,Housing Benefit Admin,WWG Housing Benefit,SALFORD CITY COUNCIL,2020464123,"240,644.00"
Department for Work and Pensions,Employment Programmes,04/04/2011,YOUNG PERSON'S GUARANTEE,WWEG EMPLOYMENT PROGRAMMES,SARINA RUSSO JOB ACCESS GB PTY LTD,2020254228,"240,369.00"
Department for Work and Pensions,Corporate,18/04/2011,IS/IT,Corporate IT ,COMPUTACENTER UK LTD,2020472086,"239,909.52"
Department for Work and Pensions,Housing Benefits,14/04/2011,Housing Benefit Admin,WWG Housing Benefit,SOUTH LANARKSHIRE COUNCIL,2020464146,"239,641.00"
Department for Work and Pensions,Jobcentre Plus,07/04/2011,EMPLOYMENT PROGRAMMES,Balance Sheet Payments,SEETEC BUSINESS TECHNOLOGY CENTRE LTD,2020350117,"239,065.85"
Department for Work and Pensions,Corporate,07/04/2011,COMPUTER SERVICES,Corporate IT ,TELEFONICA O2 UK LTD,2020350275,"237,686.28"
Department for Work and Pensions,Housing Benefits,14/04/2011,Housing Benefit Admin,WWG Housing Benefit,CITY OF WESTMINSTER,2020463918,"235,056.00"
Department for Work and Pensions,Employment Programmes,12/04/2011,EP GENERIC PROVIDER PAYMENTS,WWEG EMPLOYMENT PROGRAMMES,PINNACLE PEOPLE,2020376011,"234,868.58"
Department for Work and Pensions,Employment Programmes,07/04/2011,YOUNG PERSON'S GUARANTEE,WWEG EMPLOYMENT PROGRAMMES,NORTH LANARKSHIRE COUNCIL,2020349454,"233,100.00"
Department for Work and Pensions,Housing Benefits,14/04/2011,Housing Benefit Admin,WWG Housing Benefit,LONDON BOROUGH OF WALTHAM FOREST,2020464045,"232,821.00"
Department for Work and Pensions,Housing Benefits,14/04/2011,Housing Benefit Admin,WWG Housing Benefit,WIGAN BOROUGH COUNCIL,2020464215,"231,937.00"
Department for Work and Pensions,Housing Benefits,14/04/2011,Housing Benefit Admin,WWG Housing Benefit,WILTSHIRE COUNCIL,2020464216,"229,642.00"
Department for Work and Pensions,Employment Programmes,14/04/2011,RESIDENTIAL TRAINING,WWEG EMPLOYMENT PROGRAMMES,FINCHALE TRAINING COLLEGE,2020458328,"229,299.98"
Department for Work and Pensions,Jobcentre Plus,21/04/2011,EMPLOYMENT PROGRAMMES,Balance Sheet Payments,A4E LTD,2020576848,"225,313.12"
Department for Work and Pensions,Employment Programmes,12/04/2011,EP GENERIC PROVIDER PAYMENTS,WWEG EMPLOYMENT PROGRAMMES,PINNACLE PEOPLE,2020376011,"224,375.23"
Department for Work and Pensions,Jobcentre Plus,14/04/2011,EMPLOYMENT PROGRAMMES,Balance Sheet Payments,A4E LTD,2020455604,"222,854.23"
Department for Work and Pensions,Employment Programmes,27/04/2011,YOUNG PERSON'S GUARANTEE,WWEG EMPLOYMENT PROGRAMMES,KNOWSLEY METROPOLITAN BOROUGH COUNCIL,2020668944,"222,600.00"
Department for Work and Pensions,Employment Programmes,18/04/2011,EMPLOYMENT INITIATIVES,WWEG EMPLOYMENT PROGRAMMES,WORKING LINKS,2020476558,"222,426.00"
Department for Work and Pensions,Housing Benefits,14/04/2011,Housing Benefit Admin,WWG Housing Benefit,DUDLEY METROPOLITAN BOROUGH COUNCIL,2020463943,"221,667.00"
Department for Work and Pensions,Employment Programmes,05/04/2011,NDDP,WWEG EMPLOYMENT PROGRAMMES,SHAW TRUST LTD,2020267215,"220,662.04"
Department for Work and Pensions,Housing Benefits,14/04/2011,Housing Benefit Admin,WWG Housing Benefit,STOKE ON TRENT CITY COUNCIL,2020464166,"219,935.00"
Department for Work and Pensions,"Pension, Disability Carers Services",28/04/2011,ACCOMMODATION,Pensions & Disability Carers Service ,TELEREAL TRILLIUM,2020687070,"218,933.89"
Department for Work and Pensions,Corporate,18/04/2011,COMPUTER SERVICES,Corporate IT ,HP ENTERPRISE SERVICES UK LTD,2020473925,"217,549.43"
Department for Work and Pensions,Housing Benefits,14/04/2011,Housing Benefit Admin,WWG Housing Benefit,BOLTON METROPOLITAN BOROUGH COUNCIL,2020463874,"217,405.00"
Department for Work and Pensions,Employment Programmes,04/04/2011,YOUNG PERSON'S GUARANTEE,WWEG EMPLOYMENT PROGRAMMES,TBG LEARNING LTD,2020254483,"216,911.00"
Department for Work and Pensions,Housing Benefits,14/04/2011,Housing Benefit Admin,WWG Housing Benefit,SEFTON METROPOLITAN BOROUGH COUNCIL,2020464128,"216,843.00"
Department for Work and Pensions,"Pension, Disability Carers Services",05/04/2011,CONTRACTED OUT OFFICE SERVICES,Pensions & Disability Carers Service ,BALFOUR BEATTY WORKPLACE LTD,2020257641,"216,127.26"
Department for Work and Pensions,Corporate,18/04/2011,Pensions Programme Costs,Corporate and Support Services,THE PENSIONS OMBUDSMAN,1004769,"216,000.00"
Department for Work and Pensions,Employment Programmes,12/04/2011,EP GENERIC PROVIDER PAYMENTS,WWEG EMPLOYMENT PROGRAMMES,SEETEC BUSINESS TECHNOLOGY CENTRE LTD,2020378002,"212,698.42"
Department for Work and Pensions,Housing Benefits,14/04/2011,Housing Benefit Admin,WWG Housing Benefit,NORTHUMBERLAND COUNCIL,2020464086,"212,210.00"
Department for Work and Pensions,Corporate,06/04/2011,AOS CONTRACTED OUT SERVICES,SHARED SERVICES,BALFOUR BEATTY WORKPLACE LTD,2020277476,"211,834.95"
Department for Work and Pensions,Corporate,13/04/2011,Accomodation Costs,SHARED SERVICES,TELEREAL TRILLIUM,2020450372,"208,984.74"
Department for Work and Pensions,Employment Programmes,15/04/2011,EMPLOYMENT INITIATIVES,WWEG EMPLOYMENT PROGRAMMES,PERTEMPS,2020468765,"207,158.00"
Department for Work and Pensions,Employment Programmes,26/04/2011,YOUNG PERSON'S GUARANTEE,WWEG EMPLOYMENT PROGRAMMES,NEWPORT CITY COUNCIL,2020664063,"202,500.00"
Department for Work and Pensions,Housing Benefits,14/04/2011,Housing Benefit Admin,WWG Housing Benefit,PLYMOUTH CITY COUNCIL,2020464098,"202,462.00"
Department for Work and Pensions,Employment Programmes,12/04/2011,YOUNG PERSON'S GUARANTEE,WWEG EMPLOYMENT PROGRAMMES,KIRKLEES COUNCIL,2020373190,"202,200.00"
Department for Work and Pensions,Housing Benefits,14/04/2011,Housing Benefit Admin,WWG Housing Benefit,LONDON BOROUGH OF HOUNSLOW,2020464033,"201,896.00"
Department for Work and Pensions,Housing Benefits,14/04/2011,Housing Benefit Admin,WWG Housing Benefit,LONDON BOROUGH OF HILLINGDON,2020464032,"201,509.00"
Department for Work and Pensions,Employment Programmes,18/04/2011,EMPLOYMENT INITIATIVES,WWEG EMPLOYMENT PROGRAMMES,SENCIA LTD,2020476237,"201,202.00"
Department for Work and Pensions,Corporate,21/04/2011,IS/IT,Corporate IT ,COMPUTACENTER UK LTD,2020578114,"199,766.53"
Department for Work and Pensions,Employment Programmes,12/04/2011,EP GENERIC PROVIDER PAYMENTS,WWEG EMPLOYMENT PROGRAMMES,CAPITAL TRAINING GROUP LTD,2020368322,"199,399.17"
Department for Work and Pensions,Employment Programmes,12/04/2011,EP GENERIC PROVIDER PAYMENTS,WWEG EMPLOYMENT PROGRAMMES,A4E LTD,2020367092,"198,836.67"
Department for Work and Pensions,Employment Programmes,12/04/2011,EP GENERIC PROVIDER PAYMENTS,WWEG EMPLOYMENT PROGRAMMES,JHP GROUP LTD,2020372531,"198,759.92"
Department for Work and Pensions,Employment Programmes,06/04/2011,YOUNG PERSON'S GUARANTEE,WWEG EMPLOYMENT PROGRAMMES,STOKE ON TRENT CITY COUNCIL,2020338538,"197,267.76"
Department for Work and Pensions,Housing Benefits,14/04/2011,Housing Benefit Admin,WWG Housing Benefit,ROTHERHAM BOROUGH COUNCIL,2020464115,"196,790.00"
Department for Work and Pensions,Jobcentre Plus,11/04/2011,Accomodation Costs,Jobcentre Plus,COMPANIES HOUSE,1004751,"196,757.36"
Department for Work and Pensions,Employment Programmes,05/04/2011,YOUNG PERSON'S GUARANTEE,WWEG EMPLOYMENT PROGRAMMES,RENFREWSHIRE COUNCIL,2020266096,"196,654.13"
Department for Work and Pensions,Corporate,27/04/2011,COMPUTER SERVICES,Corporate IT ,HP ENTERPRISE SERVICES UK LTD,2020668213,"195,799.00"
Department for Work and Pensions,Corporate,20/04/2011,IS/IT,Corporate IT ,HP ENTERPRISE SERVICES UK LTD,2020520600,"195,415.99"
Department for Work and Pensions,Corporate,19/04/2011,PRINCES YOUTH TRUST,WWG SUMMARY,LONDON BOROUGH OF BARNET,1004770,"195,200.00"
Department for Work and Pensions,Corporate,20/04/2011,APPS DEV,CHANGE MANAGEMENT DIRECTORATE,HP ENTERPRISE SERVICES UK LTD,2020520600,"193,893.23"
Department for Work and Pensions,Employment Programmes,15/04/2011,YOUNG PERSON'S GUARANTEE,WWEG EMPLOYMENT PROGRAMMES,LEEDS CITY COUNCIL,2020467789,"193,500.00"
Department for Work and Pensions,Corporate,11/04/2011,IS/IT,Corporate IT ,SPECIALIST COMPUTER CENTRES PLC,2020364588,"191,889.36"
Department for Work and Pensions,Housing Benefits,14/04/2011,Housing Benefit Admin,WWG Housing Benefit,EAST RIDING OF YORKSHIRE BOROUGH COUNCIL,2020463958,"191,497.00"
Department for Work and Pensions,Housing Benefits,14/04/2011,Housing Benefit Admin,WWG Housing Benefit,CHESHIRE WEST & CHESTER COUNCIL,2020463909,"191,385.00"
Department for Work and Pensions,Housing Benefits,14/04/2011,Housing Benefit Admin,WWG Housing Benefit,MEDWAY TOWNS COUNCIL,2020464053,"191,188.00"
Department for Work and Pensions,Housing Benefits,14/04/2011,Housing Benefit Admin,WWG Housing Benefit,TAMESIDE BOROUGH COUNCIL,2020464175,"191,093.00"
Department for Work and Pensions,Housing Benefits,14/04/2011,Housing Benefit Admin,WWG Housing Benefit,LONDON BOROUGH OF HAMMERSMITH & FULHAM,2020464028,"190,663.00"
Department for Work and Pensions,Jobcentre Plus,21/04/2011,EMPLOYMENT PROGRAMMES,Balance Sheet Payments,WORKING LINKS EMPLOYMENT LIMITED,2020589442,"188,480.88"
Department for Work and Pensions,Housing Benefits,14/04/2011,Housing Benefit Admin,WWG Housing Benefit,SOUTHAMPTON CITY COUNCIL,2020464154,"187,775.00"
Department for Work and Pensions,Housing Benefits,14/04/2011,Housing Benefit Admin,WWG Housing Benefit,PORTSMOUTH CITY COUNCIL,2020464100,"187,378.00"
Department for Work and Pensions,Housing Benefits,14/04/2011,Housing Benefit Admin,WWG Housing Benefit,RHONDDA CYNON TAFF COUNTY BOROUGH COUNCIL,2020464108,"186,767.00"
Department for Work and Pensions,Employment Programmes,08/04/2011,YOUNG PERSON'S GUARANTEE,WWEG EMPLOYMENT PROGRAMMES,ENABLE,2020354865,"185,100.00"
Department for Work and Pensions,Jobcentre Plus,14/04/2011,EMPLOYMENT PROGRAMMES,Balance Sheet Payments,PERTEMPS EMPLOYMENT ALLIANCE,2020460592,"184,833.52"
Department for Work and Pensions,Housing Benefits,14/04/2011,Housing Benefit Admin,WWG Housing Benefit,CHESHIRE EAST BOROUGH COUNCIL,2020463908,"184,198.00"
Department for Work and Pensions,Corporate,15/04/2011,TRADE DEBTORS,Balance Sheet Payments,TELEREAL TRILLIUM,2020469787,"183,948.91"
Department for Work and Pensions,Housing Benefits,14/04/2011,Housing Benefit Admin,WWG Housing Benefit,STOCKPORT BOROUGH COUNCIL,2020464164,"182,624.00"
Department for Work and Pensions,Employment Programmes,18/04/2011,EP GENERIC PROVIDER PAYMENTS,WWEG EMPLOYMENT PROGRAMMES,TNG LTD,2020476435,"181,891.61"
Department for Work and Pensions,Housing Benefits,14/04/2011,Housing Benefit Admin,WWG Housing Benefit,LONDON BOROUGH OF HARROW,2020464030,"181,018.00"
Department for Work and Pensions,Housing Benefits,14/04/2011,Housing Benefit Admin,WWG Housing Benefit,BARNSLEY BOROUGH COUNCIL,2020463861,"180,115.00"
Department for Work and Pensions,Jobcentre Plus,14/04/2011,EMPLOYMENT PROGRAMMES,Balance Sheet Payments,TNG LTD,2020461585,"179,682.02"
Department for Work and Pensions,Housing Benefits,14/04/2011,Housing Benefit Admin,WWG Housing Benefit,MILTON KEYNES BOROUGH COUNCIL,2020464062,"178,651.00"
Department for Work and Pensions,Employment Programmes,01/04/2011,JOBCENTRE PLUS PATHWAYS TO WORK,WWEG EMPLOYMENT PROGRAMMES,AMBU LOCAL HEALTH BOARD NEATH PT,410554,"178,248.99"
Department for Work and Pensions,Employment Programmes,04/04/2011,YOUNG PERSON'S GUARANTEE,WWEG EMPLOYMENT PROGRAMMES,SARINA RUSSO JOB ACCESS GB PTY LTD,2020254228,"178,178.00"
Department for Work and Pensions,Employment Programmes,12/04/2011,EP GENERIC PROVIDER PAYMENTS,WWEG EMPLOYMENT PROGRAMMES,JHP GROUP LTD,2020372531,"177,750.83"
Department for Work and Pensions,Corporate,07/04/2011,GENERAL PAYMENTS,Corporate and Support Services,CAPITA BUSINESS SERVICES LTD,2020347507,"177,554.24"
Department for Work and Pensions,Corporate,13/04/2011,APPS DEV,CHANGE MANAGEMENT DIRECTORATE,ACCENTURE UK LTD,2020385718,"177,113.09"
Department for Work and Pensions,Housing Benefits,14/04/2011,Housing Benefit Admin,WWG Housing Benefit,SWANSEA CITY COUNCIL,2020464173,"176,582.00"
Department for Work and Pensions,Employment Programmes,20/04/2011,YOUNG PERSON'S GUARANTEE,WWEG EMPLOYMENT PROGRAMMES,INSPIRE FUTURES LTD,2020521326,"175,791.85"
Department for Work and Pensions,Housing Benefits,14/04/2011,Housing Benefit Admin,WWG Housing Benefit,DERBY CITY COUNCIL,2020463939,"175,281.00"
Department for Work and Pensions,Housing Benefits,14/04/2011,Housing Benefit Admin,WWG Housing Benefit,ROCHDALE BOROUGH COUNCIL,2020464111,"174,891.00"
Department for Work and Pensions,Housing Benefits,14/04/2011,Housing Benefit Admin,WWG Housing Benefit,OLDHAM BOROUGH COUNCIL,2020464091,"174,833.00"
Department for Work and Pensions,Housing Benefits,14/04/2011,Housing Benefit Admin,WWG Housing Benefit,LONDON BOROUGH OF KENSINGTON & CHELSEA,2020464035,"173,743.00"
Department for Work and Pensions,Housing Benefits,14/04/2011,Housing Benefit Admin,WWG Housing Benefit,LONDON BOROUGH OF BROMLEY,2020464023,"171,631.00"
Department for Work and Pensions,Housing Benefits,14/04/2011,Housing Benefit Admin,WWG Housing Benefit,SHROPSHIRE COUNCIL,2020464134,"170,683.00"
Department for Work and Pensions,Employment Programmes,19/04/2011,RESIDENTIAL TRAINING,WWEG EMPLOYMENT PROGRAMMES,RNCB HEREFORD,2020488291,"169,730.00"
Department for Work and Pensions,Employment Programmes,08/04/2011,YOUNG PERSON'S GUARANTEE,WWEG EMPLOYMENT PROGRAMMES,DORSET COUNTY COUNCIL,2020353369,"169,500.00"
Department for Work and Pensions,Housing Benefits,14/04/2011,Housing Benefit Admin,WWG Housing Benefit,LONDON BOROUGH OF BARKING & DAGENHAM,2020464019,"169,473.00"
Department for Work and Pensions,Corporate,04/04/2011,MISCELLANEOUS EXPENDITURE,EG SUMMARY,UNIVERSITY OF WESTMINSTER PSI,2020254560,"168,852.57"
Department for Work and Pensions,Corporate,15/04/2011,ACCOMMODATION,Group Finance,TELEREAL TRILLIUM,2020469787,"168,842.31"
Department for Work and Pensions,Employment Programmes,18/04/2011,EP GENERIC PROVIDER PAYMENTS,WWEG EMPLOYMENT PROGRAMMES,MAXIMUS EMPLOYMENT UK LTD,2020475188,"168,738.70"
Department for Work and Pensions,Employment Programmes,18/04/2011,EMPLOYMENT INITIATIVES,WWEG EMPLOYMENT PROGRAMMES,WORKING LINKS,2020476558,"168,008.00"
Department for Work and Pensions,Housing Benefits,14/04/2011,Housing Benefit Admin,WWG Housing Benefit,KNOWSLEY BOROUGH COUNCIL,2020464011,"167,742.00"
Department for Work and Pensions,Housing Benefits,14/04/2011,Housing Benefit Admin,WWG Housing Benefit,GATESHEAD BOROUGH COUNCIL,2020463977,"167,075.00"
Department for Work and Pensions,Employment Programmes,08/04/2011,YOUNG PERSON'S GUARANTEE,WWEG EMPLOYMENT PROGRAMMES,CHESHIRE WEST & CHESTER COUNCIL,2020353036,"165,450.00"
Department for Work and Pensions,Employment Programmes,28/04/2011,YOUNG PERSON'S GUARANTEE,WWEG EMPLOYMENT PROGRAMMES,WEST DUNBARTONSHIRE COUNCIL,2020687488,"165,151.68"
Department for Work and Pensions,Employment Programmes,12/04/2011,EP GENERIC PROVIDER PAYMENTS,WWEG EMPLOYMENT PROGRAMMES,A4E LTD,2020367092,"165,094.28"
Department for Work and Pensions,Corporate,07/04/2011,EMPLOYMENT ZONES,Group Finance,NATIONAL HOUSING FEDERATION,2020349437,"164,762.00"
Department for Work and Pensions,Housing Benefits,14/04/2011,Housing Benefit Admin,WWG Housing Benefit,LONDON BOROUGH OF REDBRIDGE,2020464040,"164,618.00"
Department for Work and Pensions,Employment Programmes,18/04/2011,EP GENERIC PROVIDER PAYMENTS,WWEG EMPLOYMENT PROGRAMMES,REMPLOY LTD,2020475807,"164,331.50"
Department for Work and Pensions,Employment Programmes,21/04/2011,WORKSTEP,WWEG EMPLOYMENT PROGRAMMES,SHAW TRUST LTD,2020588554,"164,000.00"
Department for Work and Pensions,Corporate,06/04/2011,APPS DEV,SHARED SERVICES,ACCENTURE,2020275951,"163,562.25"
Department for Work and Pensions,Housing Benefits,14/04/2011,Housing Benefit Admin,WWG Housing Benefit,BLACKPOOL BOROUGH COUNCIL,2020463871,"162,953.00"
Department for Work and Pensions,Jobcentre Plus,21/04/2011,EMPLOYMENT PROGRAMMES,Balance Sheet Payments,A4E WALES LTD,2020589549,"162,077.71"
Department for Work and Pensions,Employment Programmes,13/04/2011,YOUNG PERSON'S GUARANTEE,WWEG EMPLOYMENT PROGRAMMES,SCOTTISH PREMIER LEAGUE LTD,2020447041,"162,000.00"
Department for Work and Pensions,Employment Programmes,12/04/2011,YOUNG PERSON'S GUARANTEE,WWEG EMPLOYMENT PROGRAMMES,WAKEFIELD METROPLITAN DISTRICT COUNCIL,2020378763,"161,151.51"
Department for Work and Pensions,Jobcentre Plus,21/04/2011,COMPUTER SERVICES,Jobcentre Plus,ACCENTURE UK LTD,2020576857,"160,857.43"
Department for Work and Pensions,Employment Programmes,13/04/2011,YOUNG PERSON'S GUARANTEE,WWEG EMPLOYMENT PROGRAMMES,URBAN FUTURES LONDON LTD,2020450514,"160,104.13"
Department for Work and Pensions,Employment Programmes,12/04/2011,EP GENERIC PROVIDER PAYMENTS,WWEG EMPLOYMENT PROGRAMMES,INGEUS UK LTD,2020371279,"160,052.27"
Department for Work and Pensions,Corporate,08/04/2011,STAFF COSTS,Corporate and Support Services,RIGHT CORECARE,2020357235,"158,477.61"
Department for Work and Pensions,Housing Benefits,14/04/2011,Housing Benefit Admin,WWG Housing Benefit,BOURNEMOUTH BOROUGH COUNCIL,2020463879,"157,665.00"
Department for Work and Pensions,Housing Benefits,14/04/2011,Housing Benefit Admin,WWG Housing Benefit,MIDDLESBROUGH COUNCIL,2020464060,"157,582.00"
Department for Work and Pensions,Jobcentre Plus,08/04/2011,PRINTING SATIONERY IT CONSUMABLES,Jobcentre Plus,XEROX UK LTD 3W,2020358011,"157,466.38"
Department for Work and Pensions,Housing Benefits,14/04/2011,Housing Benefit Admin,WWG Housing Benefit,CALDERDALE BOROUGH COUNCIL,2020463895,"157,069.00"
Department for Work and Pensions,Corporate,12/04/2011,NETWORK,Corporate IT ,BT GLOBAL SERVICES,2020367427,"155,980.22"
Department for Work and Pensions,Housing Benefits,14/04/2011,Housing Benefit Admin,WWG Housing Benefit,NORTH TYNESIDE BOROUGH COUNCIL,2020464082,"154,947.00"
Department for Work and Pensions,Housing Benefits,14/04/2011,Housing Benefit Admin,WWG Housing Benefit,RENFREWSHIRE COUNCIL,2020464107,"154,503.00"
Department for Work and Pensions,Housing Benefits,14/04/2011,Housing Benefit Admin,WWG Housing Benefit,PETERBOROUGH CITY COUNCIL,2020464097,"154,406.00"
Department for Work and Pensions,Employment Programmes,04/04/2011,YOUNG PERSON'S GUARANTEE,WWEG EMPLOYMENT PROGRAMMES,PROSPECT SERVICES LTD,2020253406,"153,635.00"
Department for Work and Pensions,Jobcentre Plus,08/04/2011,Accomodation Costs,Jobcentre Plus,TELEREAL TRILLIUM,2020357862,"153,593.25"
Department for Work and Pensions,Housing Benefits,14/04/2011,Housing Benefit Admin,WWG Housing Benefit,DUNDEE CITY COUNCIL,2020463945,"153,546.00"
Department for Work and Pensions,Housing Benefits,14/04/2011,Housing Benefit Admin,WWG Housing Benefit,ST HELENS BOROUGH COUNCIL,2020464159,"153,140.00"
Department for Work and Pensions,Jobcentre Plus,07/04/2011,EMPLOYMENT PROGRAMMES,Balance Sheet Payments,INGEUS UK LTD,2020348406,"153,030.63"
Department for Work and Pensions,Housing Benefits,14/04/2011,Housing Benefit Admin,WWG Housing Benefit,NORTHAMPTON BOROUGH COUNCIL,2020464085,"152,650.00"
Department for Work and Pensions,Housing Benefits,14/04/2011,Housing Benefit Admin,WWG Housing Benefit,NORTH EAST LINCOLNSHIRE COUNCIL,2020464075,"152,348.00"
Department for Work and Pensions,Jobcentre Plus,07/04/2011,EMPLOYMENT PROGRAMMES,Balance Sheet Payments,BUSINESS EMPLOYMENT SERVICES TRAINING LTD,2020347326,"152,280.95"
Department for Work and Pensions,Employment Programmes,12/04/2011,EP GENERIC PROVIDER PAYMENTS,WWEG EMPLOYMENT PROGRAMMES,INGEUS UK LTD,2020371279,"152,161.27"
Department for Work and Pensions,Employment Programmes,01/04/2011,YOUNG PERSON'S GUARANTEE,WWEG EMPLOYMENT PROGRAMMES,LANCASHIRE COUNTY COUNCIL,2020244289,"151,200.00"
Department for Work and Pensions,Employment Programmes,12/04/2011,EP GENERIC PROVIDER PAYMENTS,WWEG EMPLOYMENT PROGRAMMES,TNG LTD,2020378455,"151,118.57"
Department for Work and Pensions,Corporate,13/04/2011,MANAGEMENT CONSULTANCY,EG SUMMARY,KPMG,2020418265,"150,000.00"
Department for Work and Pensions,Corporate,21/04/2011,PRINCES YOUTH TRUST,WWG SUMMARY,MANCHESTER CITY COUNCIL,1004773,"149,000.00"
Department for Work and Pensions,Corporate,21/04/2011,Accomodation Costs,Group Finance,THE NEWCASTLE ESTATES PARTNERSHIP LTD,2020589069,"147,827.55"
Department for Work and Pensions,Housing Benefits,14/04/2011,Housing Benefit Admin,WWG Housing Benefit,STOCKTON  BOROUGH COUNCIL,2020464165,"146,783.00"
Department for Work and Pensions,Housing Benefits,14/04/2011,Housing Benefit Admin,WWG Housing Benefit,LUTON BOROUGH COUNCIL,2020464047,"146,527.00"
Department for Work and Pensions,Housing Benefits,14/04/2011,Housing Benefit Admin,WWG Housing Benefit,HIGHLAND COUNCIL,2020463998,"146,382.00"
Department for Work and Pensions,Housing Benefits,14/04/2011,Housing Benefit Admin,WWG Housing Benefit,NORTH SOMERSET COUNCIL,2020464081,"146,237.00"
Department for Work and Pensions,Jobcentre Plus,18/04/2011,APPS DEV,Jobcentre Plus,HP ENTERPRISE SERVICES UK LTD,2020473925,"145,153.54"
Department for Work and Pensions,Corporate,08/04/2011,STAFF COSTS,Corporate and Support Services,RIGHT CORECARE,2020357234,"145,033.33"
Department for Work and Pensions,Employment Programmes,12/04/2011,EP GENERIC PROVIDER PAYMENTS,WWEG EMPLOYMENT PROGRAMMES,JHP GROUP LTD,2020372531,"144,528.00"
Department for Work and Pensions,Housing Benefits,14/04/2011,Housing Benefit Admin,WWG Housing Benefit,THANET DISTRICT COUNCIL,2020464183,"143,795.00"
Department for Work and Pensions,Housing Benefits,14/04/2011,Housing Benefit Admin,WWG Housing Benefit,SOUTHEND ON SEA BOROUGH COUNCIL,2020464155,"143,761.00"
Department for Work and Pensions,Corporate,21/04/2011,PRINCES YOUTH TRUST,WWG SUMMARY,ESSEX COUNTY COUNCIL,1004772,"142,010.00"
Department for Work and Pensions,Jobcentre Plus,18/04/2011,APPS DEV,Jobcentre Plus,HP ENTERPRISE SERVICES UK LTD,2020473925,"141,914.71"
Department for Work and Pensions,Housing Benefits,14/04/2011,Housing Benefit Admin,WWG Housing Benefit,TORBAY  COUNCIL,2020464188,"140,673.00"
Department for Work and Pensions,"Pension, Disability Carers Services",08/04/2011,COMPUTER SERVICES,Pensions & Disability Carers Service ,ACCENTURE,2020352589,"140,287.87"
Department for Work and Pensions,Jobcentre Plus,14/04/2011,AOS CONTRACTED OUT SERVICES,Jobcentre Plus,BALFOUR BEATTY WORKPLACE LTD,2020455762,"140,217.82"
Department for Work and Pensions,Employment Programmes,26/04/2011,NEA LOAN PAYMENT,WWEG EMPLOYMENT PROGRAMMES,EAST LANCS MONEYLINE,2020612381,"139,425.00"
Department for Work and Pensions,Housing Benefits,14/04/2011,Housing Benefit Admin,WWG Housing Benefit,LONDON BOROUGH OF HAVERING,2020464031,"139,103.00"
Department for Work and Pensions,Housing Benefits,14/04/2011,Housing Benefit Admin,WWG Housing Benefit,LONDON BOROUGH OF BEXLEY,2020464021,"138,794.00"
Department for Work and Pensions,Housing Benefits,14/04/2011,Housing Benefit Admin,WWG Housing Benefit,SOUTH TYNESIDE METROPOLITAN BOROUGH COUNCIL,2020464153,"138,217.00"
Department for Work and Pensions,Corporate,21/04/2011,CAPITAL GRANTS,Group Finance,CAPITAL CREDIT UNION LTD,2020578057,"138,000.00"
Department for Work and Pensions,Housing Benefits,14/04/2011,Housing Benefit Admin,WWG Housing Benefit,SOUTH GLOUCESTERSHIRE COUNCIL,2020464141,"137,635.00"
Department for Work and Pensions,Corporate,18/04/2011,APPS DEV,Corporate IT ,HP ENTERPRISE SERVICES UK LTD,2020473925,"137,062.36"
Department for Work and Pensions,Employment Programmes,13/04/2011,YOUNG PERSON'S GUARANTEE,WWEG EMPLOYMENT PROGRAMMES,CARDIFF CITY COUNCIL,2020453250,"136,650.00"
Department for Work and Pensions,Housing Benefits,14/04/2011,Housing Benefit Admin,WWG Housing Benefit,TRAFFORD BOROUGH COUNCIL,2020464191,"136,601.00"
Department for Work and Pensions,Employment Programmes,18/04/2011,YOUNG PERSON'S GUARANTEE,WWEG EMPLOYMENT PROGRAMMES,STOKE ON TRENT CITY COUNCIL,2020476281,"136,380.24"
Department for Work and Pensions,Corporate,28/04/2011,ACCOMMODATION,Group Finance,TELEREAL TRILLIUM,2020687068,"135,804.92"
Department for Work and Pensions,Corporate,27/04/2011,IS/IT,Corporate IT ,COMPUTACENTER UK LTD,2020666188,"134,975.88"
Department for Work and Pensions,Housing Benefits,14/04/2011,Housing Benefit Admin,WWG Housing Benefit,BOROUGH OF TELFORD & WREKIN COUNCIL,2020463876,"134,540.00"
Department for Work and Pensions,Employment Programmes,04/04/2011,YOUNG PERSON'S GUARANTEE,WWEG EMPLOYMENT PROGRAMMES,GROUNDWORK UK,2020250869,"134,361.00"
Department for Work and Pensions,Housing Benefits,14/04/2011,Housing Benefit Admin,WWG Housing Benefit,BASILDON DISTRICT COUNCIL,2020463863,"133,613.00"
Department for Work and Pensions,Employment Programmes,07/04/2011,YOUNG PERSON'S GUARANTEE,WWEG EMPLOYMENT PROGRAMMES,RCT HOMES,2020349802,"133,500.00"
Department for Work and Pensions,Employment Programmes,26/04/2011,HELP FOR UNEMPLOYED PEOPLE OTHER,WWEG EMPLOYMENT PROGRAMMES,DUNDEE CITY COUNCIL,2020610028,"133,432.75"
Department for Work and Pensions,Corporate,19/04/2011,MANAGEMENT CONSULTANCY,EG SUMMARY,KPMG,2020485309,"133,144.15"
Department for Work and Pensions,Housing Benefits,14/04/2011,Housing Benefit Admin,WWG Housing Benefit,LONDON BOROUGH OF MERTON,2020464038,"133,101.00"
Department for Work and Pensions,Housing Benefits,14/04/2011,Housing Benefit Admin,WWG Housing Benefit,BURY METROPOLITAN BOROUGH COUNCIL,2020463893,"133,002.00"
Department for Work and Pensions,Corporate,18/04/2011,PRINCES YOUTH TRUST,WWG SUMMARY,SURREY COUNTY COUNCIL,1004768,"132,789.00"
Department for Work and Pensions,Employment Programmes,08/04/2011,JOBCENTRE PLUS PATHWAYS TO WORK,WWEG EMPLOYMENT PROGRAMMES,NORTH STAFFORDSHIRE PCT,2020356752,"132,667.08"
Department for Work and Pensions,Housing Benefits,14/04/2011,Housing Benefit Admin,WWG Housing Benefit,SWINDON BOROUGH COUNCIL,2020464174,"131,877.00"
Department for Work and Pensions,Employment Programmes,07/04/2011,FND,WWEG EMPLOYMENT PROGRAMMES,SKILLS DEVELOPMENT SCOTLAND,1004750,"131,400.00"
Department for Work and Pensions,Corporate,13/04/2011,PAYMENTS TO CSAS,Corporate and Support Services,ATOS ORIGIN IT SERVICES UK LTD,2020385924,"131,198.38"
Department for Work and Pensions,Housing Benefits,14/04/2011,Housing Benefit Admin,WWG Housing Benefit,NORTH AYRSHIRE COUNCIL,2020464071,"131,001.00"
Department for Work and Pensions,Jobcentre Plus,14/04/2011,EMPLOYMENT PROGRAMMES,Balance Sheet Payments,SHAW TRUST LTD,2020461349,"130,773.76"
Department for Work and Pensions,Housing Benefits,14/04/2011,Housing Benefit Admin,WWG Housing Benefit,BLACKBURN BOROUGH COUNCIL,2020463870,"130,093.00"
Department for Work and Pensions,Employment Programmes,19/04/2011,JSP ESF DEL P COSTS,WWEG EMPLOYMENT PROGRAMMES,SEETEC BUSINESS TECHNOLOGY CENTRE LTD,2020489424,"129,995.68"
Department for Work and Pensions,Jobcentre Plus,28/04/2011,ACCOMMODATION,Jobcentre Plus,TELEREAL TRILLIUM,2020687070,"129,227.73"
Department for Work and Pensions,Housing Benefits,14/04/2011,Housing Benefit Admin,WWG Housing Benefit,CAERPHILLY COUNTY BOROUGH COUNCIL,2020463894,"129,074.00"
Department for Work and Pensions,Housing Benefits,14/04/2011,Housing Benefit Admin,WWG Housing Benefit,LONDON BOROUGH OF SUTTON,2020464043,"129,052.00"
Department for Work and Pensions,Corporate,04/04/2011,STAFF COSTS,Corporate and Support Services,FLETCHER CONSULTANCY,2020250654,"128,187.50"
Department for Work and Pensions,Jobcentre Plus,12/04/2011,APPS DEV,Jobcentre Plus,ACCENTURE UK LTD,2020367098,"127,890.86"
Department for Work and Pensions,Jobcentre Plus,21/04/2011,EMPLOYMENT PROGRAMMES,Balance Sheet Payments,THE INTRAINING GROUP,2020589065,"127,072.46"
Department for Work and Pensions,Housing Benefits,14/04/2011,Housing Benefit Admin,WWG Housing Benefit,REDCAR & CLEVELAND BOROUGH  COUNCIL,2020464105,"126,622.00"
Department for Work and Pensions,Housing Benefits,14/04/2011,Housing Benefit Admin,WWG Housing Benefit,NORWICH CITY COUNCIL,2020464087,"126,542.00"
Department for Work and Pensions,Jobcentre Plus,21/04/2011,EMPLOYMENT PROGRAMMES,Balance Sheet Payments,CORNWALL COUNTY COUNCIL,2020578118,"125,999.94"
Department for Work and Pensions,Housing Benefits,14/04/2011,Housing Benefit Admin,WWG Housing Benefit,TENDRING DISTRICT COUNCIL,2020464180,"125,983.00"
Department for Work and Pensions,Housing Benefits,14/04/2011,Housing Benefit Admin,WWG Housing Benefit,CENTRAL BEDFORDSHIRE DISTRICT COUNCIL,2020463902,"125,868.00"
Department for Work and Pensions,Housing Benefits,14/04/2011,Housing Benefit Admin,WWG Housing Benefit,ABERDEEN CITY COUNCIL,2020463849,"125,393.00"
Department for Work and Pensions,Jobcentre Plus,21/04/2011,EMPLOYMENT PROGRAMMES,Balance Sheet Payments,WORKING LINKS EMPLOYMENT LTD,2020589443,"125,000.00"
Department for Work and Pensions,Corporate,18/04/2011,PRINCES YOUTH TRUST,WWG SUMMARY,BARNSLEY METROPOLITAN BOROUGH COUNCIL,1004765,"123,762.00"
Department for Work and Pensions,Jobcentre Plus,14/04/2011,EMPLOYMENT PROGRAMMES,Balance Sheet Payments,TWL TRAINING LTD,2020461605,"123,670.40"
Department for Work and Pensions,Housing Benefits,14/04/2011,Housing Benefit Admin,WWG Housing Benefit,WEST LOTHIAN COUNCIL,2020464211,"123,574.00"
Department for Work and Pensions,Housing Benefits,14/04/2011,Housing Benefit Admin,WWG Housing Benefit,NORTH LINCOLNSHIRE COUNCIL,2020464079,"122,277.00"
Department for Work and Pensions,Corporate,28/04/2011,ACCOMMODATION,Group Finance,TELEREAL TRILLIUM,2020687069,"121,586.39"
Department for Work and Pensions,Housing Benefits,14/04/2011,Housing Benefit Admin,WWG Housing Benefit,CARMARTHENSHIRE COUNTY COUNCIL,2020463900,"121,563.00"
Department for Work and Pensions,Housing Benefits,14/04/2011,Housing Benefit Admin,WWG Housing Benefit,ISLE OF WIGHT COUNTY COUNCIL,2020464006,"121,156.00"
Department for Work and Pensions,Corporate,04/04/2011,EMPLOYMENT ZONES,WWG SUMMARY,BRITISH COUNCIL,2020247500,"121,001.25"
Department for Work and Pensions,Corporate,18/04/2011,COMPUTER SERVICES,Group Finance,DELOITTE & TOUCHE LLP,2020472431,"120,694.50"
Department for Work and Pensions,Corporate,18/04/2011,IS/IT,Corporate IT ,COMPUTACENTER UK LTD,2020472086,"120,421.43"
Department for Work and Pensions,Housing Benefits,14/04/2011,Housing Benefit Admin,WWG Housing Benefit,DUMFRIES & GALLOWAY COUNCIL,2020463944,"120,266.00"
Department for Work and Pensions,Corporate,12/04/2011,COMPUTER SERVICES,SHARED SERVICES,FUJITSU SERVICES LTD,2020370473,"120,000.00"
Department for Work and Pensions,Corporate,18/04/2011,EMPLOYMENT ZONES,Group Finance,MANCHESTER CREDIT UNION,2020475184,"119,250.00"
Department for Work and Pensions,Jobcentre Plus,07/04/2011,EMPLOYMENT PROGRAMMES,Balance Sheet Payments,SHAW TRUST LTD,2020350122,"118,320.94"
Department for Work and Pensions,Employment Programmes,19/04/2011,RESIDENTIAL TRAINING,WWEG EMPLOYMENT PROGRAMMES,DONCASTER DEAF TRUST,2020480483,"118,060.97"
Department for Work and Pensions,Jobcentre Plus,14/04/2011,EMPLOYMENT PROGRAMMES,Balance Sheet Payments,WORKING LINKS,2020461750,"117,691.53"
Department for Work and Pensions,Housing Benefits,14/04/2011,Housing Benefit Admin,WWG Housing Benefit,SOLIHULL METROPOLITAN BOROUGH COUNCIL,2020464136,"117,560.00"
Department for Work and Pensions,Jobcentre Plus,18/04/2011,APPS DEV,Jobcentre Plus,HP ENTERPRISE SERVICES UK LTD,2020473925,"117,447.88"
Department for Work and Pensions,Corporate,11/04/2011,MANAGEMENT CONSULTANCY,EG SUMMARY,KPMG,605501,"116,872.56"
Department for Work and Pensions,Housing Benefits,14/04/2011,Housing Benefit Admin,WWG Housing Benefit,BEDFORD BOROUGH COUNCIL,2020463867,"116,749.00"
Department for Work and Pensions,Employment Programmes,13/04/2011,YOUNG PERSON'S GUARANTEE,WWEG EMPLOYMENT PROGRAMMES,LONDON BOROUGH OF HACKNEY,2020424196,"115,800.00"
Department for Work and Pensions,Corporate,20/04/2011,COMPUTER SERVICES,Corporate IT ,HP ENTERPRISE SERVICES UK LTD,2020520600,"115,063.42"
Department for Work and Pensions,Housing Benefits,14/04/2011,Housing Benefit Admin,WWG Housing Benefit,READING BOROUGH COUNCIL,2020464104,"115,026.00"
Department for Work and Pensions,Jobcentre Plus,28/04/2011,MEDICAL SERVICES,Jobcentre Plus,ATOS HEALTHCARE,2020673342,"115,000.00"
Department for Work and Pensions,Corporate,11/04/2011,IS/IT,Corporate IT ,COMPUTACENTER UK LTD,2020360099,"114,467.52"
Department for Work and Pensions,Housing Benefits,14/04/2011,Housing Benefit Admin,WWG Housing Benefit,WARRINGTON BOROUGH COUNCIL,2020464198,"114,286.00"
Department for Work and Pensions,Employment Programmes,12/04/2011,YOUNG PERSON'S GUARANTEE,WWEG EMPLOYMENT PROGRAMMES,THE ROYAL SOCIETY OF WILDLIFE TRUSTS,2020378440,"114,150.00"
Department for Work and Pensions,Employment Programmes,12/04/2011,EP GENERIC PROVIDER PAYMENTS,WWEG EMPLOYMENT PROGRAMMES,WORKING LINKS,2020378783,"114,123.67"
Department for Work and Pensions,Employment Programmes,20/04/2011,YOUNG PERSON'S GUARANTEE,WWEG EMPLOYMENT PROGRAMMES,SURREY COUNTY COUNCIL,2020567497,"113,550.00"
Department for Work and Pensions,Jobcentre Plus,21/04/2011,EMPLOYMENT PROGRAMMES,Balance Sheet Payments,SKILLS TRAINING UK LTD,2020588575,"113,336.29"
Department for Work and Pensions,Corporate,11/04/2011,STAFF COSTS,Corporate and Support Services,XOR LTD,2020364865,"113,235.00"
Department for Work and Pensions,Jobcentre Plus,04/04/2011,COMPUTER SERVICES,Jobcentre Plus,ATOS ORIGIN IT SERVICES UK LTD,2020247325,"112,897.15"
Department for Work and Pensions,Housing Benefits,14/04/2011,Housing Benefit Admin,WWG Housing Benefit,THURROCK BOROUGH COUNCIL,2020464186,"112,469.00"
Department for Work and Pensions,Housing Benefits,14/04/2011,Housing Benefit Admin,WWG Housing Benefit,SLOUGH BOROUGH COUNCIL,2020464135,"112,375.00"
Department for Work and Pensions,Corporate,07/04/2011,COMPUTER SERVICES,Group Finance,ACCENTURE UK LTD,2020347184,"112,296.52"
Department for Work and Pensions,Housing Benefits,14/04/2011,Housing Benefit Admin,WWG Housing Benefit,HALTON BOROUGH COUNCIL,2020463986,"112,183.00"
Department for Work and Pensions,Employment Programmes,19/04/2011,RESIDENTIAL TRAINING,WWEG EMPLOYMENT PROGRAMMES,PORTLAND COLLEGE,2020487727,"112,069.00"
Department for Work and Pensions,Employment Programmes,21/04/2011,YOUNG PERSON'S GUARANTEE,WWEG EMPLOYMENT PROGRAMMES,RCT HOMES,2020587220,"111,900.00"
Department for Work and Pensions,Corporate,20/04/2011,APPS DEV,CHANGE MANAGEMENT DIRECTORATE,HP ENTERPRISE SERVICES UK LTD,2020520600,"111,628.05"
Department for Work and Pensions,Housing Benefits,14/04/2011,Housing Benefit Admin,WWG Housing Benefit,NEATH PORT TALBOT COUNTY BOROUGH COUNCIL,2020464065,"111,346.00"
Department for Work and Pensions,Jobcentre Plus,07/04/2011,EMPLOYMENT PROGRAMMES,Balance Sheet Payments,REED IN PARTNERSHIP,2020349806,"110,741.34"
Department for Work and Pensions,Housing Benefits,14/04/2011,Housing Benefit Admin,WWG Housing Benefit,ABERDEENSHIRE COUNCIL,2020463850,"110,675.00"
Department for Work and Pensions,Jobcentre Plus,18/04/2011,APPS DEV,Jobcentre Plus,HP ENTERPRISE SERVICES UK LTD,2020473925,"110,662.80"
Department for Work and Pensions,Corporate,07/04/2011,OTHER PROJECTS,Corporate and Support Services,BBC,2020347292,"110,176.97"
Department for Work and Pensions,Corporate,08/04/2011,COMPUTER SERVICES,Corporate IT ,ORANGE PCS LTD,2020356773,"110,164.13"
Department for Work and Pensions,Corporate,28/04/2011,ACCOMMODATION,Group Finance,TELEREAL TRILLIUM,2020687068,"110,139.94"
Department for Work and Pensions,Corporate,14/04/2011,CAPITAL GRANTS,Group Finance,PENDLE COMMUNITY CREDIT UNION,2020460588,"110,000.00"
Department for Work and Pensions,Housing Benefits,14/04/2011,Housing Benefit Admin,WWG Housing Benefit,FALKIRK DISTRICT COUNCIL,2020463969,"109,810.00"
Department for Work and Pensions,Housing Benefits,14/04/2011,Housing Benefit Admin,WWG Housing Benefit,NEWPORT CITY COUNCIL,2020464070,"109,795.00"
Department for Work and Pensions,Corporate,28/04/2011,ACCOMMODATION,Group Finance,TELEREAL TRILLIUM,2020687068,"109,685.22"
Department for Work and Pensions,Employment Programmes,11/04/2011,YOUNG PERSON'S GUARANTEE,WWEG EMPLOYMENT PROGRAMMES,WOLSELEY COMMUNITY ECONOMIC DEVELOPMENT TRUST,2020364858,"109,590.00"
Department for Work and Pensions,Employment Programmes,19/04/2011,JSP ESF DEL P COSTS,WWEG EMPLOYMENT PROGRAMMES,WORKING LINKS,2020490163,"109,340.00"
Department for Work and Pensions,Corporate,12/04/2011,MANAGEMENT CONSULTANCY,Group Finance,KPMG LLP,2020373203,"108,750.00"
Department for Work and Pensions,Employment Programmes,14/04/2011,YOUNG PERSON'S GUARANTEE,WWEG EMPLOYMENT PROGRAMMES,RCT HOMES,2020460855,"108,300.00"
Department for Work and Pensions,Employment Programmes,14/04/2011,YOUNG PERSON'S GUARANTEE,WWEG EMPLOYMENT PROGRAMMES,HULL CITY COUNCIL,2020458637,"108,000.00"
Department for Work and Pensions,Employment Programmes,28/04/2011,YOUNG PERSON'S GUARANTEE,WWEG EMPLOYMENT PROGRAMMES,BARNSLEY METROPOLITAN BOROUGH COUNCIL,2020673682,"108,000.00"
Department for Work and Pensions,Corporate,18/04/2011,APPS DEV,SHARED SERVICES,HP ENTERPRISE SERVICES UK LTD,2020473925,"107,775.78"
Department for Work and Pensions,Housing Benefits,14/04/2011,Housing Benefit Admin,WWG Housing Benefit,EAST LINDSEY DISTRICT COUNCIL,2020463954,"107,744.00"
Department for Work and Pensions,Housing Benefits,14/04/2011,Housing Benefit Admin,WWG Housing Benefit,HASTINGS BOROUGH COUNCIL,2020463993,"107,349.00"
Department for Work and Pensions,Employment Programmes,04/04/2011,YOUNG PERSON'S GUARANTEE,WWEG EMPLOYMENT PROGRAMMES,A4E LTD,2020247266,"106,970.00"
Department for Work and Pensions,"Pension, Disability Carers Services",15/04/2011,ACCOMMODATION,Pensions & Disability Carers Service ,TELEREAL TRILLIUM,2020469787,"106,357.56"
Department for Work and Pensions,Employment Programmes,19/04/2011,YOUNG PERSON'S GUARANTEE,WWEG EMPLOYMENT PROGRAMMES,GROUNDWORK WREXHAM & FLINTSHIRE,2020483319,"106,088.31"
Department for Work and Pensions,Employment Programmes,01/04/2011,WORKSTEP,WWEG EMPLOYMENT PROGRAMMES,SHAW TRUST LTD,2020244904,"106,000.00"
Department for Work and Pensions,Employment Programmes,19/04/2011,JSP ESF DEL P COSTS,WWEG EMPLOYMENT PROGRAMMES,ESG HOLDINGS LTD,2020482832,"105,820.19"
Department for Work and Pensions,Housing Benefits,14/04/2011,Housing Benefit Admin,WWG Housing Benefit,EAST AYRSHIRE COUNCIL FINANCE DEPARTMENT,2020463947,"105,756.00"
Department for Work and Pensions,Housing Benefits,14/04/2011,Housing Benefit Admin,WWG Housing Benefit,BRIDGEND COUNTY BOROUGH COUNCIL,2020463885,"105,740.00"
Department for Work and Pensions,Employment Programmes,14/04/2011,RESIDENTIAL TRAINING,WWEG EMPLOYMENT PROGRAMMES,QUEEN ALEXANDRA COLLEGE,2020460623,"105,676.66"
Department for Work and Pensions,Corporate,18/04/2011,APPS DEV,CHANGE MANAGEMENT DIRECTORATE,HP ENTERPRISE SERVICES UK LTD,2020473925,"105,502.90"
Department for Work and Pensions,"Pension, Disability Carers Services",07/04/2011,PRINTING SATIONERY IT CONSUMABLES,Pensions & Disability Carers Service ,XEROX UK LTD 3W,2020350414,"105,382.96"
Department for Work and Pensions,"Pension, Disability Carers Services",07/04/2011,APPS DEV,Pensions & Disability Carers Service ,HMRC,2020348352,"105,231.82"
Department for Work and Pensions,Employment Programmes,18/04/2011,EP GENERIC PROVIDER PAYMENTS,WWEG EMPLOYMENT PROGRAMMES,FOURSTAR EMPLOYMENT & SKILLS LTD,2020473678,"104,979.01"
Department for Work and Pensions,Employment Programmes,19/04/2011,JSP ESF DEL P COSTS,WWEG EMPLOYMENT PROGRAMMES,SEETEC BUSINESS TECHNOLOGY CENTRE LTD,2020489424,"104,180.90"
Department for Work and Pensions,Corporate,28/04/2011,ACCOMMODATION,Group Finance,TELEREAL TRILLIUM,2020687068,"103,817.43"
Department for Work and Pensions,Jobcentre Plus,14/04/2011,EMPLOYMENT PROGRAMMES,Balance Sheet Payments,TNG BUSINESS SUPPORT LTD.,2020461583,"103,563.40"
Department for Work and Pensions,Housing Benefits,14/04/2011,Housing Benefit Admin,WWG Housing Benefit,HARTLEPOOL BOROUGH COUNCIL,2020463992,"103,357.00"
Department for Work and Pensions,Employment Programmes,19/04/2011,JSP ESF DEL P COSTS,WWEG EMPLOYMENT PROGRAMMES,THE INTRAINING GROUP,2020489844,"103,282.16"
Department for Work and Pensions,Corporate,26/04/2011,POSTAGE,Group Finance,TNT UK LTD,2020660852,"121,632.00"
Department for Work and Pensions,Housing Benefits,14/04/2011,Housing Benefit Admin,WWG Housing Benefit,WEST DUNBARTONSHIRE COUNCIL,2020464208,"103,105.00"
Department for Work and Pensions,Employment Programmes,04/04/2011,YOUNG PERSON'S GUARANTEE,WWEG EMPLOYMENT PROGRAMMES,TBG LEARNING LTD,2020254483,"102,667.00"
Department for Work and Pensions,Housing Benefits,14/04/2011,Housing Benefit Admin,WWG Housing Benefit,HEREFORDSHIRE COUNCIL,2020463995,"102,338.00"
Department for Work and Pensions,Housing Benefits,14/04/2011,Housing Benefit Admin,WWG Housing Benefit,LONDON BOROUGH OF RICHMOND UPON THAMES,2020464041,"102,105.00"
Department for Work and Pensions,Jobcentre Plus,14/04/2011,EMPLOYMENT PROGRAMMES,Balance Sheet Payments,INGEUS UK LTD,2020458711,"102,103.38"
Department for Work and Pensions,Housing Benefits,14/04/2011,Housing Benefit Admin,WWG Housing Benefit,CITY OF YORK COUNCIL,2020463919,"101,543.00"
Department for Work and Pensions,Jobcentre Plus,07/04/2011,MANAGEMENT CONSULTANCY,Jobcentre Plus,CAPGEMINI UK PLC,2020347506,"101,341.50"
Department for Work and Pensions,Jobcentre Plus,21/04/2011,EMPLOYMENT PROGRAMMES,Balance Sheet Payments,SEETEC BUSINESS TECHNOLOGY CENTRE LTD,2020588543,"101,194.84"
Department for Work and Pensions,Employment Programmes,05/04/2011,NDDP,WWEG EMPLOYMENT PROGRAMMES,ACTION FOR EMPLOYMENTS,2020257365,"101,076.89"
Department for Work and Pensions,European Social Fund,19/04/2011,ESF NON-PREFUNDED EXPENDITURE,WWEG EUROPEAN SOCIAL FUND,WEST MERCIA PROBATION SERVICE,5000000550,"100,674.00"
Department for Work and Pensions,Housing Benefits,14/04/2011,Housing Benefit Admin,WWG Housing Benefit,SCARBOROUGH BOROUGH COUNCIL,2020464125,"100,215.00"
Department for Work and Pensions,Housing Benefits,14/04/2011,Housing Benefit Admin,WWG Housing Benefit,PRESTON BOROUGH COUNCIL,2020464102,"100,099.00"
Department for Work and Pensions,Corporate,05/04/2011,CAPITAL GRANTS,Group Finance,SOUTH YORKSHIRE CREDIT UNION,2020267249,"100,000.00"
Department for Work and Pensions,Corporate,20/04/2011,COMPUTER SERVICES,Corporate IT ,HP ENTERPRISE SERVICES UK LTD,2020520600,"100,000.00"
Department for Work and Pensions,Housing Benefits,14/04/2011,Housing Benefit Admin,WWG Housing Benefit,BATH & NORTH EAST SOMERSET COUNCIL,2020463866,"99,037.00"
Department for Work and Pensions,Housing Benefits,14/04/2011,Housing Benefit Admin,WWG Housing Benefit,ARUN DISTRICT COUNCIL,2020463856,"98,951.00"
Department for Work and Pensions,Employment Programmes,28/04/2011,YOUNG PERSON'S GUARANTEE,WWEG EMPLOYMENT PROGRAMMES,LANCASHIRE COUNTY COUNCIL,2020681567,"98,800.00"
Department for Work and Pensions,Jobcentre Plus,21/04/2011,EMPLOYMENT PROGRAMMES,Balance Sheet Payments,SHAW TRUST LTD,2020588555,"98,750.00"
Department for Work and Pensions,Housing Benefits,14/04/2011,Housing Benefit Admin,WWG Housing Benefit,KINGS LYNN & WEST NORFOLK BOROUGH COUNCIL,2020464008,"97,628.00"
Department for Work and Pensions,Employment Programmes,27/04/2011,YOUNG PERSON'S GUARANTEE,WWEG EMPLOYMENT PROGRAMMES,PERTH & KINROSS COUNCIL,2020669892,"97,500.00"
Department for Work and Pensions,Jobcentre Plus,05/04/2011,COMPUTER SERVICES,Jobcentre Plus,ATOS ORIGIN IT SERVICES UK LTD,2020257411,"97,264.37"
Department for Work and Pensions,Jobcentre Plus,04/04/2011,COMPUTER SERVICES,Jobcentre Plus,HP ENTERPRISE SERVICES UK LTD,2020251017,"97,145.17"
Department for Work and Pensions,Employment Programmes,19/04/2011,HELP FOR UNEMPLOYED PEOPLE OTHER,WWEG EMPLOYMENT PROGRAMMES,MON MENAI PARTNERSHIP,2020486801,"96,625.50"
Department for Work and Pensions,Employment Programmes,05/04/2011,YOUNG PERSON'S GUARANTEE,WWEG EMPLOYMENT PROGRAMMES,LONDON BOROUGH OF EALING,2020263725,"96,000.00"
Department for Work and Pensions,Housing Benefits,14/04/2011,Housing Benefit Admin,WWG Housing Benefit,COLCHESTER BOROUGH COUNCIL,2020463921,"95,771.00"
Department for Work and Pensions,Corporate,18/04/2011,APPS DEV,CHANGE MANAGEMENT DIRECTORATE,HP ENTERPRISE SERVICES UK LTD,2020473925,"95,729.18"
Department for Work and Pensions,Housing Benefits,14/04/2011,Housing Benefit Admin,WWG Housing Benefit,IPSWICH BOROUGH COUNCIL,2020464004,"95,545.00"
Department for Work and Pensions,Housing Benefits,14/04/2011,Housing Benefit Admin,WWG Housing Benefit,SOUTH SOMERSET DISTRICT COUNCIL,2020464151,"95,157.00"
Department for Work and Pensions,Employment Programmes,26/04/2011,YOUNG PERSON'S GUARANTEE,WWEG EMPLOYMENT PROGRAMMES,LONDON EAST CONNEXIONS PARTNERSHIP LTD,2020635372,"94,842.39"
Department for Work and Pensions,Corporate,21/04/2011,TELEPHONE AND POSTAGE,Group Finance,G3 WORLDWIDE MAIL UK LTD,2020581441,"94,380.22"
Department for Work and Pensions,Housing Benefits,14/04/2011,Housing Benefit Admin,WWG Housing Benefit,SWALE BOROUGH COUNCIL,2020464172,"93,818.00"
Department for Work and Pensions,European Social Fund,19/04/2011,ESF NON-PREFUNDED EXPENDITURE,WWEG EUROPEAN SOCIAL FUND,NATIONAL INSTITUTE OF ADULT CONTINUING EDUCATION NIACE,5000000543,"93,377.00"
Department for Work and Pensions,Housing Benefits,14/04/2011,Housing Benefit Admin,WWG Housing Benefit,GLOUCESTER CITY COUNCIL,2020463979,"93,271.00"
Department for Work and Pensions,Corporate,28/04/2011,ACCOMMODATION,SHARED SERVICES,TELEREAL TRILLIUM,2020687069,"93,184.99"
Department for Work and Pensions,Employment Programmes,05/04/2011,YOUNG PERSON'S GUARANTEE,WWEG EMPLOYMENT PROGRAMMES,RUSSELL COMMISSION IMPLEMENTATION BODY TA V,2020266117,"93,000.00"
Department for Work and Pensions,Employment Programmes,04/04/2011,YOUNG PERSON'S GUARANTEE,WWEG EMPLOYMENT PROGRAMMES,WILTSHIRE COUNCIL,2020254718,"92,939.24"
Department for Work and Pensions,Housing Benefits,14/04/2011,Housing Benefit Admin,WWG Housing Benefit,ROYAL BOROUGH OF KINGSTON UPON THAMES,2020464116,"92,853.00"
Department for Work and Pensions,Employment Programmes,04/04/2011,YOUNG PERSON'S GUARANTEE,WWEG EMPLOYMENT PROGRAMMES,DUDLEY METROPOLITAN BOROUGH COUNCIL,2020250364,"92,850.00"
Department for Work and Pensions,Jobcentre Plus,14/04/2011,EMPLOYMENT PROGRAMMES,Balance Sheet Payments,WORKING LINKS EMPLOYMENT LIMITED,2020461752,"92,706.61"
Department for Work and Pensions,Corporate,04/04/2011,TELEPHONE AND POSTAGE,WWG SUMMARY,ROYAL MAIL GROUP PLC,2020253702,"92,478.95"
Department for Work and Pensions,Corporate,01/04/2011,EU PROGRAMMES,WWG SUMMARY,NATIONAL FOUNDATION FOR EDUCATIONAL RESEARCH,410709,"91,655.00"
Department for Work and Pensions,Housing Benefits,14/04/2011,Housing Benefit Admin,WWG Housing Benefit,GREAT YARMOUTH COUNCIL,2020463982,"91,238.00"
Department for Work and Pensions,Housing Benefits,14/04/2011,Housing Benefit Admin,WWG Housing Benefit,BRAINTREE DISTRICT COUNCIL,2020463882,"91,224.00"
Department for Work and Pensions,Employment Programmes,11/04/2011,YOUNG PERSON'S GUARANTEE,WWEG EMPLOYMENT PROGRAMMES,RCT HOMES,2020364145,"91,200.00"
Department for Work and Pensions,Jobcentre Plus,14/04/2011,EMPLOYMENT PROGRAMMES,Balance Sheet Payments,WORKING LINKS,2020461748,"90,670.65"
Department for Work and Pensions,Jobcentre Plus,21/04/2011,EMPLOYMENT PROGRAMMES,Balance Sheet Payments,TOMORROWS PEOPLE TRUST LTD,2020589105,"90,059.60"
Department for Work and Pensions,Housing Benefits,14/04/2011,Housing Benefit Admin,WWG Housing Benefit,WAVENEY DISTRICT COUNCIL,2020464201,"89,606.00"
Department for Work and Pensions,Corporate,21/04/2011,POSTAGE,SHARED SERVICES,DX NETWORK SERVICES LTD,2020580572,"89,439.35"
Department for Work and Pensions,Corporate,19/04/2011,EU PROGRAMMES,WWG SUMMARY,EUROPEAN SCHOOL CULHAM,2020482834,"89,406.92"
Department for Work and Pensions,European Social Fund,04/04/2011,ESF NON-PREFUNDED EXPENDITURE,WWEG EUROPEAN SOCIAL FUND,CORNWALL COLLEGE,5000000522,"89,082.00"
Department for Work and Pensions,Housing Benefits,14/04/2011,Housing Benefit Admin,WWG Housing Benefit,LANCASTER CITY COUNCIL,2020464012,"88,544.00"
Department for Work and Pensions,Corporate,06/04/2011,CAPITAL GRANTS,Group Finance,RIVERSIDE HOUSING ASSOCIATION,2020329763,"88,510.00"
Department for Work and Pensions,Housing Benefits,14/04/2011,Housing Benefit Admin,WWG Housing Benefit,BURNLEY BOROUGH COUNCIL,2020463892,"88,067.00"
Department for Work and Pensions,Housing Benefits,14/04/2011,Housing Benefit Admin,WWG Housing Benefit,EASTBOURNE BOROUGH COUNCIL,2020463960,"87,969.00"
Department for Work and Pensions,Employment Programmes,11/04/2011,ND 18-24 GATEWAY,WWEG EMPLOYMENT PROGRAMMES,MANAGEMENT INTRODUCTIONS LTD,2020363560,"87,552.78"
Department for Work and Pensions,Housing Benefits,14/04/2011,Housing Benefit Admin,WWG Housing Benefit,SOUTH AYRSHIRE COUNCIL,2020464137,"87,382.00"
Department for Work and Pensions,"Pension, Disability Carers Services",04/04/2011,TELEPHONE AND POSTAGE,Pensions & Disability Carers Service ,ROYAL MAIL GROUP PLC,2020253702,"87,315.07"
Department for Work and Pensions,Employment Programmes,27/04/2011,YOUNG PERSON'S GUARANTEE,WWEG EMPLOYMENT PROGRAMMES,WILTSHIRE COUNCIL,2020670851,"87,261.28"
Department for Work and Pensions,Housing Benefits,14/04/2011,Housing Benefit Admin,WWG Housing Benefit,INVERCLYDE DISTRICT COUNCIL,2020464003,"86,800.00"
Department for Work and Pensions,Housing Benefits,14/04/2011,Housing Benefit Admin,WWG Housing Benefit,OXFORD CITY COUNCIL,2020464093,"86,447.00"
Department for Work and Pensions,Employment Programmes,28/04/2011,YOUNG PERSON'S GUARANTEE,WWEG EMPLOYMENT PROGRAMMES,LONDON BOROUGH OF LAMBETH LEMBETH FIRST,2020681588,"85,950.00"
Department for Work and Pensions,Housing Benefits,14/04/2011,Housing Benefit Admin,WWG Housing Benefit,FLINTSHIRE COUNTY COUNCIL,2020463973,"85,757.00"
Department for Work and Pensions,Housing Benefits,14/04/2011,Housing Benefit Admin,WWG Housing Benefit,PERTH & KINROSS COUNCIL,2020464096,"85,118.00"
Department for Work and Pensions,Housing Benefits,14/04/2011,Housing Benefit Admin,WWG Housing Benefit,POOLE BOROUGH COUNCIL,2020464099,"85,056.00"
Department for Work and Pensions,Employment Programmes,18/04/2011,YOUNG PERSON'S GUARANTEE,WWEG EMPLOYMENT PROGRAMMES,COMMUNITY ENTERPRISE DERBY CIC,2020472085,"85,050.00"
Department for Work and Pensions,Corporate,08/04/2011,PRINCES YOUTH TRUST,WWG SUMMARY,INSTITUTE FOR EMPLOYMENT STUDIES,2020355272,"85,000.00"
Department for Work and Pensions,Housing Benefits,14/04/2011,Housing Benefit Admin,WWG Housing Benefit,DARLINGTON BOROUGH COUNCIL,2020463935,"84,596.00"
Department for Work and Pensions,Housing Benefits,14/04/2011,Housing Benefit Admin,WWG Housing Benefit,BASINGSTOKE DISTRICT COUNCIL,2020463864,"84,281.00"
Department for Work and Pensions,Housing Benefits,14/04/2011,Housing Benefit Admin,WWG Housing Benefit,NUNEATON BOROUGH COUNCIL,2020464089,"83,851.00"
Department for Work and Pensions,Employment Programmes,18/04/2011,YOUNG PERSON'S GUARANTEE,WWEG EMPLOYMENT PROGRAMMES,LONDON BOROUGH OF EALING,2020474822,"83,700.00"
Department for Work and Pensions,Employment Programmes,12/04/2011,HELP FOR UNEMPLOYED PEOPLE OTHER,WWEG EMPLOYMENT PROGRAMMES,E & SE LONDON CITY STRATEGY PATHFINDER,2020370018,"83,660.00"
Department for Work and Pensions,Housing Benefits,14/04/2011,Housing Benefit Admin,WWG Housing Benefit,WYCOMBE DISTRICT COUNCIL,2020464227,"83,612.00"
Department for Work and Pensions,Employment Programmes,21/04/2011,YOUNG PERSON'S GUARANTEE,WWEG EMPLOYMENT PROGRAMMES,STOKE ON TRENT CITY COUNCIL,2020588624,"83,550.00"
Department for Work and Pensions,Housing Benefits,14/04/2011,Housing Benefit Admin,WWG Housing Benefit,DACORUM BOROUGH COUNCIL,2020463934,"83,545.00"
Department for Work and Pensions,Corporate,19/04/2011,APPS DEV,EG SUMMARY,HP ENTERPRISE SERVICES UK LTD,2020483520,"83,523.75"
Department for Work and Pensions,Corporate,15/04/2011,UNALLOCATED BUDGET GROUP,WWG SUMMARY,MOTABILITY,1004763,"83,337.00"
Department for Work and Pensions,Housing Benefits,14/04/2011,Housing Benefit Admin,WWG Housing Benefit,HUNTINGDON DISTRICT COUNCIL,2020464001,"83,110.00"
Department for Work and Pensions,Housing Benefits,14/04/2011,Housing Benefit Admin,WWG Housing Benefit,AYLESBURY VALE DISTRICT COUNCIL,2020463859,"83,036.00"
Department for Work and Pensions,Housing Benefits,14/04/2011,Housing Benefit Admin,WWG Housing Benefit,ASHFIELD DISTRICT COUNCIL,2020463857,"82,987.00"
Department for Work and Pensions,Housing Benefits,14/04/2011,Housing Benefit Admin,WWG Housing Benefit,NEW FOREST DISTRICT COUNCIL,2020464066,"82,865.00"
Department for Work and Pensions,Housing Benefits,14/04/2011,Housing Benefit Admin,WWG Housing Benefit,CHELMSFORD BOROUGH COUNCIL,2020463905,"82,804.00"
Department for Work and Pensions,Housing Benefits,14/04/2011,Housing Benefit Admin,WWG Housing Benefit,CANTERBURY CITY COUNCIL,2020463898,"82,650.00"
Department for Work and Pensions,Housing Benefits,14/04/2011,Housing Benefit Admin,WWG Housing Benefit,MANSFIELD DISTRICT COUNCIL,2020464052,"82,260.00"
Department for Work and Pensions,Corporate,06/04/2011,IS/IT,Group Finance,SPECIALIST COMPUTER CENTRES PLC,2020338508,"82,255.30"
Department for Work and Pensions,Corporate,19/04/2011,COMPUTER SERVICES,Corporate IT ,BT GLOBAL SERVICES,2020478891,"82,252.80"
Department for Work and Pensions,Housing Benefits,14/04/2011,Housing Benefit Admin,WWG Housing Benefit,CONWY COUNTY BOROUGH  COUNCIL,2020463923,"81,715.00"
Department for Work and Pensions,Housing Benefits,14/04/2011,Housing Benefit Admin,WWG Housing Benefit,PENDLE BOROUGH COUNCIL,2020464095,"81,549.00"
Department for Work and Pensions,"Pension, Disability Carers Services",12/04/2011,AOS CONTRACTED OUT SERVICES,Pensions & Disability Carers Service ,XEROX UK LIMITED,2020378785,"81,170.92"
Department for Work and Pensions,Corporate,19/04/2011,APPS DEV,EG SUMMARY,HP ENTERPRISE SERVICES UK LTD,2020483520,"81,096.80"
Department for Work and Pensions,Jobcentre Plus,14/04/2011,EMPLOYMENT PROGRAMMES,Balance Sheet Payments,BTCV ENTERPRISES LTD,2020455801,"80,982.33"
Department for Work and Pensions,Employment Programmes,06/04/2011,YOUNG PERSON'S GUARANTEE,WWEG EMPLOYMENT PROGRAMMES,LONDON BOROUGH OF LEWISHAM,2020315174,"80,850.00"
Department for Work and Pensions,Housing Benefits,14/04/2011,Housing Benefit Admin,WWG Housing Benefit,SHEPWAY DISTRICT COUNCIL,2020464132,"80,796.00"
Department for Work and Pensions,Employment Programmes,08/04/2011,YOUNG PERSON'S GUARANTEE,WWEG EMPLOYMENT PROGRAMMES,BRISTOL CITY COUNCIL,2020352730,"80,550.00"
Department for Work and Pensions,Employment Programmes,07/04/2011,PROGRESS TO WORK,WWEG EMPLOYMENT PROGRAMMES,THE LIVERPOOL SOCIAL PARTNERSHIP,2020350282,"80,495.19"
Department for Work and Pensions,Jobcentre Plus,21/04/2011,EMPLOYMENT PROGRAMMES,Balance Sheet Payments,REMPLOY,2020587228,"80,398.70"
Department for Work and Pensions,Housing Benefits,14/04/2011,Housing Benefit Admin,WWG Housing Benefit,CHESTERFIELD BOROUGH COUNCIL,2020463911,"80,324.00"
Department for Work and Pensions,Housing Benefits,14/04/2011,Housing Benefit Admin,WWG Housing Benefit,HAVANT BOROUGH COUNCIL,2020463994,"80,318.00"
Department for Work and Pensions,Housing Benefits,14/04/2011,Housing Benefit Admin,WWG Housing Benefit,SCOTTISH BORDERS COUNCIL,2020464126,"80,001.00"
Department for Work and Pensions,Corporate,28/04/2011,ACCOMMODATION,Group Finance,TELEREAL TRILLIUM,2020687068,"79,964.10"
Department for Work and Pensions,Jobcentre Plus,08/04/2011,OFFICE MACHINERY HIRE & MAINTENANCE,Jobcentre Plus,SONIC COMMUNICATIONS INT LTD,2020357696,"79,871.40"
Department for Work and Pensions,Housing Benefits,14/04/2011,Housing Benefit Admin,WWG Housing Benefit,CRAWLEY BOROUGH COUNCIL,2020463932,"79,563.00"
Department for Work and Pensions,Corporate,13/04/2011,APPS DEV,CHANGE MANAGEMENT DIRECTORATE,ACCENTURE,2020385717,"79,482.64"
Department for Work and Pensions,Housing Benefits,14/04/2011,Housing Benefit Admin,WWG Housing Benefit,WREXHAM COUNTY BOROUGH COUNCIL,2020464225,"79,405.00"
Department for Work and Pensions,Jobcentre Plus,19/04/2011,APPS DEV,Jobcentre Plus,HP ENTERPRISE SERVICES UK LTD,2020483520,"79,171.36"
Department for Work and Pensions,Housing Benefits,14/04/2011,Housing Benefit Admin,WWG Housing Benefit,TORFAEN BOROUGH COUNCIL,2020464189,"78,577.00"
Department for Work and Pensions,Housing Benefits,14/04/2011,Housing Benefit Admin,WWG Housing Benefit,CHERWELL DISTRICT COUNCIL,2020463907,"78,566.00"
Department for Work and Pensions,Housing Benefits,14/04/2011,Housing Benefit Admin,WWG Housing Benefit,BRECKLAND DISTRICT COUNCIL,2020463883,"78,508.00"
Department for Work and Pensions,Jobcentre Plus,14/04/2011,IS/IT,Jobcentre Plus,STERIA,2020461394,"78,501.58"
Department for Work and Pensions,Housing Benefits,14/04/2011,Housing Benefit Admin,WWG Housing Benefit,MAIDSTONE BOROUGH COUNCIL,2020464048,"78,478.00"
Department for Work and Pensions,Housing Benefits,14/04/2011,Housing Benefit Admin,WWG Housing Benefit,GWYNEDD COUNCIL,2020463984,"77,986.00"
Department for Work and Pensions,Corporate,05/04/2011,PROFESSIONAL FEES,Group Finance,LOVELLS,2020263732,"77,851.00"
Department for Work and Pensions,Employment Programmes,19/04/2011,YOUNG PERSON'S GUARANTEE,WWEG EMPLOYMENT PROGRAMMES,SOCIAL ENTERPRISE LONDON,2020489455,"77,850.00"
Department for Work and Pensions,Corporate,15/04/2011,PRINTING SATIONERY IT CONSUMABLES,Group Finance,XEROX UK LTD 3W,2020469996,"77,826.87"
Department for Work and Pensions,Employment Programmes,06/04/2011,YOUNG PERSON'S GUARANTEE,WWEG EMPLOYMENT PROGRAMMES,BARNARDOS,2020277480,"77,700.00"
Department for Work and Pensions,Housing Benefits,14/04/2011,Housing Benefit Admin,WWG Housing Benefit,WEST BERKSHIRE COUNCIL,2020464205,"77,607.00"
Department for Work and Pensions,Corporate,19/04/2011,COMPUTER SERVICES,Corporate IT ,HP ENTERPRISE SERVICES UK LTD,2020483520,"77,438.26"
Department for Work and Pensions,"Pension, Disability Carers Services",18/04/2011,APPS DEV,Pensions & Disability Carers Service ,HP ENTERPRISE SERVICES UK LTD,2020473925,"76,880.09"
Department for Work and Pensions,Housing Benefits,14/04/2011,Housing Benefit Admin,WWG Housing Benefit,WYRE BOROUGH COUNCIL,2020464228,"76,857.00"
Department for Work and Pensions,Housing Benefits,14/04/2011,Housing Benefit Admin,WWG Housing Benefit,DOVER DISTRICT COUNCIL,2020463942,"76,750.00"
Department for Work and Pensions,Housing Benefits,14/04/2011,Housing Benefit Admin,WWG Housing Benefit,CHARNWOOD BOROUGH COUNCIL,2020463904,"76,664.00"
Department for Work and Pensions,Housing Benefits,14/04/2011,Housing Benefit Admin,WWG Housing Benefit,VALE OF GLAMORGAN COUNCIL,2020464194,"76,596.00"
Department for Work and Pensions,Housing Benefits,14/04/2011,Housing Benefit Admin,WWG Housing Benefit,PEMBROKESHIRE COUNTY COUNCIL,2020464094,"76,544.00"
Department for Work and Pensions,Corporate,04/04/2011,EU PROGRAMMES,WWG SUMMARY,CITY OF SUNDERLAND COLLEGE,2020247875,"76,371.49"
Department for Work and Pensions,Housing Benefits,14/04/2011,Housing Benefit Admin,WWG Housing Benefit,TEIGNBRIDGE DISTRICT COUNCIL,2020464179,"75,813.00"
Department for Work and Pensions,Housing Benefits,14/04/2011,Housing Benefit Admin,WWG Housing Benefit,BASSETLAW DISTRICT COUNCIL,2020463865,"75,257.00"
Department for Work and Pensions,Corporate,18/04/2011,MISCELLANEOUS EXPENDITURE,EG SUMMARY,CENTRE FOR ECONOMIC & SOCIAL INCLUSION,2020472062,"75,000.00"
Department for Work and Pensions,Housing Benefits,14/04/2011,Housing Benefit Admin,WWG Housing Benefit,NORTH HERTFORDSHIRE DISTRICT COUNCIL,2020464076,"74,925.00"
Department for Work and Pensions,Jobcentre Plus,21/04/2011,EMPLOYMENT PROGRAMMES,Balance Sheet Payments,INGEUS UK LTD,2020581863,"74,427.60"
Department for Work and Pensions,Housing Benefits,14/04/2011,Housing Benefit Admin,WWG Housing Benefit,NEWCASTLE UNDER LYME BOROUGH COUNCIL,2020464069,"74,074.00"
Department for Work and Pensions,Employment Programmes,12/04/2011,EP GENERIC PROVIDER PAYMENTS,WWEG EMPLOYMENT PROGRAMMES,REED IN PARTNERSHIP,2020376688,"73,902.92"
Department for Work and Pensions,Housing Benefits,14/04/2011,Housing Benefit Admin,WWG Housing Benefit,EREWASH BOROUGH COUNCIL,2020463967,"73,888.00"
Department for Work and Pensions,Housing Benefits,14/04/2011,Housing Benefit Admin,WWG Housing Benefit,HYNDBURN BOROUGH COUNCIL,2020464002,"73,690.00"
Department for Work and Pensions,European Social Fund,19/04/2011,ESF NON-PREFUNDED EXPENDITURE,WWEG EUROPEAN SOCIAL FUND,WORKERS EDUCATIONAL ASSOCIATION EAST MIDLANDS REGION,5000000551,"73,623.00"
Department for Work and Pensions,Housing Benefits,14/04/2011,Housing Benefit Admin,WWG Housing Benefit,AMBER VALLEY BOROUGH COUNCIL,2020463853,"73,477.00"
Department for Work and Pensions,Corporate,28/04/2011,ACCOMMODATION,Group Finance,TELEREAL TRILLIUM,2020687068,"73,294.18"
Department for Work and Pensions,Housing Benefits,14/04/2011,Housing Benefit Admin,WWG Housing Benefit,FENLAND DISTRICT COUNCIL,2020463971,"73,019.00"
Department for Work and Pensions,Housing Benefits,14/04/2011,Housing Benefit Admin,WWG Housing Benefit,EXETER CITY COUNCIL,2020463968,"72,846.00"
Department for Work and Pensions,Housing Benefits,14/04/2011,Housing Benefit Admin,WWG Housing Benefit,LINCOLN CITY COUNCIL,2020464017,"72,808.00"
Department for Work and Pensions,Housing Benefits,14/04/2011,Housing Benefit Admin,WWG Housing Benefit,ANGUS COUNCIL,2020463854,"72,682.00"
Department for Work and Pensions,Employment Programmes,15/04/2011,YOUNG PERSON'S GUARANTEE,WWEG EMPLOYMENT PROGRAMMES,PROJECT SCOTLAND,2020468775,"72,450.00"
Department for Work and Pensions,Housing Benefits,14/04/2011,Housing Benefit Admin,WWG Housing Benefit,HARROGATE BOROUGH COUNCIL,2020463990,"72,421.00"
Department for Work and Pensions,Housing Benefits,14/04/2011,Housing Benefit Admin,WWG Housing Benefit,POWYS COUNTY COUNCIL,2020464101,"72,208.00"
Department for Work and Pensions,Corporate,05/04/2011,OTHER EXPENDITURE,Corporate and Support Services,COI TRADING FUND,2020258472,"72,075.13"
Department for Work and Pensions,Employment Programmes,15/04/2011,WORKSTEP,WWEG EMPLOYMENT PROGRAMMES,PURE INNOVATIONS,2020468777,"72,000.00"
Department for Work and Pensions,Housing Benefits,14/04/2011,Housing Benefit Admin,WWG Housing Benefit,WYRE FOREST DISTRICT COUNCIL,2020464229,"71,827.00"
Department for Work and Pensions,Corporate,04/04/2011,MISCELLANEOUS EXPENDITURE,EG SUMMARY,INSTITUTE FOR EMPLOYMENT STUDIES,2020251111,"71,670.00"
Department for Work and Pensions,Housing Benefits,14/04/2011,Housing Benefit Admin,WWG Housing Benefit,EAST STAFFORDSHIRE DISTRICT COUNCIL,2020463959,"71,233.00"
Department for Work and Pensions,Housing Benefits,14/04/2011,Housing Benefit Admin,WWG Housing Benefit,SEDGEMOOR DISTRICT COUNCIL,2020464127,"71,065.00"
Department for Work and Pensions,Housing Benefits,14/04/2011,Housing Benefit Admin,WWG Housing Benefit,SOUTH KESTEVEN DISTRICT COUNCIL,2020464144,"70,457.00"
Department for Work and Pensions,Corporate,04/04/2011,PROFESSIONAL FEES,Group Finance,VALUATION OFFICE AGENCY,2020254633,"70,370.00"
Department for Work and Pensions,Employment Programmes,19/04/2011,JSP ESF DEL P COSTS,WWEG EMPLOYMENT PROGRAMMES,REED IN PARTNERSHIP,2020488276,"70,133.66"
Department for Work and Pensions,Housing Benefits,14/04/2011,Housing Benefit Admin,WWG Housing Benefit,GEDLING BOROUGH COUNCIL,2020463978,"70,119.00"
Department for Work and Pensions,Housing Benefits,14/04/2011,Housing Benefit Admin,WWG Housing Benefit,HARLOW DISTRICT COUNCIL,2020463989,"69,793.00"
Department for Work and Pensions,Jobcentre Plus,21/04/2011,EMPLOYMENT PROGRAMMES,Balance Sheet Payments,KENNEDY SCOTT LTD,2020583755,"69,734.76"
Department for Work and Pensions,Housing Benefits,14/04/2011,Housing Benefit Admin,WWG Housing Benefit,WORTHING BOROUGH COUNCIL,2020464224,"69,308.00"
Department for Work and Pensions,Corporate,18/04/2011,COMPUTER SERVICES,Corporate and Support Services,HP ENTERPRISE SERVICES UK LTD,2020473925,"69,237.00"
Department for Work and Pensions,"Pension, Disability Carers Services",07/04/2011,CONTRACTED OUT OFFICE SERVICES,Pensions & Disability Carers Service ,CAPITA BUSINESS SERVICES LTD,2020347507,"69,227.09"
Department for Work and Pensions,Employment Programmes,04/04/2011,YOUNG PERSON'S GUARANTEE,WWEG EMPLOYMENT PROGRAMMES,EAST AYRSHIRE COUNCIL,2020250535,"69,150.00"
Department for Work and Pensions,Employment Programmes,07/04/2011,YOUNG PERSON'S GUARANTEE,WWEG EMPLOYMENT PROGRAMMES,HASTINGS BOROUGH COUNCIL,2020348336,"69,000.00"
Department for Work and Pensions,Housing Benefits,14/04/2011,Housing Benefit Admin,WWG Housing Benefit,CHELTENHAM BOROUGH COUNCIL,2020463906,"68,832.00"
Department for Work and Pensions,Corporate,18/04/2011,COMPUTER SERVICES,Corporate and Support Services,HP ENTERPRISE SERVICES UK LTD,2020473925,"68,663.20"
Department for Work and Pensions,Housing Benefits,14/04/2011,Housing Benefit Admin,WWG Housing Benefit,CAMBRIDGE CITY COUNCIL,2020463896,"68,579.00"
Department for Work and Pensions,Housing Benefits,14/04/2011,Housing Benefit Admin,WWG Housing Benefit,DENBIGHSHIRE COUNTY COUNCIL,2020463938,"68,208.00"
Department for Work and Pensions,Jobcentre Plus,07/04/2011,EMPLOYMENT PROGRAMMES,Balance Sheet Payments,TRAINING WEST LANCASHIRE LTD,2020350302,"68,120.42"
Department for Work and Pensions,Corporate,15/04/2011,Accomodation Costs,Group Finance,SOUTHERN ELECTRIC PLC,2020469604,"67,900.82"
Department for Work and Pensions,Housing Benefits,14/04/2011,Housing Benefit Admin,WWG Housing Benefit,GRAVESHAM BOROUGH COUNCIL,2020463981,"67,731.00"
Department for Work and Pensions,Employment Programmes,27/04/2011,YOUNG PERSON'S GUARANTEE,WWEG EMPLOYMENT PROGRAMMES,CREATIVE & CULTURAL SKILLS,2020666200,"67,650.00"
Department for Work and Pensions,Corporate,28/04/2011,ACCOMMODATION,Group Finance,TELEREAL TRILLIUM,2020687069,"67,381.52"
Department for Work and Pensions,Employment Programmes,12/04/2011,YOUNG PERSON'S GUARANTEE,WWEG EMPLOYMENT PROGRAMMES,CALDERDALE METROPOLITAN BOROUGH COUNCIL,2020368318,"67,350.00"
Department for Work and Pensions,Corporate,05/04/2011,IS/IT,Corporate IT ,SPECIALIST COMPUTER CENTRES PLC,2020267251,"67,293.60"
Department for Work and Pensions,"Pension, Disability Carers Services",04/04/2011,TELEPHONE AND POSTAGE,Pensions & Disability Carers Service ,ROYAL MAIL GROUP PLC,2020253702,"67,289.69"
Department for Work and Pensions,Corporate,08/04/2011,TEMPORARY (TEMP) STAFF COSTS,Corporate IT ,CAPITA RESOURCING LIMITED,2020353028,"67,248.47"
Department for Work and Pensions,Housing Benefits,14/04/2011,Housing Benefit Admin,WWG Housing Benefit,WEST LANCASHIRE DISTRICT COUNCIL,2020464209,"66,807.00"
Department for Work and Pensions,Jobcentre Plus,21/04/2011,EMPLOYMENT PROGRAMMES,Balance Sheet Payments,SHAW TRUST LTD,2020588553,"66,666.50"
Department for Work and Pensions,Housing Benefits,14/04/2011,Housing Benefit Admin,WWG Housing Benefit,BROXBOURNE BOROUGH COUNCIL,2020463890,"66,664.00"
Department for Work and Pensions,Employment Programmes,21/04/2011,YOUNG PERSON'S GUARANTEE,WWEG EMPLOYMENT PROGRAMMES,COVENTRY CITY COUNCIL,2020578122,"66,450.00"
Department for Work and Pensions,Housing Benefits,14/04/2011,Housing Benefit Admin,WWG Housing Benefit,GUILDFORD BOROUGH COUNCIL,2020463983,"66,363.00"
Department for Work and Pensions,Housing Benefits,14/04/2011,Housing Benefit Admin,WWG Housing Benefit,WARWICK DISTRICT COUNCIL,2020464199,"66,314.00"
Department for Work and Pensions,Housing Benefits,14/04/2011,Housing Benefit Admin,WWG Housing Benefit,REIGATE & BANSTEAD BOROUGH COUNCIL,2020464106,"66,240.00"
Department for Work and Pensions,Housing Benefits,14/04/2011,Housing Benefit Admin,WWG Housing Benefit,EAST DEVON DISTRICT COUNCIL,2020463949,"66,196.00"
Department for Work and Pensions,Housing Benefits,14/04/2011,Housing Benefit Admin,WWG Housing Benefit,ASHFORD BOROUGH COUNCIL,2020463858,"66,138.00"
Department for Work and Pensions,Corporate,13/04/2011,Accomodation Costs,SHARED SERVICES,COMPANIES HOUSE,1004759,"65,271.27"
Department for Work and Pensions,Employment Programmes,18/04/2011,YOUNG PERSON'S GUARANTEE,WWEG EMPLOYMENT PROGRAMMES,PETERBOROUGH CITY COUNCIL,2020475584,"65,250.00"
Department for Work and Pensions,Housing Benefits,14/04/2011,Housing Benefit Admin,WWG Housing Benefit,TAUNTON DEANE BOROUGH COUNCIL,2020464178,"65,246.00"
Department for Work and Pensions,European Social Fund,04/04/2011,ESF NON-PREFUNDED EXPENDITURE,WWEG EUROPEAN SOCIAL FUND,UNIVERSITY OF SUNDERLAND,5000000527,"65,232.00"
Department for Work and Pensions,Corporate,04/04/2011,PROFESSIONAL FEES,WWG SUMMARY,GUYS & ST THOMAS NHS FOUNDATION TRUST,2020250872,"65,225.00"
Department for Work and Pensions,Housing Benefits,14/04/2011,Housing Benefit Admin,WWG Housing Benefit,NORTH DEVON DISTRICT COUNCIL,2020464072,"64,957.00"
Department for Work and Pensions,European Social Fund,19/04/2011,ESF NON-PREFUNDED EXPENDITURE,WWEG EUROPEAN SOCIAL FUND,TYNE & WEAR CITY STRATEGY PARTNERSHIP,5000000549,"64,928.00"
Department for Work and Pensions,Corporate,08/04/2011,MISCELLANEOUS EXPENDITURE,EG SUMMARY,UNIVERSITY OF WESTMINSTER PSI,2020357889,"64,650.80"
Department for Work and Pensions,Housing Benefits,14/04/2011,Housing Benefit Admin,WWG Housing Benefit,WORCESTER CITY COUNCIL,2020464223,"64,477.00"
Department for Work and Pensions,Employment Programmes,19/04/2011,JSP ESF DEL P COSTS,WWEG EMPLOYMENT PROGRAMMES,THE INTRAINING GROUP,2020489844,"64,361.88"
Department for Work and Pensions,Corporate,11/04/2011,STAFF COSTS,Corporate IT ,QA LTD,2020363951,"64,240.00"
Department for Work and Pensions,Corporate,28/04/2011,ACCOMMODATION,Group Finance,TELEREAL TRILLIUM,2020687070,"64,239.04"
Department for Work and Pensions,Housing Benefits,14/04/2011,Housing Benefit Admin,WWG Housing Benefit,WELWYN HATFIELD DISTRICT COUNCIL,2020464204,"64,239.00"
Department for Work and Pensions,Corporate,18/04/2011,IS/IT,Corporate IT ,SPECIALIST COMPUTER CENTRES PLC,2020476271,"64,155.10"
Department for Work and Pensions,Housing Benefits,14/04/2011,Housing Benefit Admin,WWG Housing Benefit,NORTH NORFOLK DISTRICT COUNCIL,2020464080,"64,072.00"
Department for Work and Pensions,Housing Benefits,14/04/2011,Housing Benefit Admin,WWG Housing Benefit,MENDIP DISTRICT COUNCIL,2020464055,"64,055.00"
Department for Work and Pensions,Housing Benefits,14/04/2011,Housing Benefit Admin,WWG Housing Benefit,CITY OF CARLISLE DISTRICT COUNCIL,2020463916,"63,983.00"
Department for Work and Pensions,Housing Benefits,14/04/2011,Housing Benefit Admin,WWG Housing Benefit,WINDSOR & MAIDENHEAD BOROUGH COUNCIL,2020464218,"63,911.00"
Department for Work and Pensions,Corporate,11/04/2011,CAPITAL GRANTS,Group Finance,BIRMINGHAM CREDIT UNION DEVELOPMENT AGENCY LTD,2020359821,"63,500.00"
Department for Work and Pensions,Housing Benefits,14/04/2011,Housing Benefit Admin,WWG Housing Benefit,BLAENAU GWENT COUNTY BOROUGH COUNCIL,2020463872,"63,461.00"
Department for Work and Pensions,Employment Programmes,20/04/2011,YOUNG PERSON'S GUARANTEE,WWEG EMPLOYMENT PROGRAMMES,LONDON BOROUGH OF ENFIELD,2020541299,"63,450.00"
Department for Work and Pensions,Housing Benefits,14/04/2011,Housing Benefit Admin,WWG Housing Benefit,EPPING FOREST DISTRICT COUNCIL,2020463965,"63,296.00"
Department for Work and Pensions,Employment Programmes,12/04/2011,RESIDENTIAL TRAINING,WWEG EMPLOYMENT PROGRAMMES,RNIB,2020376701,"63,250.00"
Department for Work and Pensions,Housing Benefits,14/04/2011,Housing Benefit Admin,WWG Housing Benefit,CANNOCK CHASE DISTRICT COUNCIL,2020463897,"63,108.00"
Department for Work and Pensions,Housing Benefits,14/04/2011,Housing Benefit Admin,WWG Housing Benefit,HERTSMERE BOROUGH COUNCIL,2020463996,"62,878.00"
Department for Work and Pensions,Employment Programmes,05/04/2011,NDDP,WWEG EMPLOYMENT PROGRAMMES,SEETEC,2020267206,"62,868.68"
Department for Work and Pensions,Housing Benefits,14/04/2011,Housing Benefit Admin,WWG Housing Benefit,ARGYLL & BUTE COUNCIL,2020463855,"62,865.00"
Department for Work and Pensions,Employment Programmes,20/04/2011,YOUNG PERSON'S GUARANTEE,WWEG EMPLOYMENT PROGRAMMES,LONDON BOROUGH OF LEWISHAM SOUTH BANK EMPLOYERS,2020541300,"62,817.51"
Department for Work and Pensions,Employment Programmes,05/04/2011,YOUNG PERSON'S GUARANTEE,WWEG EMPLOYMENT PROGRAMMES,CREATIVE & CULTURAL SKILLS,2020258486,"62,700.00"
Department for Work and Pensions,Employment Programmes,27/04/2011,YOUNG PERSON'S GUARANTEE,WWEG EMPLOYMENT PROGRAMMES,MIDLOTHIAN COUNCIL,2020669522,"62,400.00"
Department for Work and Pensions,Employment Programmes,06/04/2011,YOUNG PERSON'S GUARANTEE,WWEG EMPLOYMENT PROGRAMMES,REDCAR & CLEVELAND BOROUGH COUNCIL,2020329743,"62,100.00"
Department for Work and Pensions,Corporate,08/04/2011,IS/IT,Corporate and Support Services,SPECIALIST COMPUTER CENTRES PLC,2020357701,"62,089.99"
Department for Work and Pensions,Corporate,08/04/2011,TEMPORARY (TEMP) STAFF COSTS,Corporate IT ,CAPITA RESOURCING LIMITED,2020353028,"61,904.21"
Department for Work and Pensions,Housing Benefits,14/04/2011,Housing Benefit Admin,WWG Housing Benefit,ALLERDALE DISTRICT COUNCIL,2020463852,"61,755.00"
Department for Work and Pensions,Corporate,14/04/2011,PROFESSIONAL FEES,Corporate IT ,THE RESEARCH BOARD INC,3004348,"61,660.00"
Department for Work and Pensions,Corporate,19/04/2011,COMPUTER SERVICES,Corporate IT ,HP ENTERPRISE SERVICES UK LTD,2020483520,"61,591.28"
Department for Work and Pensions,Housing Benefits,14/04/2011,Housing Benefit Admin,WWG Housing Benefit,WEALDEN DISTRICT COUNCIL,2020464203,"61,582.00"
Department for Work and Pensions,Housing Benefits,14/04/2011,Housing Benefit Admin,WWG Housing Benefit,NEWARK DISTRICT COUNCIL,2020464067,"61,494.00"
Department for Work and Pensions,Corporate,18/04/2011,APPS DEV,Group Finance,HP ENTERPRISE SERVICES UK LTD,2020473925,"60,843.15"
Department for Work and Pensions,Housing Benefits,14/04/2011,Housing Benefit Admin,WWG Housing Benefit,TONBRIDGE & MALLING DISTRICT COUNCIL,2020464187,"60,672.00"
Department for Work and Pensions,Jobcentre Plus,14/04/2011,EMPLOYMENT PROGRAMMES,Balance Sheet Payments,RBLI ROYAL BRITISH LEGION INDUSTRIES LTD,2020460854,"60,642.79"
Department for Work and Pensions,Housing Benefits,14/04/2011,Housing Benefit Admin,WWG Housing Benefit,CHICHESTER DISTRICT COUNCIL,2020463912,"60,573.00"
Department for Work and Pensions,Housing Benefits,14/04/2011,Housing Benefit Admin,WWG Housing Benefit,EAST HERTFORDSHIRE DISTRICT COUNCIL,2020463953,"60,402.00"
Department for Work and Pensions,Employment Programmes,08/04/2011,YOUNG PERSON'S GUARANTEE,WWEG EMPLOYMENT PROGRAMMES,LONDON BOROUGH OF ENFIELD,2020356212,"60,150.00"
Department for Work and Pensions,Corporate,07/04/2011,CAPITAL GRANTS,Group Finance,SOUTH YORKSHIRE CREDIT UNION,2020350148,"60,000.00"
Department for Work and Pensions,Housing Benefits,14/04/2011,Housing Benefit Admin,WWG Housing Benefit,GOSPORT BOROUGH COUNCIL,2020463980,"59,919.00"
Department for Work and Pensions,European Social Fund,20/04/2011,MA ESF(D) LA NON-PREFUNDED EXPENDITURE,WWEG EUROPEAN SOCIAL FUND,KNOWSLEY METROPOLITIAN BOROUGH COUNCIL,5000000552,"59,845.00"
Department for Work and Pensions,Corporate,28/04/2011,COMPUTER SERVICES,Corporate IT ,HMRC,2020678350,"59,764.40"
Department for Work and Pensions,Housing Benefits,14/04/2011,Housing Benefit Admin,WWG Housing Benefit,WATFORD BOROUGH COUNCIL,2020464200,"59,615.00"
Department for Work and Pensions,Employment Programmes,27/04/2011,YOUNG PERSON'S GUARANTEE,WWEG EMPLOYMENT PROGRAMMES,BLACK COUNTRY ACADEMY,2020665883,"59,522.21"
Department for Work and Pensions,Housing Benefits,14/04/2011,Housing Benefit Admin,WWG Housing Benefit,STEVENAGE BOROUGH COUNCIL,2020464162,"59,462.00"
Department for Work and Pensions,Employment Programmes,27/04/2011,YOUNG PERSON'S GUARANTEE,WWEG EMPLOYMENT PROGRAMMES,NEATH PORT TALBOT COUNTY BOROUGH COUNCIL,2020669679,"59,400.00"
Department for Work and Pensions,Housing Benefits,14/04/2011,Housing Benefit Admin,WWG Housing Benefit,SOUTH NORFOLK DISTRICT COUNCIL,2020464147,"59,382.00"
Department for Work and Pensions,Housing Benefits,14/04/2011,Housing Benefit Admin,WWG Housing Benefit,SUFFOLK COASTAL DISTRICT COUNCIL,2020464169,"59,230.00"
Department for Work and Pensions,Corporate,18/04/2011,APPS DEV,Corporate and Support Services,HP ENTERPRISE SERVICES UK LTD,2020473925,"59,201.83"
Department for Work and Pensions,Housing Benefits,14/04/2011,Housing Benefit Admin,WWG Housing Benefit,EAST LOTHIAN DISTRICT COUNCIL,2020463955,"58,888.00"
Department for Work and Pensions,Jobcentre Plus,21/04/2011,EMPLOYMENT PROGRAMMES,Balance Sheet Payments,CAREERS DEVELOPMENT GROUP,2020578060,"58,886.91"
Department for Work and Pensions,Corporate,20/04/2011,TEMPORARY (TEMP) STAFF COSTS,Corporate IT ,CAPITA RESOURCING LIMITED,2020505569,"58,786.09"
Department for Work and Pensions,Jobcentre Plus,27/04/2011,Accomodation Costs,Jobcentre Plus,LAND REGISTRY,1004778,"58,076.34"
Department for Work and Pensions,Housing Benefits,14/04/2011,Housing Benefit Admin,WWG Housing Benefit,BRACKNELL FOREST BOROUGH COUNCIL,2020463880,"57,945.00"
Department for Work and Pensions,Housing Benefits,14/04/2011,Housing Benefit Admin,WWG Housing Benefit,ROTHER DISTRICT COUNCIL,2020464114,"57,903.00"
Department for Work and Pensions,European Social Fund,19/04/2011,ESF NON-PREFUNDED EXPENDITURE,WWEG EUROPEAN SOCIAL FUND,LIVERPOOL CHAMBER OF COMMERCE,5000000541,"57,516.00"
Department for Work and Pensions,Housing Benefits,14/04/2011,Housing Benefit Admin,WWG Housing Benefit,BROXTOWE BOROUGH COUNCIL,2020463891,"57,302.00"
Department for Work and Pensions,Housing Benefits,14/04/2011,Housing Benefit Admin,WWG Housing Benefit,STRATFORD ON AVON DISTRICT COUNCIL,2020464167,"57,238.00"
Department for Work and Pensions,Corporate,19/04/2011,APPS DEV,Universal Credit,HP ENTERPRISE SERVICES UK LTD,2020483520,"57,226.05"
Department for Work and Pensions,Housing Benefits,14/04/2011,Housing Benefit Admin,WWG Housing Benefit,RUGBY BOROUGH COUNCIL,2020464117,"57,209.00"
Department for Work and Pensions,Employment Programmes,01/04/2011,YOUNG PERSON'S GUARANTEE,WWEG EMPLOYMENT PROGRAMMES,IXION HOLDINGS LTD,2020243932,"57,150.00"
Department for Work and Pensions,Corporate,18/04/2011,APPS DEV,CHANGE MANAGEMENT DIRECTORATE,HP ENTERPRISE SERVICES UK LTD,2020473925,"57,041.85"
Department for Work and Pensions,Corporate,04/04/2011,TEMPORARY (TEMP) STAFF COSTS,Corporate IT ,CAPITA RESOURCING LIMITED,2020247837,"56,889.30"
Department for Work and Pensions,Housing Benefits,14/04/2011,Housing Benefit Admin,WWG Housing Benefit,BARROW BOROUGH COUNCIL,2020463862,"56,861.00"
Department for Work and Pensions,Corporate,13/04/2011,TOTAL SUPPLIES & SERVICES,Corporate and Support Services,ASE CORPORATE EYECARE LTD,2020385921,"56,796.48"
Department for Work and Pensions,Housing Benefits,14/04/2011,Housing Benefit Admin,WWG Housing Benefit,ST EDMUNDSBURY BOROUGH COUNCIL,2020464158,"56,680.00"
Department for Work and Pensions,Corporate,14/04/2011,APPS DEV,CHANGE MANAGEMENT DIRECTORATE,ACCENTURE,2020455614,"56,498.14"
Department for Work and Pensions,Housing Benefits,14/04/2011,Housing Benefit Admin,WWG Housing Benefit,CHORLEY BOROUGH COUNCIL,2020463914,"56,458.00"
Department for Work and Pensions,Corporate,27/04/2011,EMPLOYMENT ZONES,Group Finance,CITY SAVE CREDIT UNION,2020666174,"56,250.00"
Department for Work and Pensions,Housing Benefits,14/04/2011,Housing Benefit Admin,WWG Housing Benefit,LEWES DISTRICT COUNCIL,2020464015,"56,193.00"
Department for Work and Pensions,Housing Benefits,14/04/2011,Housing Benefit Admin,WWG Housing Benefit,BOROUGH OF REDDITCH,2020463875,"56,169.00"
Department for Work and Pensions,Employment Programmes,18/04/2011,YOUNG PERSON'S GUARANTEE,WWEG EMPLOYMENT PROGRAMMES,RESOURCE PLUS FUTURE JOB FUND,2020475810,"56,094.72"
Department for Work and Pensions,Corporate,14/04/2011,IS/IT,Group Finance,COMPUTACENTER UK LTD,2020456140,"56,008.32"
Department for Work and Pensions,Housing Benefits,14/04/2011,Housing Benefit Admin,WWG Housing Benefit,TUNBRIDGE WELLS BOROUGH COUNCIL,2020464192,"55,959.00"
Department for Work and Pensions,Employment Programmes,18/04/2011,YOUNG PERSON'S GUARANTEE,WWEG EMPLOYMENT PROGRAMMES,LONDON BOROUGH OF ENFIELD,2020474823,"55,950.00"
Department for Work and Pensions,Housing Benefits,14/04/2011,Housing Benefit Admin,WWG Housing Benefit,RUSHMOOR BOROUGH COUNCIL,2020464120,"55,901.00"
Department for Work and Pensions,Housing Benefits,14/04/2011,Housing Benefit Admin,WWG Housing Benefit,WYCHAVON DISTRICT COUNCIL,2020464226,"55,778.00"
Department for Work and Pensions,Employment Programmes,04/04/2011,JSP ESF DEL P COSTS,WWEG EMPLOYMENT PROGRAMMES,INGEUS UK LTD,2020251108,"55,677.23"
Department for Work and Pensions,Housing Benefits,14/04/2011,Housing Benefit Admin,WWG Housing Benefit,STROUD DISTRICT COUNCIL,2020464168,"55,411.00"
Department for Work and Pensions,Corporate,08/04/2011,TEMPORARY (TEMP) STAFF COSTS,Corporate IT ,CAPITA RESOURCING LIMITED,2020353028,"55,212.76"
Department for Work and Pensions,Employment Programmes,08/04/2011,YOUNG PERSON'S GUARANTEE,WWEG EMPLOYMENT PROGRAMMES,REDCAR & CLEVELAND BOROUGH COUNCIL,2020357226,"55,200.00"
Department for Work and Pensions,Housing Benefits,14/04/2011,Housing Benefit Admin,WWG Housing Benefit,ELMBRIDGE BOROUGH COUNCIL,2020463964,"55,151.00"
Department for Work and Pensions,Employment Programmes,19/04/2011,YOUNG PERSON'S GUARANTEE,WWEG EMPLOYMENT PROGRAMMES,RENFREWSHIRE COUNCIL,2020488283,"55,130.15"
Department for Work and Pensions,Employment Programmes,20/04/2011,YOUNG PERSON'S GUARANTEE,WWEG EMPLOYMENT PROGRAMMES,CORNWALL COUNCIL,2020505737,"55,050.00"
Department for Work and Pensions,Corporate,04/04/2011,EMPLOYMENT ZONES,Group Finance,THE FIVE LAMPS ORGANISATION,2020254498,"54,840.00"
Department for Work and Pensions,Housing Benefits,14/04/2011,Housing Benefit Admin,WWG Housing Benefit,SOUTH RIBBLE BOROUGH COUNCIL C,2020464150,"54,828.00"
Department for Work and Pensions,Jobcentre Plus,07/04/2011,PRINTING SATIONERY IT CONSUMABLES,Jobcentre Plus,XEROX UK LTD 3W,2020350414,"54,747.55"
Department for Work and Pensions,Housing Benefits,14/04/2011,Housing Benefit Admin,WWG Housing Benefit,WEST LINDSEY DISTRICT COUNCIL,2020464210,"54,699.00"
Department for Work and Pensions,Corporate,18/04/2011,APPS DEV,CHANGE MANAGEMENT DIRECTORATE,HP ENTERPRISE SERVICES UK LTD,2020473925,"54,662.56"
Department for Work and Pensions,Corporate,08/04/2011,IS/IT,Corporate IT ,SPECIALIST COMPUTER CENTRES PLC,2020357701,"54,551.13"
Department for Work and Pensions,Housing Benefits,14/04/2011,Housing Benefit Admin,WWG Housing Benefit,BOROUGH OF WELLINGBOROUGH,2020463877,"54,483.00"
Department for Work and Pensions,Housing Benefits,14/04/2011,Housing Benefit Admin,WWG Housing Benefit,EASTLEIGH BOROUGH COUNCIL,2020463961,"54,293.00"
Department for Work and Pensions,Housing Benefits,14/04/2011,Housing Benefit Admin,WWG Housing Benefit,TEST VALLEY BOROUGH COUNCIL,2020464181,"54,275.00"
Department for Work and Pensions,Housing Benefits,14/04/2011,Housing Benefit Admin,WWG Housing Benefit,MIDLOTHIAN COUNCIL,2020464061,"54,224.00"
Department for Work and Pensions,Housing Benefits,14/04/2011,Housing Benefit Admin,WWG Housing Benefit,BOLSOVER DISTRICT COUNCIL,2020463873,"54,204.00"
Department for Work and Pensions,European Social Fund,19/04/2011,ESF NON-PREFUNDED EXPENDITURE,WWEG EUROPEAN SOCIAL FUND,IMPACT HOUSING ASSOCIATION,5000000540,"54,135.00"
Department for Work and Pensions,Corporate,04/04/2011,MISCELLANEOUS EXPENDITURE,EG SUMMARY,NATCEN,2020253013,"54,123.00"
Department for Work and Pensions,Jobcentre Plus,07/04/2011,EMPLOYMENT PROGRAMMES,Balance Sheet Payments,CAREERS DEVELOPMENT GROUP,2020347509,"54,025.02"
Department for Work and Pensions,"Pension, Disability Carers Services",04/04/2011,Accomodation Costs,Pensions & Disability Carers Service ,GVA GRIMLEY LTD,2020250873,"54,000.00"
Department for Work and Pensions,Housing Benefits,14/04/2011,Housing Benefit Admin,WWG Housing Benefit,DARTFORD BOROUGH COUNCIL,2020463936,"53,981.00"
Department for Work and Pensions,Corporate,04/04/2011,PROFESSIONAL FEES,Corporate and Support Services,TNS BMRB,2020254530,"53,900.00"
Department for Work and Pensions,Housing Benefits,14/04/2011,Housing Benefit Admin,WWG Housing Benefit,HIGH PEAK BOROUGH COUNCIL,2020463997,"53,861.00"
Department for Work and Pensions,Corporate,19/04/2011,NETWORK,Corporate IT ,BT GLOBAL SERVICES,2020478891,"53,824.80"
Department for Work and Pensions,Employment Programmes,15/04/2011,YOUNG PERSON'S GUARANTEE,WWEG EMPLOYMENT PROGRAMMES,NEW TESTAMENT ASSEMBLY OPEN DOOR CONSORTIUM,2020468446,"53,700.00"
Department for Work and Pensions,Housing Benefits,14/04/2011,Housing Benefit Admin,WWG Housing Benefit,KETTERING BOROUGH COUNCIL,2020464007,"53,668.00"
Department for Work and Pensions,Corporate,18/04/2011,MISCELLANEOUS EXPENDITURE,EG SUMMARY,MDRC,3004349,"53,505.76"
Department for Work and Pensions,Housing Benefits,14/04/2011,Housing Benefit Admin,WWG Housing Benefit,STAFFORD BOROUGH COUNCIL,2020464160,"53,477.00"
Department for Work and Pensions,Corporate,21/04/2011,Consultancy Fees,LSPG,FIELD FISHER WATERHOUSE LLP,2020581045,"53,368.69"
Department for Work and Pensions,Jobcentre Plus,07/04/2011,EMPLOYMENT PROGRAMMES,Balance Sheet Payments,WORKING LINKS,2020350406,"53,361.63"
Department for Work and Pensions,Employment Programmes,04/04/2011,YOUNG PERSON'S GUARANTEE,WWEG EMPLOYMENT PROGRAMMES,RESOURCE PLUS FUTURE JOB FUND,2020253679,"53,319.20"
Department for Work and Pensions,Jobcentre Plus,21/04/2011,EMPLOYMENT PROGRAMMES,Balance Sheet Payments,TNG BUSINESS SUPPORT LTD.,2020589099,"53,221.12"
Department for Work and Pensions,Housing Benefits,14/04/2011,Housing Benefit Admin,WWG Housing Benefit,ST ALBANS DISTRICT COUNCIL,2020464157,"53,217.00"
Department for Work and Pensions,Employment Programmes,26/04/2011,JSP ESF DEL P COSTS,WWEG EMPLOYMENT PROGRAMMES,INGEUS UK LTD,2020617717,"53,187.70"
Department for Work and Pensions,Corporate,04/04/2011,COMPUTER SERVICES,Corporate IT ,AMTEC CONSULTING GROUP,2020247308,"53,066.74"
Department for Work and Pensions,Jobcentre Plus,14/04/2011,EMPLOYMENT PROGRAMMES,Balance Sheet Payments,TNG NETWORK LTD,2020461588,"53,020.14"
Department for Work and Pensions,Employment Programmes,04/04/2011,FND,WWEG EMPLOYMENT PROGRAMMES,REMPLOY LTD,2020253677,"52,745.00"
Department for Work and Pensions,Housing Benefits,14/04/2011,Housing Benefit Admin,WWG Housing Benefit,SEVENOAKS DISTRICT COUNCIL,2020464130,"52,703.00"
Department for Work and Pensions,Employment Programmes,14/04/2011,YOUNG PERSON'S GUARANTEE,WWEG EMPLOYMENT PROGRAMMES,STRIDE SHARP TRADING LEICESTER LTD,2020461399,"52,687.94"
Department for Work and Pensions,Housing Benefits,14/04/2011,Housing Benefit Admin,WWG Housing Benefit,NORTH EAST DERBYSHIRE DISTRICT COUNCIL,2020464074,"52,479.00"
Department for Work and Pensions,Housing Benefits,14/04/2011,Housing Benefit Admin,WWG Housing Benefit,VALE OF WHITE HORSE DISTRICT COUNCIL,2020464195,"52,472.00"
Department for Work and Pensions,Housing Benefits,14/04/2011,Housing Benefit Admin,WWG Housing Benefit,WEYMOUTH & PORTLAND BOROUGH COUNCIL,2020464214,"52,141.00"
Department for Work and Pensions,Employment Programmes,20/04/2011,YOUNG PERSON'S GUARANTEE,WWEG EMPLOYMENT PROGRAMMES,NATIONAL ASSOCIATION OF CITIZENS ADVICE BUREAUX,2020550899,"52,050.00"
Department for Work and Pensions,Housing Benefits,14/04/2011,Housing Benefit Admin,WWG Housing Benefit,BROADLAND DISTRICT COUNCIL,2020463888,"51,871.00"
Department for Work and Pensions,Corporate,18/04/2011,APPS DEV,Corporate IT ,HP ENTERPRISE SERVICES UK LTD,2020473925,"51,859.09"
Department for Work and Pensions,Corporate,04/04/2011,TEMPORARY (TEMP) STAFF COSTS,Corporate IT ,CAPITA RESOURCING LIMITED,2020247837,"51,734.15"
Department for Work and Pensions,Jobcentre Plus,21/04/2011,EMPLOYMENT PROGRAMMES,Balance Sheet Payments,CLAVERHOUSE GROUP,2020578101,"51,708.36"
Department for Work and Pensions,Housing Benefits,14/04/2011,Housing Benefit Admin,WWG Housing Benefit,WEST DORSET DISTRICT COUNCIL,2020464207,"51,703.00"
Department for Work and Pensions,Corporate,15/04/2011,COMPUTER SERVICES,SHARED SERVICES,FUJITSU SERVICES LTD,2020466250,"51,513.67"
Department for Work and Pensions,Jobcentre Plus,21/04/2011,EMPLOYMENT PROGRAMMES,Balance Sheet Payments,BIRMINGHAM CHAMBER TRAINING,2020577180,"51,435.82"
Department for Work and Pensions,Employment Programmes,14/04/2011,NDLP,WWEG EMPLOYMENT PROGRAMMES,CLAVERHOUSE GROUP,2020456127,"51,372.00"
Department for Work and Pensions,Housing Benefits,14/04/2011,Housing Benefit Admin,WWG Housing Benefit,MID SUSSEX DISTRICT COUNCIL,2020464059,"51,302.00"
Department for Work and Pensions,Employment Programmes,12/04/2011,YOUNG PERSON'S GUARANTEE,WWEG EMPLOYMENT PROGRAMMES,CITY OF EDINBURGH COUNCIL,2020368339,"51,300.00"
Department for Work and Pensions,Housing Benefits,14/04/2011,Housing Benefit Admin,WWG Housing Benefit,CASTLE POINT DISTRICT COUNCIL,2020463901,"51,273.00"
Department for Work and Pensions,Housing Benefits,14/04/2011,Housing Benefit Admin,WWG Housing Benefit,SOUTH HOLLAND DISTRICT COUNCIL,2020464143,"51,269.00"
Department for Work and Pensions,Housing Benefits,14/04/2011,Housing Benefit Admin,WWG Housing Benefit,EAST HAMPSHIRE DISTRICT COUNCIL,2020463952,"51,086.00"
Department for Work and Pensions,Employment Programmes,21/04/2011,JOBCENTRE PLUS PATHWAYS TO WORK,WWEG EMPLOYMENT PROGRAMMES,GATESHEAD PRIMARY CARE TRUST,2020581444,"51,062.00"
Department for Work and Pensions,Housing Benefits,14/04/2011,Housing Benefit Admin,WWG Housing Benefit,MERTHYR TYDFIL BOROUGH COUNCIL,2020464056,"50,998.00"
Department for Work and Pensions,Housing Benefits,14/04/2011,Housing Benefit Admin,WWG Housing Benefit,ROSSENDALE BOROUGH COUNCIL,2020464113,"50,717.00"
Department for Work and Pensions,Jobcentre Plus,04/04/2011,COMPUTER SERVICES,Jobcentre Plus,ATOS ORIGIN IT SERVICES UK LTD,2020247325,"50,637.94"
Department for Work and Pensions,Housing Benefits,14/04/2011,Housing Benefit Admin,WWG Housing Benefit,WAVERLEY BOROUGH COUNCIL,2020464202,"50,074.00"
Department for Work and Pensions,Corporate,18/04/2011,COMPUTER SERVICES,Universal Credit,HP ENTERPRISE SERVICES UK LTD,2020473925,"49,993.99"
Department for Work and Pensions,Employment Programmes,13/04/2011,FND,WWEG EMPLOYMENT PROGRAMMES,A4E LTD,2020385690,"49,936.00"
Department for Work and Pensions,Corporate,08/04/2011,EMPLOYMENT PROGRAMMES,Balance Sheet Payments,DFE RM SHARED SERVICES,2002563,"49,873.12"
Department for Work and Pensions,Housing Benefits,14/04/2011,Housing Benefit Admin,WWG Housing Benefit,SOUTH STAFFORDSHIRE DISTRICT COUNCIL,2020464152,"49,608.00"
Department for Work and Pensions,Employment Programmes,21/04/2011,YOUNG PERSON'S GUARANTEE,WWEG EMPLOYMENT PROGRAMMES,GOOLE DEVELOPMENT TRUST,2020581461,"49,500.00"
Department for Work and Pensions,Employment Programmes,04/04/2011,YOUNG PERSON'S GUARANTEE,WWEG EMPLOYMENT PROGRAMMES,WEST LOTHIAN COUNCIL,2020254705,"49,500.00"
Department for Work and Pensions,Housing Benefits,14/04/2011,Housing Benefit Admin,WWG Housing Benefit,NORTH WEST LEICESTER DISTRICT COUNCIL,2020464084,"49,400.00"
Department for Work and Pensions,Housing Benefits,14/04/2011,Housing Benefit Admin,WWG Housing Benefit,CORBY BOROUGH COUNCIL,2020463925,"49,279.00"
Department for Work and Pensions,Housing Benefits,14/04/2011,Housing Benefit Admin,WWG Housing Benefit,HORSHAM DISTRICT COUNCIL,2020464000,"49,267.00"
Department for Work and Pensions,Housing Benefits,14/04/2011,Housing Benefit Admin,WWG Housing Benefit,HINCKLEY & BOSWORTH BOROUGH COUNCIL,2020463999,"49,143.00"
Department for Work and Pensions,Housing Benefits,14/04/2011,Housing Benefit Admin,WWG Housing Benefit,SOUTH CAMBRIDGESHIRE DISTRICT COUNCIL,2020464139,"49,139.00"
Department for Work and Pensions,Housing Benefits,14/04/2011,Housing Benefit Admin,WWG Housing Benefit,FOREST OF DEAN DISTRICT COUNCIL,2020463975,"48,808.00"
Department for Work and Pensions,Corporate,04/04/2011,COMPUTER SERVICES,Corporate IT ,VIRGIN MEDIA LTD,2020254637,"48,767.53"
Department for Work and Pensions,Corporate,04/04/2011,TELEPHONE AND POSTAGE,Group Finance,ROYAL MAIL GROUP PLC,2020253702,"48,761.89"
Department for Work and Pensions,Corporate,15/04/2011,COMPUTER SERVICES,Group Finance,ACCENTURE UK LTD,2020464680,"48,660.92"
Department for Work and Pensions,Corporate,26/04/2011,BANKING AND ENCASHMENT COSTS,Group Finance,VOCALINK,2020662041,"48,626.00"
Department for Work and Pensions,Corporate,04/04/2011,TEMPORARY (TEMP) STAFF COSTS,Group Finance,CAPITA RESOURCING LIMITED,2020247837,"48,535.40"
Department for Work and Pensions,Housing Benefits,14/04/2011,Housing Benefit Admin,WWG Housing Benefit,SPELTHORNE BOROUGH COUNCIL,2020464156,"48,436.00"
Department for Work and Pensions,Corporate,13/04/2011,STAFF COSTS,Corporate and Support Services,ASE CORPORATE EYECARE LTD,2020385921,"48,424.16"
Department for Work and Pensions,Corporate,28/04/2011,ACCOMMODATION,Group Finance,TELEREAL TRILLIUM,2020687069,"48,329.16"
Department for Work and Pensions,Housing Benefits,14/04/2011,Housing Benefit Admin,WWG Housing Benefit,NORTH KESTEVEN DISTRICT COUNCIL,2020464077,"48,177.00"
Department for Work and Pensions,Corporate,08/04/2011,TEMPORARY (TEMP) STAFF COSTS,Group Finance,CAPITA RESOURCING LIMITED,2020353028,"48,097.62"
Department for Work and Pensions,Corporate,04/04/2011,COMPUTER SERVICES,Corporate IT ,SPECIALIST COMPUTER CENTRE PLC,2020254279,"48,097.48"
Department for Work and Pensions,Corporate,07/04/2011,COMPUTER SERVICES,Corporate IT ,SPECIALIST COMPUTER CENTRE PLC,2020350150,"48,097.48"
Department for Work and Pensions,Corporate,08/04/2011,COMPUTER SERVICES,Corporate IT ,SPECIALIST COMPUTER CENTRE PLC,2020357700,"48,097.48"
Department for Work and Pensions,Housing Benefits,14/04/2011,Housing Benefit Admin,WWG Housing Benefit,SOUTH OXFORDSHIRE DISTRICT COUNCIL,2020464149,"48,080.00"
Department for Work and Pensions,Housing Benefits,14/04/2011,Housing Benefit Admin,WWG Housing Benefit,THE MORAY COUNCIL,2020464184,"47,965.00"
Department for Work and Pensions,Jobcentre Plus,14/04/2011,EMPLOYMENT PROGRAMMES,Balance Sheet Payments,SEETEC BUSINESS TECHNOLOGY CENTRE LTD,2020461340,"47,926.51"
Department for Work and Pensions,Corporate,06/04/2011,EMPLOYMENT ZONES,Group Finance,RIVERSIDE HOUSING ASSOCIATION,2020329763,"47,925.00"
Department for Work and Pensions,Employment Programmes,08/04/2011,YOUNG PERSON'S GUARANTEE,WWEG EMPLOYMENT PROGRAMMES,LONDON BOROUGH OF ISLINGTON,2020356213,"47,850.00"
Department for Work and Pensions,Corporate,11/04/2011,COMPUTER SERVICES,Corporate IT ,CAPGEMINI UK PLC,2020360070,"47,743.00"
Department for Work and Pensions,Housing Benefits,14/04/2011,Housing Benefit Admin,WWG Housing Benefit,LICHFIELD DISTRICT COUNCIL,2020464016,"47,741.00"
Department for Work and Pensions,Housing Benefits,14/04/2011,Housing Benefit Admin,WWG Housing Benefit,COPELAND BOROUGH COUNCIL,2020463924,"47,635.00"
Department for Work and Pensions,Employment Programmes,08/04/2011,JSP ESF DEL P COSTS,WWEG EMPLOYMENT PROGRAMMES,INGEUS UK LTD,2020355270,"47,577.75"
Department for Work and Pensions,Corporate,11/04/2011,IS/IT,Group Finance,SPECIALIST COMPUTER CENTRES PLC,2020364588,"47,520.37"
Department for Work and Pensions,Corporate,28/04/2011,ACCOMMODATION,Group Finance,TELEREAL TRILLIUM,2020687068,"47,503.09"
Department for Work and Pensions,Corporate,08/04/2011,AOS CONTRACTED OUT SERVICES,SHARED SERVICES,COMMERCIAL COLLECTION SERVICES LTD,2020353047,"47,030.18"
Department for Work and Pensions,Housing Benefits,14/04/2011,Housing Benefit Admin,WWG Housing Benefit,EAST DUNBARTONSHIRE COUNCIL,2020463951,"46,979.00"
Department for Work and Pensions,European Social Fund,15/04/2011,ESF NON-PREFUNDED EXPENDITURE,WWEG EUROPEAN SOCIAL FUND,LANCASHIRE COLLEGES CONSORTIUM,5000000536,"46,912.00"
Department for Work and Pensions,Corporate,19/04/2011,EU PROGRAMMES,WWG SUMMARY,THE UNIVERSITY OF SHEFFIELD,2020489853,"46,766.00"
Department for Work and Pensions,Corporate,14/04/2011,STAFF COSTS,LSPG,AMA ASSOCIATES LTD,2020455638,"46,718.00"
Department for Work and Pensions,Corporate,28/04/2011,ACCOMMODATION,Group Finance,TELEREAL TRILLIUM,2020687070,"46,561.56"
Department for Work and Pensions,Housing Benefits,14/04/2011,Housing Benefit Admin,WWG Housing Benefit,MONMOUTHSHIRE COUNTY  COUNCIL,2020464064,"46,448.00"
Department for Work and Pensions,Jobcentre Plus,26/04/2011,MEDICAL SERVICES,Jobcentre Plus,ATOS ORIGIN MEDICAL SERVICES,2020597444,"46,341.96"
Department for Work and Pensions,Corporate,18/04/2011,COMPUTER SERVICES,SHARED SERVICES,FUJITSU SERVICES,2020473681,"46,296.00"
Department for Work and Pensions,Housing Benefits,14/04/2011,Housing Benefit Admin,WWG Housing Benefit,SOUTH HAMS DISTRICT COUNCIL,2020464142,"46,266.00"
Department for Work and Pensions,Jobcentre Plus,21/04/2011,MEDICAL SERVICES,Jobcentre Plus,ATOS ORIGIN MEDICAL SERVICES,2020576904,"46,230.00"
Department for Work and Pensions,Housing Benefits,14/04/2011,Housing Benefit Admin,WWG Housing Benefit,STIRLING COUNCIL,2020464163,"46,099.00"
Department for Work and Pensions,Housing Benefits,14/04/2011,Housing Benefit Admin,WWG Housing Benefit,WEST OXFORDSHIRE DISTRICT COUNCIL,2020464212,"46,058.00"
Department for Work and Pensions,Employment Programmes,15/04/2011,WORKSTEP,WWEG EMPLOYMENT PROGRAMMES,RBLI EMPLOYMENT SERVICES,2020469057,"46,000.00"
Department for Work and Pensions,Housing Benefits,14/04/2011,Housing Benefit Admin,WWG Housing Benefit,WOKINGHAM DISTRICT COUNCIL,2020464221,"45,811.00"
Department for Work and Pensions,Housing Benefits,14/04/2011,Housing Benefit Admin,WWG Housing Benefit,WOKING BOROUGH COUNCIL,2020464220,"45,675.00"
Department for Work and Pensions,"Pension, Disability Carers Services",20/04/2011,APPS DEV,Pensions & Disability Carers Service ,HP ENTERPRISE SERVICES UK LTD,2020520600,"45,499.30"
Department for Work and Pensions,Housing Benefits,14/04/2011,Housing Benefit Admin,WWG Housing Benefit,ISLE OF ANGLESEY COUNTY COUNCIL,2020464005,"45,478.00"
Department for Work and Pensions,Corporate,04/04/2011,IS/IT,Group Finance,SPECIALIST COMPUTER CENTRES PLC,2020254280,"45,266.52"
Department for Work and Pensions,Corporate,05/04/2011,HELP FOR UNEMPLOYED PEOPLE OTHER,WWG SUMMARY,UK GERMAN CONNECTION,2020267653,"45,000.00"
Department for Work and Pensions,Corporate,27/04/2011,PROFESSIONAL FEES,Corporate and Support Services,RS CONSULTING LTD,2020670124,"45,000.00"
Department for Work and Pensions,Employment Programmes,07/04/2011,YOUNG PERSON'S GUARANTEE,WWEG EMPLOYMENT PROGRAMMES,SCOTTISH WILDLIFE TRUST,2020350110,"44,931.00"
Department for Work and Pensions,Housing Benefits,14/04/2011,Housing Benefit Admin,WWG Housing Benefit,TAMWORTH BOROUGH COUNCIL,2020464176,"44,914.00"
Department for Work and Pensions,Housing Benefits,14/04/2011,Housing Benefit Admin,WWG Housing Benefit,WINCHESTER CITY COUNCIL,2020464217,"44,807.00"
Department for Work and Pensions,Corporate,13/04/2011,AOS CONTRACTED OUT SERVICES,Group Finance,ABCUL,2020385697,"44,775.00"
Department for Work and Pensions,"Pension, Disability Carers Services",04/04/2011,TELEPHONE AND POSTAGE,Pensions & Disability Carers Service ,ROYAL MAIL GROUP PLC,2020253702,"44,521.78"
Department for Work and Pensions,Corporate,15/04/2011,EMPLOYMENT ZONES,Group Finance,UNIFY CREDIT UNION LIMITED,2020469824,"44,250.00"
Department for Work and Pensions,Corporate,28/04/2011,ACCOMMODATION,Group Finance,TELEREAL TRILLIUM,2020687068,"44,197.02"
Department for Work and Pensions,Housing Benefits,14/04/2011,Housing Benefit Admin,WWG Housing Benefit,EAST NORTHANTS DISTRICT COUNCIL,2020463956,"44,176.00"
Department for Work and Pensions,Corporate,28/04/2011,ACCOMMODATION,Group Finance,TELEREAL TRILLIUM,2020687070,"43,861.53"
Department for Work and Pensions,Employment Programmes,05/04/2011,NDDP,WWEG EMPLOYMENT PROGRAMMES,SENCIA LTD,2020267209,"43,806.37"
Department for Work and Pensions,Corporate,20/04/2011,TEMPORARY (TEMP) STAFF COSTS,Corporate IT ,CAPITA RESOURCING LIMITED,2020505569,"43,492.44"
Department for Work and Pensions,Housing Benefits,14/04/2011,Housing Benefit Admin,WWG Housing Benefit,BOSTON BOROUGH COUNCIL,2020463878,"43,363.00"
Department for Work and Pensions,Employment Programmes,28/04/2011,YOUNG PERSON'S GUARANTEE,WWEG EMPLOYMENT PROGRAMMES,THE NATIONAL TRUST,2020687074,"43,350.00"
Department for Work and Pensions,Corporate,06/04/2011,MANAGEMENT CONSULTANCY,Corporate IT ,SIEMENS ENTERPRISE COMMUNICATIONS LTD,2020338286,"43,350.00"
Department for Work and Pensions,European Social Fund,19/04/2011,ESF NON-PREFUNDED EXPENDITURE,WWEG EUROPEAN SOCIAL FUND,AGE CONCERN,5000000537,"43,311.00"
Department for Work and Pensions,Employment Programmes,27/04/2011,FND,WWEG EMPLOYMENT PROGRAMMES,DUDLEY MBC FUTURE SKILLS,2020667816,"43,298.00"
Department for Work and Pensions,Housing Benefits,14/04/2011,Housing Benefit Admin,WWG Housing Benefit,FAREHAM BOROUGH COUNCIL,2020463970,"43,228.00"
Department for Work and Pensions,Corporate,15/04/2011,EMPLOYMENT ZONES,Group Finance,BRISTOL CITY CREDIT UNION,2020464857,"42,975.00"
Department for Work and Pensions,Housing Benefits,14/04/2011,Housing Benefit Admin,WWG Housing Benefit,CEREDIGION COUNTY COUNCIL,2020463903,"42,774.00"
Department for Work and Pensions,Corporate,18/04/2011,EU PROGRAMMES,WWG SUMMARY,DTZ,2020473498,"42,771.07"
Department for Work and Pensions,Corporate,28/04/2011,ACCOMMODATION,Group Finance,TELEREAL TRILLIUM,2020687068,"42,755.75"
Department for Work and Pensions,Employment Programmes,11/04/2011,YOUNG PERSON'S GUARANTEE,WWEG EMPLOYMENT PROGRAMMES,HARLOW DISTRICT COUNCIL,2020362299,"42,750.00"
Department for Work and Pensions,European Social Fund,04/04/2011,ESF NON-PREFUNDED EXPENDITURE,WWEG EUROPEAN SOCIAL FUND,NORTH WEST NETWORK,5000000524,"42,560.00"
Department for Work and Pensions,Jobcentre Plus,07/04/2011,EMPLOYMENT PROGRAMMES,Balance Sheet Payments,SKILLS TRAINING UK LTD,2020350137,"42,546.85"
Department for Work and Pensions,Housing Benefits,14/04/2011,Housing Benefit Admin,WWG Housing Benefit,THREE RIVERS DISTRICT COUNCIL,2020464185,"42,440.00"
Department for Work and Pensions,Employment Programmes,28/04/2011,JSP ESF DEL P COSTS,WWEG EMPLOYMENT PROGRAMMES,INGEUS UK LTD,2020678549,"42,404.57"
Department for Work and Pensions,Jobcentre Plus,21/04/2011,EMPLOYMENT PROGRAMMES,Balance Sheet Payments,ARGYLL & BUTE COUNCIL,2020576895,"42,316.82"
Department for Work and Pensions,Corporate,13/04/2011,Accomodation Costs,SHARED SERVICES,DEPARTMENT OF EDUCATION SKILLS,2002567,"42,219.00"
Department for Work and Pensions,Housing Benefits,14/04/2011,Housing Benefit Admin,WWG Housing Benefit,STAFFORDSHIRE MOORLANDS DISTRICT COUNCIL,2020464161,"42,195.00"
Department for Work and Pensions,Employment Programmes,12/04/2011,HELP FOR UNEMPLOYED PEOPLE OTHER,WWEG EMPLOYMENT PROGRAMMES,GLASGOW CITY STRATEGY PATHFINDER,2020370894,"42,160.00"
Department for Work and Pensions,Employment Programmes,12/04/2011,HELP FOR UNEMPLOYED PEOPLE OTHER,WWEG EMPLOYMENT PROGRAMMES,LEICESTER PATHFINDER,2020373862,"42,160.00"
Department for Work and Pensions,Employment Programmes,12/04/2011,HELP FOR UNEMPLOYED PEOPLE OTHER,WWEG EMPLOYMENT PROGRAMMES,WEST MIDLANDS CITY REGION,2020378772,"42,160.00"
Department for Work and Pensions,Employment Programmes,26/04/2011,HELP FOR UNEMPLOYED PEOPLE OTHER,WWEG EMPLOYMENT PROGRAMMES,TYNE & WEAR CITY STRATEGY PATHFINDER,2020660877,"42,160.00"
Department for Work and Pensions,Employment Programmes,04/04/2011,YOUNG PERSON'S GUARANTEE,WWEG EMPLOYMENT PROGRAMMES,LONDON BOROUGH OF EALING,2020252308,"42,150.00"
Department for Work and Pensions,Housing Benefits,14/04/2011,Housing Benefit Admin,WWG Housing Benefit,TORRIDGE DISTRICT COUNCIL,2020464190,"41,926.00"
Department for Work and Pensions,Employment Programmes,20/04/2011,YOUNG PERSON'S GUARANTEE,WWEG EMPLOYMENT PROGRAMMES,WOLVERHAMPTON CITY COUNCIL,2020572971,"41,850.00"
Department for Work and Pensions,Housing Benefits,14/04/2011,Housing Benefit Admin,WWG Housing Benefit,SOUTH LAKELAND DISTRICT COUNCIL,2020464145,"41,699.00"
Department for Work and Pensions,Housing Benefits,14/04/2011,Housing Benefit Admin,WWG Housing Benefit,RUNNYMEDE BOROUGH COUNCIL,2020464118,"41,666.00"
Department for Work and Pensions,Employment Programmes,15/04/2011,YOUNG PERSON'S GUARANTEE,WWEG EMPLOYMENT PROGRAMMES,DUNDEE CITY COUNCIL,2020466049,"41,663.07"
Department for Work and Pensions,Corporate,15/04/2011,TEMPORARY (TEMP) STAFF COSTS,Group Finance,LANCASHIRE COUNTY COUNCIL,2020467781,"41,501.13"
Department for Work and Pensions,Housing Benefits,14/04/2011,Housing Benefit Admin,WWG Housing Benefit,BABERGH DISTRICT COUNCIL,2020463860,"41,488.00"
Department for Work and Pensions,Corporate,28/04/2011,ACCOMMODATION,Group Finance,TELEREAL TRILLIUM,2020687070,"41,442.02"
Department for Work and Pensions,Housing Benefits,14/04/2011,Housing Benefit Admin,WWG Housing Benefit,COTSWOLD DISTRICT COUNCIL,2020463928,"41,367.00"
Department for Work and Pensions,Jobcentre Plus,21/04/2011,EMPLOYMENT PROGRAMMES,Balance Sheet Payments,ARMSTRONG LEARNING LTD,2020576896,"41,317.06"
Department for Work and Pensions,Employment Programmes,06/04/2011,YOUNG PERSON'S GUARANTEE,WWEG EMPLOYMENT PROGRAMMES,WORCESTERSHIRE COUNTY COUNCIL,2020343612,"41,088.40"
Department for Work and Pensions,Housing Benefits,14/04/2011,Housing Benefit Admin,WWG Housing Benefit,TEWKESBURY BOROUGH COUNCIL,2020464182,"41,076.00"
Department for Work and Pensions,Employment Programmes,18/04/2011,JSP ESF DEL P COSTS,WWEG EMPLOYMENT PROGRAMMES,INGEUS UK LTD,2020473977,"40,989.95"
Department for Work and Pensions,Corporate,28/04/2011,ACCOMMODATION,Group Finance,TELEREAL TRILLIUM,2020687068,"40,670.10"
Department for Work and Pensions,Corporate,21/04/2011,TELEPHONE AND POSTAGE,Group Finance,UK MAIL,2020589128,"40,647.75"
Department for Work and Pensions,Housing Benefits,14/04/2011,Housing Benefit Admin,WWG Housing Benefit,MID DEVON DISTRICT COUNCIL,2020464057,"40,537.00"
Department for Work and Pensions,Housing Benefits,14/04/2011,Housing Benefit Admin,WWG Housing Benefit,EAST CAMBRIDGESHIRE DISTRICT COUNCIL,2020463948,"40,444.00"
Department for Work and Pensions,Housing Benefits,14/04/2011,Housing Benefit Admin,WWG Housing Benefit,SOUTH DERBYSHIRE DISTRICT COUNCIL,2020464140,"40,436.00"
Department for Work and Pensions,Employment Programmes,07/04/2011,YOUNG PERSON'S GUARANTEE,WWEG EMPLOYMENT PROGRAMMES,COMMUNITY SKILLS PARTNERSHIP,2020347543,"40,338.35"
Department for Work and Pensions,Employment Programmes,14/04/2011,JSP ESF DEL P COSTS,WWEG EMPLOYMENT PROGRAMMES,INGEUS UK LTD,2020458712,"40,157.69"
Department for Work and Pensions,Jobcentre Plus,21/04/2011,EMPLOYMENT PROGRAMMES,Balance Sheet Payments,SENCIA LTD,2020588544,"40,139.32"
Department for Work and Pensions,European Social Fund,04/04/2011,ESF NON-PREFUNDED EXPENDITURE,WWEG EUROPEAN SOCIAL FUND,SOUTH WEST FORUM,5000000526,"40,137.00"
Department for Work and Pensions,Employment Programmes,06/04/2011,YOUNG PERSON'S GUARANTEE,WWEG EMPLOYMENT PROGRAMMES,IMPROVE LTD,1004743,"40,000.00"
Department for Work and Pensions,Corporate,28/04/2011,"OFFICE SUPPLIES, PRINTING AND PUBLICITY",Corporate and Support Services,COI TRADING FUND,2020674751,"40,000.00"
Department for Work and Pensions,Jobcentre Plus,21/04/2011,EMPLOYMENT PROGRAMMES,Balance Sheet Payments,BTCV,2020577204,"39,974.01"
Department for Work and Pensions,Housing Benefits,14/04/2011,Housing Benefit Admin,WWG Housing Benefit,RUSHCLIFFE BOROUGH COUNCIL,2020464119,"39,778.00"
Department for Work and Pensions,Employment Programmes,19/04/2011,JSP ESF DEL P COSTS,WWEG EMPLOYMENT PROGRAMMES,SEETEC BUSINESS TECHNOLOGY CENTRE LTD,2020489424,"39,744.47"
Department for Work and Pensions,Employment Programmes,14/04/2011,FND,WWEG EMPLOYMENT PROGRAMMES,CALDER UK LTD,2020456080,"39,740.00"
Department for Work and Pensions,Corporate,15/04/2011,COMPUTER SERVICES,SHARED SERVICES,ATOS ORIGIN IT SERVICES UK LTD,2020464715,"39,734.23"
Department for Work and Pensions,Corporate,07/04/2011,TELEPHONE AND POSTAGE,Group Finance,ROYAL MAIL GROUP PLC,2020349826,"39,664.90"
Department for Work and Pensions,Employment Programmes,04/04/2011,FND,WWEG EMPLOYMENT PROGRAMMES,WORKING LINKS,2020254726,"39,645.00"
Department for Work and Pensions,Housing Benefits,14/04/2011,Housing Benefit Admin,WWG Housing Benefit,CLACKMANNANSHIRE COUNCIL,2020463920,"39,489.00"
Department for Work and Pensions,Employment Programmes,14/04/2011,YOUNG PERSON'S GUARANTEE,WWEG EMPLOYMENT PROGRAMMES,LUTON BOROUGH COUNCIL,2020459744,"39,483.50"
Department for Work and Pensions,Employment Programmes,13/04/2011,YOUNG PERSON'S GUARANTEE,WWEG EMPLOYMENT PROGRAMMES,LONDON BOROUGH OF GREENWICH,2020424195,"39,450.00"
Department for Work and Pensions,Housing Benefits,14/04/2011,Housing Benefit Admin,WWG Housing Benefit,HAMBLETON DISTRICT COUNCIL,2020463987,"39,421.00"
Department for Work and Pensions,Employment Programmes,19/04/2011,YOUNG PERSON'S GUARANTEE,WWEG EMPLOYMENT PROGRAMMES,RHYL CITY STRATEGY COMMUNITY INTEREST COMPANY,2020488284,"39,000.00"
Department for Work and Pensions,Employment Programmes,15/04/2011,FND,WWEG EMPLOYMENT PROGRAMMES,WORKING LINKS,2020469994,"38,975.00"
Department for Work and Pensions,Corporate,18/04/2011,APPS DEV,SHARED SERVICES,HP ENTERPRISE SERVICES UK LTD,2020473925,"38,876.90"
Department for Work and Pensions,Jobcentre Plus,14/04/2011,EMPLOYMENT PROGRAMMES,Balance Sheet Payments,INBIZ TD,2020458707,"38,624.24"
Department for Work and Pensions,Corporate,20/04/2011,MISCELLANEOUS EXPENDITURE,EG SUMMARY,UNIVERSITY OF WESTMINSTER PSI,2020570966,"38,497.50"
Department for Work and Pensions,Housing Benefits,14/04/2011,Housing Benefit Admin,WWG Housing Benefit,MID SUFFOLK DISTRICT COUNCIL,2020464058,"38,488.00"
Department for Work and Pensions,Jobcentre Plus,07/04/2011,EMPLOYMENT PROGRAMMES,Balance Sheet Payments,SHROPSHIRE COUNTY TRAINING,2020350128,"38,412.90"
Department for Work and Pensions,Corporate,28/04/2011,ACCOMMODATION,Group Finance,TELEREAL TRILLIUM,2020687068,"38,302.98"
Department for Work and Pensions,Housing Benefits,14/04/2011,Housing Benefit Admin,WWG Housing Benefit,EAST DORSET DISTRICT COUNCIL,2020463950,"38,262.00"
Department for Work and Pensions,Jobcentre Plus,21/04/2011,EMPLOYMENT PROGRAMMES,Balance Sheet Payments,TNG NETWORK LTD,2020589103,"38,217.59"
Department for Work and Pensions,European Social Fund,19/04/2011,ESF NON-PREFUNDED EXPENDITURE,WWEG EUROPEAN SOCIAL FUND,TALENT RECRUITMENT LTD,2020489831,"38,121.00"
Department for Work and Pensions,Employment Programmes,14/04/2011,ACCESS TO WORK,WWEG EMPLOYMENT PROGRAMMES,DEAF TOUCH LTD,2020456496,"38,000.00"
Department for Work and Pensions,Housing Benefits,14/04/2011,Housing Benefit Admin,WWG Housing Benefit,FYLDE BOROUGH COUNCIL,2020463976,"37,921.00"
Department for Work and Pensions,Employment Programmes,07/04/2011,PROGRESS TO WORK,WWEG EMPLOYMENT PROGRAMMES,THE LIVERPOOL SOCIAL PARTNERSHIP,2020350282,"37,795.31"
Department for Work and Pensions,Corporate,04/04/2011,STAFF COSTS,Corporate and Support Services,ROGENSI,2020253697,"37,751.97"
Department for Work and Pensions,Housing Benefits,14/04/2011,Housing Benefit Admin,WWG Housing Benefit,SELBY DISTRICT COUNCIL,2020464129,"37,652.00"
Department for Work and Pensions,Employment Programmes,15/04/2011,ACCESS TO WORK,WWEG EMPLOYMENT PROGRAMMES,SCOUT ENTERPRISES WESTERN LTD,2020469587,"37,524.48"
Department for Work and Pensions,Employment Programmes,19/04/2011,FND,WWEG EMPLOYMENT PROGRAMMES,FOURSTAR EMPLOYMENT & SKILLS LTD,2020482954,"37,510.00"
Department for Work and Pensions,Corporate,20/04/2011,TEMPORARY (TEMP) STAFF COSTS,Group Finance,CAPITA RESOURCING LIMITED,2020505569,"37,507.07"
Department for Work and Pensions,Corporate,19/04/2011,TOTAL IT & EQUIPMENT COSTS,Corporate IT ,WIGAN BOROUGH COUNCIL,2020490159,"37,500.00"
Department for Work and Pensions,Corporate,28/04/2011,ACCOMMODATION,SHARED SERVICES,TELEREAL TRILLIUM,2020687070,"37,411.07"
Department for Work and Pensions,Jobcentre Plus,21/04/2011,EMPLOYMENT PROGRAMMES,Balance Sheet Payments,BISCOM RESOURCE MANAGEMENT,2020577182,"37,406.88"
Department for Work and Pensions,Employment Programmes,04/04/2011,FND,WWEG EMPLOYMENT PROGRAMMES,MAXIMUS EMPLOYMENT UK LTD,2020252813,"37,344.00"
Department for Work and Pensions,Housing Benefits,14/04/2011,Housing Benefit Admin,WWG Housing Benefit,CHILTERN DISTRICT COUNCIL,2020463913,"37,274.00"
Department for Work and Pensions,Employment Programmes,11/04/2011,PROGRESS TO WORK,WWEG EMPLOYMENT PROGRAMMES,THE LIVERPOOL SOCIAL PARTNERSHIP,2020364727,"37,238.70"
Department for Work and Pensions,Corporate,14/04/2011,PROFESSIONAL FEES,WWG SUMMARY,UNIVERSITY OF BRISTOL,2020461612,"37,222.00"
Department for Work and Pensions,Corporate,18/04/2011,COMPUTER SERVICES,Corporate IT ,HMRC,2020473922,"37,221.92"
Department for Work and Pensions,Employment Programmes,18/04/2011,FND,WWEG EMPLOYMENT PROGRAMMES,SKILLS TRAINING UK LIMITED,2020476257,"37,213.00"
Department for Work and Pensions,European Social Fund,28/04/2011,ESF NON-PREFUNDED EXPENDITURE,WWEG EUROPEAN SOCIAL FUND,LONDON VOLUNTARY SECTOR TRAINING CONSORTIUM LVSTC,5000000556,"37,201.00"
Department for Work and Pensions,Employment Programmes,01/04/2011,YOUNG PERSON'S GUARANTEE,WWEG EMPLOYMENT PROGRAMMES,RHYL CITY STRATEGY COMMUNITY INTEREST COMPANY,2020244726,"37,050.00"
Department for Work and Pensions,Jobcentre Plus,14/04/2011,EMPLOYMENT PROGRAMMES,Balance Sheet Payments,SCVO,2020461333,"36,973.09"
Department for Work and Pensions,Jobcentre Plus,20/04/2011,APPS DEV,Jobcentre Plus,HP ENTERPRISE SERVICES UK LTD,2020520600,"36,927.80"
Department for Work and Pensions,Housing Benefits,14/04/2011,Housing Benefit Admin,WWG Housing Benefit,ROCHFORD DISTRICT COUNCIL,2020464112,"36,812.00"
Department for Work and Pensions,Corporate,20/04/2011,EMPLOYMENT ZONES,Group Finance,6 TOWNS CREDIT UNION LIMITED,2020491283,"36,750.00"
Department for Work and Pensions,Jobcentre Plus,18/04/2011,Accomodation Costs,Jobcentre Plus,COPELAND BOROUGH COUNCIL,1004766,"36,714.00"
Department for Work and Pensions,Corporate,07/04/2011,IS/IT,Corporate IT ,SPECIALIST COMPUTER CENTRES PLC,2020350151,"36,616.56"
Department for Work and Pensions,Corporate,04/04/2011,MISCELLANEOUS EXPENDITURE,EG SUMMARY,UNIVERSITY OF WESTMINSTER PSI,2020254561,"36,598.33"
Department for Work and Pensions,Housing Benefits,14/04/2011,Housing Benefit Admin,WWG Housing Benefit,BROMSGROVE DISTRICT COUNCIL,2020463889,"36,360.00"
Department for Work and Pensions,Housing Benefits,14/04/2011,Housing Benefit Admin,WWG Housing Benefit,BLABY DISTRICT COUNCIL,2020463869,"36,318.00"
Department for Work and Pensions,"Pension, Disability Carers Services",14/04/2011,AOS CONTRACTED OUT SERVICES,Pensions & Disability Carers Service ,BALFOUR BEATTY WORKPLACE LTD,2020455762,"36,296.70"
Department for Work and Pensions,Corporate,27/04/2011,MANAGEMENT CONSULTANCY,Corporate IT ,HP ENTERPRISE SERVICES UK LTD,2020668213,"36,160.00"
Department for Work and Pensions,Housing Benefits,14/04/2011,Housing Benefit Admin,WWG Housing Benefit,ADUR DISTRICT COUNCIL,2020463851,"36,057.00"
Department for Work and Pensions,Corporate,15/04/2011,MEDICAL SERVICES,WWG SUMMARY,ATOS HEALTHCARE,2020464712,"36,000.00"
Department for Work and Pensions,Employment Programmes,15/04/2011,YOUNG PERSON'S GUARANTEE,WWEG EMPLOYMENT PROGRAMMES,TELFORD & WREKIN COUNCIL,2020469788,"36,000.00"
Department for Work and Pensions,Employment Programmes,26/04/2011,WORKSTEP,WWEG EMPLOYMENT PROGRAMMES,RBLI WORKWISE,2020649316,"36,000.00"
Department for Work and Pensions,Employment Programmes,21/04/2011,YOUNG PERSON'S GUARANTEE,WWEG EMPLOYMENT PROGRAMMES,SCOUT ENTERPRISES WESTERN LTD,2020588527,"36,000.00"
Department for Work and Pensions,Employment Programmes,19/04/2011,ACCESS TO WORK,WWEG EMPLOYMENT PROGRAMMES,AME DISABILITY CONSULTANT,2020478586,"35,987.01"
Department for Work and Pensions,Corporate,15/04/2011,COMPUTER SERVICES,Corporate IT ,DELL FINANCIAL SERVICES,2020465642,"35,960.13"
Department for Work and Pensions,Housing Benefits,14/04/2011,Housing Benefit Admin,WWG Housing Benefit,MALVERN HILLS DISTRICT COUNCIL,2020464050,"35,954.00"
Department for Work and Pensions,Corporate,27/04/2011,EMPLOYMENT ZONES,Group Finance,JUST CREDIT UNION,2020668706,"35,774.00"
Department for Work and Pensions,Employment Programmes,11/04/2011,ACCESS TO WORK,WWEG EMPLOYMENT PROGRAMMES,ROYAL BRITISH LEGION INDUSTRIES,2020364163,"35,624.01"
Department for Work and Pensions,Jobcentre Plus,19/04/2011,APPS DEV,Jobcentre Plus,HP ENTERPRISE SERVICES UK LTD,2020483520,"35,614.80"
Department for Work and Pensions,"Pension, Disability Carers Services",18/04/2011,APPS DEV,Pensions & Disability Carers Service ,HP ENTERPRISE SERVICES UK LTD,2020473925,"35,592.70"
Department for Work and Pensions,Employment Programmes,07/04/2011,YOUNG PERSON'S GUARANTEE,WWEG EMPLOYMENT PROGRAMMES,SCOUT ENTERPRISES WESTERN LTD,2020350112,"35,550.00"
Department for Work and Pensions,European Social Fund,19/04/2011,MA ESF(D) LA NON-PREFUNDED EXPENDITURE,WWEG EUROPEAN SOCIAL FUND,LUTON BOROUGH COUNCIL,5000000542,"35,500.00"
Department for Work and Pensions,Jobcentre Plus,07/04/2011,EMPLOYMENT PROGRAMMES,Balance Sheet Payments,COMMUNITY  LINKS,2020347542,"35,496.45"
Department for Work and Pensions,Housing Benefits,14/04/2011,Housing Benefit Admin,WWG Housing Benefit,EAST RENFREWSHIRE COUNCIL,2020463957,"35,320.00"
Department for Work and Pensions,"Pension, Disability Carers Services",18/04/2011,COMPUTER SERVICES,Pensions & Disability Carers Service ,HP ENTERPRISE SERVICES UK LTD,2020473925,"35,276.18"
Department for Work and Pensions,Jobcentre Plus,07/04/2011,EMPLOYMENT PROGRAMMES,Balance Sheet Payments,NORTH WESSEX TRAINING,2020349455,"35,261.10"
Department for Work and Pensions,Employment Programmes,11/04/2011,FND,WWEG EMPLOYMENT PROGRAMMES,A4E LTD,2020359689,"35,157.00"
Department for Work and Pensions,Employment Programmes,13/04/2011,FND,WWEG EMPLOYMENT PROGRAMMES,SERCO LTD,2020447077,"35,046.00"
Department for Work and Pensions,Corporate,11/04/2011,Accomodation Costs,Group Finance,VALUATION OFFICE AGENCY,2002566,"35,017.64"
Department for Work and Pensions,Housing Benefits,14/04/2011,Housing Benefit Admin,WWG Housing Benefit,DAVENTRY DISTRICT COUNCIL,2020463937,"34,956.00"
Department for Work and Pensions,Employment Programmes,20/04/2011,NDDP,WWEG EMPLOYMENT PROGRAMMES,THE WISE GROUP,2020570826,"34,953.25"
Department for Work and Pensions,Corporate,05/04/2011,OFFICE MACHINERY HIRE,Corporate IT ,RICOH UK LTD,2020266101,"34,908.13"
Department for Work and Pensions,Employment Programmes,05/04/2011,FND,WWEG EMPLOYMENT PROGRAMMES,SERCO LTD,2020267210,"34,884.00"
Department for Work and Pensions,Employment Programmes,21/04/2011,FND,WWEG EMPLOYMENT PROGRAMMES,WORKING LINKS,2020589439,"34,875.00"
Department for Work and Pensions,Corporate,07/04/2011,COMPUTER SERVICES,Corporate IT ,IMPROVEMENT & DEVELOPMENT AGENCY,2020348401,"34,860.00"
Department for Work and Pensions,Employment Programmes,21/04/2011,YOUNG PERSON'S GUARANTEE,WWEG EMPLOYMENT PROGRAMMES,SOLIHULL METROPOLITAN BOROUGH COUNCIL,2020588597,"34,800.00"
Department for Work and Pensions,Employment Programmes,27/04/2011,YOUNG PERSON'S GUARANTEE,WWEG EMPLOYMENT PROGRAMMES,BARNET COLLEGE,2020665872,"34,800.00"
Department for Work and Pensions,Housing Benefits,14/04/2011,Housing Benefit Admin,WWG Housing Benefit,MOLE VALLEY DISTRICT COUNCIL,2020464063,"34,684.00"
Department for Work and Pensions,Housing Benefits,14/04/2011,Housing Benefit Admin,WWG Housing Benefit,NORTH WARWICKSHIRE DISTRICT COUNCIL,2020464083,"34,654.00"
Department for Work and Pensions,Employment Programmes,11/04/2011,YOUNG PERSON'S GUARANTEE,WWEG EMPLOYMENT PROGRAMMES,FIFE COUNCIL,2020362078,"34,350.00"
Department for Work and Pensions,Employment Programmes,21/04/2011,EU PROGRAMMES,WWEG EMPLOYMENT PROGRAMMES,ST HELENS CHAMBERS LTD,2020588609,"34,200.00"
Department for Work and Pensions,Housing Benefits,14/04/2011,Housing Benefit Admin,WWG Housing Benefit,FOREST HEATH DISTRICT COUNCIL,2020463974,"34,169.00"
Department for Work and Pensions,Corporate,21/04/2011,COMPUTER SERVICES,SHARED SERVICES,FUJITSU SERVICES,2020581061,"34,107.00"
Department for Work and Pensions,Corporate,11/04/2011,IS/IT,CHANGE MANAGEMENT DIRECTORATE,SPECIALIST COMPUTER CENTRES PLC,2020364588,"34,080.00"
Department for Work and Pensions,Employment Programmes,18/04/2011,PROGRESS TO WORK,WWEG EMPLOYMENT PROGRAMMES,WORKING LINKS,2020476557,"34,054.47"
Department for Work and Pensions,Employment Programmes,18/04/2011,YOUNG PERSON'S GUARANTEE,WWEG EMPLOYMENT PROGRAMMES,NEWHAM COLLEGE OF FURTHER EDUCATION,2020475353,"34,050.00"
Department for Work and Pensions,Corporate,18/04/2011,COMPUTER SERVICES,SHARED SERVICES,FUJITSU SERVICES,2020473680,"33,917.10"
Department for Work and Pensions,Jobcentre Plus,07/04/2011,EMPLOYMENT PROGRAMMES,Balance Sheet Payments,A4E LTD,2020347178,"33,771.63"
Department for Work and Pensions,Employment Programmes,05/04/2011,FND,WWEG EMPLOYMENT PROGRAMMES,SERCO LTD,2020267210,"33,762.00"
Department for Work and Pensions,Corporate,15/04/2011,PAYMENTS TO CSAS,Corporate and Support Services,ATOS ORIGIN IT SERVICES UK LTD,2020464715,"33,661.52"
Department for Work and Pensions,Corporate,20/04/2011,TEMPORARY (TEMP) STAFF COSTS,Corporate IT ,CAPITA RESOURCING LIMITED,2020505569,"33,653.69"
Department for Work and Pensions,Corporate,28/04/2011,ACCOMMODATION,Group Finance,TELEREAL TRILLIUM,2020687070,"33,641.02"
Department for Work and Pensions,Housing Benefits,14/04/2011,Housing Benefit Admin,WWG Housing Benefit,TANDRIDGE DISTRICT COUNCIL,2020464177,"33,605.00"
Department for Work and Pensions,Employment Programmes,15/04/2011,FND,WWEG EMPLOYMENT PROGRAMMES,A4E LTD,2020464672,"33,524.00"
Department for Work and Pensions,Employment Programmes,06/04/2011,FND,WWEG EMPLOYMENT PROGRAMMES,WORKING LINKS,2020343619,"33,480.00"
Department for Work and Pensions,Corporate,18/04/2011,APPS DEV,Corporate and Support Services,HP ENTERPRISE SERVICES UK LTD,2020473925,"33,463.31"
Department for Work and Pensions,Employment Programmes,19/04/2011,FND,WWEG EMPLOYMENT PROGRAMMES,SERCO LTD,2020489426,"33,453.00"
Department for Work and Pensions,Employment Programmes,20/04/2011,FND,WWEG EMPLOYMENT PROGRAMMES,SERCO LTD,2020567262,"33,453.00"
Department for Work and Pensions,Employment Programmes,26/04/2011,FND,WWEG EMPLOYMENT PROGRAMMES,A4E LTD,2020597248,"33,399.00"
Department for Work and Pensions,Housing Benefits,14/04/2011,Housing Benefit Admin,WWG Housing Benefit,SURREY HEATH BOROUGH COUNCIL,2020464171,"33,368.00"
Department for Work and Pensions,Corporate,08/04/2011,TEMPORARY (TEMP) STAFF COSTS,Corporate IT ,CAPITA RESOURCING LIMITED,2020353028,"33,357.96"
Department for Work and Pensions,"Pension, Disability Carers Services",08/04/2011,PROFESSIONAL FEES,Pensions & Disability Carers Service ,GFK NOP LTD,2020355097,"33,293.00"
Department for Work and Pensions,Corporate,08/04/2011,COMPUTER SERVICES,Corporate IT ,ATOS ORIGIN IT SERVICES UK LTD,2020352609,"33,282.25"
Department for Work and Pensions,Corporate,05/04/2011,STAFF COSTS,EG SUMMARY,HM TREASURY,2020261363,"33,250.00"
Department for Work and Pensions,Employment Programmes,06/04/2011,FND,WWEG EMPLOYMENT PROGRAMMES,WORKING LINKS,2020343619,"33,110.00"
Department for Work and Pensions,Jobcentre Plus,07/04/2011,PRINTING SATIONERY IT CONSUMABLES,Jobcentre Plus,XEROX UK LTD 3W,2020350414,"32,808.30"
Department for Work and Pensions,Corporate,15/04/2011,EMPLOYMENT ZONES,Group Finance,CASTLE & CRYSTAL CREDIT UNION,2020465246,"32,775.00"
Department for Work and Pensions,Corporate,04/04/2011,TEMPORARY (TEMP) STAFF COSTS,Corporate IT ,CAPITA RESOURCING LIMITED,2020247837,"32,695.13"
Department for Work and Pensions,Housing Benefits,14/04/2011,Housing Benefit Admin,WWG Housing Benefit,BRENTWOOD DISTRICT COUNCIL,2020463884,"32,562.00"
Department for Work and Pensions,Employment Programmes,06/04/2011,FND,WWEG EMPLOYMENT PROGRAMMES,SERCO LTD,2020338266,"32,500.00"
Department for Work and Pensions,Corporate,04/04/2011,"OFFICE SUPPLIES, PRINTING AND PUBLICITY",Corporate and Support Services,COI TRADING FUND,2020247885,"32,430.33"
Department for Work and Pensions,Employment Programmes,06/04/2011,YOUNG PERSON'S GUARANTEE,WWEG EMPLOYMENT PROGRAMMES,WOLVERHAMPTON CITY COUNCIL,2020343610,"32,400.00"
Department for Work and Pensions,Corporate,11/04/2011,PROFESSIONAL FEES,Corporate and Support Services,NATCEN,2020363698,"32,356.00"
Department for Work and Pensions,Employment Programmes,13/04/2011,FND,WWEG EMPLOYMENT PROGRAMMES,CALDER UK LTD,2020392568,"32,294.00"
Department for Work and Pensions,Employment Programmes,19/04/2011,FND,WWEG EMPLOYMENT PROGRAMMES,SERCO LTD,2020489426,"32,167.00"
Department for Work and Pensions,Employment Programmes,11/04/2011,WORK PREPARATION,WWEG EMPLOYMENT PROGRAMMES,AGORIAD CYF,2020364899,"32,054.00"
Department for Work and Pensions,Employment Programmes,27/04/2011,YOUNG PERSON'S GUARANTEE,WWEG EMPLOYMENT PROGRAMMES,LONDON BOROUGH OF ISLINGTON,2020669168,"31,950.00"
Department for Work and Pensions,Corporate,19/04/2011,COMPUTER SERVICES,Corporate IT ,BT GLOBAL SERVICES,2020478891,"31,918.02"
Department for Work and Pensions,Corporate,21/04/2011,EMPLOYMENT ZONES,Group Finance,LASER CREDIT UNION LTD,2020584491,"31,875.00"
Department for Work and Pensions,Employment Programmes,04/04/2011,FND,WWEG EMPLOYMENT PROGRAMMES,SERCO LTD,2020254241,"31,860.00"
Department for Work and Pensions,Employment Programmes,15/04/2011,FND,WWEG EMPLOYMENT PROGRAMMES,SERCO LTD,2020469591,"31,860.00"
Department for Work and Pensions,Housing Benefits,14/04/2011,Housing Benefit Admin,WWG Housing Benefit,MALDON DISTRICT COUNCIL,2020464049,"31,728.00"
Department for Work and Pensions,Corporate,11/04/2011,PROFESSIONAL FEES,WWG SUMMARY,INCLUSION,2020362362,"31,700.00"
Department for Work and Pensions,Employment Programmes,15/04/2011,FND,WWEG EMPLOYMENT PROGRAMMES,A4E LTD,2020464672,"31,686.00"
Department for Work and Pensions,Employment Programmes,27/04/2011,FND,WWEG EMPLOYMENT PROGRAMMES,WORKING LINKS,2020670857,"31,672.70"
Department for Work and Pensions,Jobcentre Plus,14/04/2011,EMPLOYMENT PROGRAMMES,Balance Sheet Payments,SHAW TRUST LTD,2020461346,"31,552.36"
Department for Work and Pensions,Housing Benefits,14/04/2011,Housing Benefit Admin,WWG Housing Benefit,NORTH DORSET DISTRICT COUNCIL,2020464073,"31,530.00"
Department for Work and Pensions,Employment Programmes,27/04/2011,FND,WWEG EMPLOYMENT PROGRAMMES,WORKING LINKS,2020670857,"31,395.00"
Department for Work and Pensions,Corporate,18/04/2011,COMPUTER SERVICES,Corporate IT ,HP ENTERPRISE SERVICES UK LTD,2020473925,"31,369.98"
Department for Work and Pensions,Employment Programmes,05/04/2011,NDDP,WWEG EMPLOYMENT PROGRAMMES,REED,2020266090,"31,360.00"
Department for Work and Pensions,Corporate,04/04/2011,PRINCES YOUTH TRUST,WWG SUMMARY,CARDIFF & VALE UNIVERSITY HEALTH BOARD,2002556,"31,279.00"
Department for Work and Pensions,Employment Programmes,04/04/2011,FND,WWEG EMPLOYMENT PROGRAMMES,SERCO LTD,2020254241,"31,212.00"
Department for Work and Pensions,Employment Programmes,07/04/2011,YOUNG PERSON'S GUARANTEE,WWEG EMPLOYMENT PROGRAMMES,SOLIHULL METROPOLITAN BOROUGH COUNCIL,2020350144,"31,050.00"
Department for Work and Pensions,Employment Programmes,15/04/2011,FND,WWEG EMPLOYMENT PROGRAMMES,A4E LTD,2020464672,"30,982.00"
Department for Work and Pensions,Housing Benefits,14/04/2011,Housing Benefit Admin,WWG Housing Benefit,EPSOM & EWELL BOROUGH COUNCIL,2020463966,"30,963.00"
Department for Work and Pensions,Corporate,28/04/2011,ACCOMMODATION,Group Finance,TELEREAL TRILLIUM,2020687069,"30,957.22"
Department for Work and Pensions,Jobcentre Plus,07/04/2011,EMPLOYMENT PROGRAMMES,Balance Sheet Payments,ARMSTRONG LEARNING LTD,2020347208,"30,942.60"
Department for Work and Pensions,Employment Programmes,07/04/2011,YOUNG PERSON'S GUARANTEE,WWEG EMPLOYMENT PROGRAMMES,ROYAL BOROUGH OF WINDSOR & MAIDENHEAD,2020349825,"30,900.00"
Department for Work and Pensions,Corporate,06/04/2011,MISCELLANEOUS EXPENDITURE,EG SUMMARY,PRICE WATERHOUSE COOPER,605204,"30,897.00"
Department for Work and Pensions,Employment Programmes,15/04/2011,DAF,WWEG EMPLOYMENT PROGRAMMES,MICROCOM TRAINING LTD,2020468245,"30,893.26"
Department for Work and Pensions,Employment Programmes,05/04/2011,PROGRESS TO WORK,WWEG EMPLOYMENT PROGRAMMES,EVERYDAY SKILLS,2020260698,"30,603.29"
Department for Work and Pensions,Jobcentre Plus,14/04/2011,EMPLOYMENT PROGRAMMES,Balance Sheet Payments,STOKE ON TRENT COLLEGE,2020461397,"30,471.31"
Department for Work and Pensions,Employment Programmes,26/04/2011,FND,WWEG EMPLOYMENT PROGRAMMES,A4E LTD,2020597248,"30,444.00"
Department for Work and Pensions,Employment Programmes,11/04/2011,FND,WWEG EMPLOYMENT PROGRAMMES,MAXIMUS EMPLOYMENT UK LTD,2020363564,"30,250.00"
Department for Work and Pensions,Employment Programmes,08/04/2011,FND,WWEG EMPLOYMENT PROGRAMMES,SKILLS TRAINING UK LIMITED,2020357687,"30,248.00"
Department for Work and Pensions,Corporate,18/04/2011,COMPUTER SERVICES,Corporate IT ,CABLE & WIRELESS PLC,2020472048,"30,149.54"
Department for Work and Pensions,Jobcentre Plus,07/04/2011,EMPLOYMENT PROGRAMMES,Balance Sheet Payments,CROSBY TRAINING,2020347559,"30,066.91"
Department for Work and Pensions,Employment Programmes,27/04/2011,FND,WWEG EMPLOYMENT PROGRAMMES,SKILLS TRAINING UK LIMITED,2020670549,"30,051.00"
Department for Work and Pensions,Jobcentre Plus,26/04/2011,PROFESSIONAL FEES,Jobcentre Plus,THE BIG WORD INTERPRETING SERVICES LTD,2020660794,"30,044.24"
Department for Work and Pensions,Employment Programmes,07/04/2011,YOUNG PERSON'S GUARANTEE,WWEG EMPLOYMENT PROGRAMMES,BARNET COLLEGE,2020347289,"30,000.00"
Department for Work and Pensions,Employment Programmes,05/04/2011,FND,WWEG EMPLOYMENT PROGRAMMES,PERTEMPS,2020265545,"29,904.00"
Department for Work and Pensions,Corporate,20/04/2011,TEMPORARY (TEMP) STAFF COSTS,Corporate IT ,CAPITA RESOURCING LIMITED,2020505569,"29,820.38"
Department for Work and Pensions,Employment Programmes,27/04/2011,FND,WWEG EMPLOYMENT PROGRAMMES,WORKING LINKS,2020670857,"29,621.00"
Department for Work and Pensions,Employment Programmes,15/04/2011,FND,WWEG EMPLOYMENT PROGRAMMES,A4E LTD,2020464672,"29,572.00"
Department for Work and Pensions,Jobcentre Plus,06/04/2011,COMPUTER SERVICES,Jobcentre Plus,ACCENTURE UK LTD,2020275952,"29,510.57"
Department for Work and Pensions,Corporate,05/04/2011,EU PROGRAMMES,WWG SUMMARY,WAKEFIELD COLLEGE,2020267891,"29,492.30"
Department for Work and Pensions,Employment Programmes,06/04/2011,FND,WWEG EMPLOYMENT PROGRAMMES,SERCO LTD,2020338266,"29,376.00"
Department for Work and Pensions,Employment Programmes,13/04/2011,FND,WWEG EMPLOYMENT PROGRAMMES,SERCO LTD,2020447077,"29,376.00"
Department for Work and Pensions,Jobcentre Plus,21/04/2011,HELP FOR UNEMPLOYED PEOPLE OTHER,Jobcentre Plus,DERBYSHIRE COUNTY PCT,2002578,"29,375.00"
Department for Work and Pensions,Employment Programmes,11/04/2011,FND,WWEG EMPLOYMENT PROGRAMMES,A4E LTD,2020359689,"29,352.00"
Department for Work and Pensions,Corporate,15/04/2011,TEMPORARY (TEMP) STAFF COSTS,Corporate IT ,PRICEWATERHOUSE COOPERS,2020468773,"29,349.50"
Department for Work and Pensions,Corporate,19/04/2011,EMPLOYMENT ZONES,Group Finance,PENDLE COMMUNITY CREDIT UNION,2020487711,"29,250.00"
Department for Work and Pensions,Employment Programmes,12/04/2011,YOUNG PERSON'S GUARANTEE,WWEG EMPLOYMENT PROGRAMMES,NORTH AYRSHIRE COUNCIL,2020375352,"29,250.00"
Department for Work and Pensions,Corporate,19/04/2011,APPS DEV,Corporate and Support Services,HP ENTERPRISE SERVICES UK LTD,2020483520,"29,115.64"
Department for Work and Pensions,Corporate,28/04/2011,ACCOMMODATION,Group Finance,TELEREAL TRILLIUM,2020687068,"29,086.32"
Department for Work and Pensions,Employment Programmes,13/04/2011,YOUNG PERSON'S GUARANTEE,WWEG EMPLOYMENT PROGRAMMES,ARTSWORK LTD,2020385912,"29,046.00"
Department for Work and Pensions,Corporate,26/04/2011,IT EQUIPMENT CAPITAL,Corporate and Support Services,PLANET IT LTD,2020646208,"29,035.32"
Department for Work and Pensions,Employment Programmes,01/04/2011,NDDP,WWEG EMPLOYMENT PROGRAMMES,THE WISE GROUP,2020244971,"29,017.78"
Department for Work and Pensions,Employment Programmes,26/04/2011,FND,WWEG EMPLOYMENT PROGRAMMES,MAXIMUS EMPLOYMENT UK LTD,2020640794,"28,941.00"
Department for Work and Pensions,Housing Benefits,14/04/2011,Housing Benefit Admin,WWG Housing Benefit,HARBOROUGH DISTRICT COUNCIL,2020463988,"28,886.00"
Department for Work and Pensions,Jobcentre Plus,19/04/2011,APPS DEV,Jobcentre Plus,HP ENTERPRISE SERVICES UK LTD,2020483520,"28,876.39"
Department for Work and Pensions,Employment Programmes,13/04/2011,FND,WWEG EMPLOYMENT PROGRAMMES,MAXIMUS EMPLOYMENT UK LTD,2020429762,"28,875.00"
Department for Work and Pensions,Corporate,15/04/2011,COMPUTER SERVICES,SHARED SERVICES,ATOS ORIGIN IT SERVICES UK LTD,2020464715,"28,825.38"
Department for Work and Pensions,Corporate,04/04/2011,PROFESSIONAL FEES,Corporate and Support Services,OFFICE FOR NATIONAL STATISTICS,2020253069,"28,804.00"
Department for Work and Pensions,Employment Programmes,15/04/2011,FND,WWEG EMPLOYMENT PROGRAMMES,SERCO LTD,2020469591,"28,781.00"
Department for Work and Pensions,Employment Programmes,13/04/2011,FND,WWEG EMPLOYMENT PROGRAMMES,PERTEMPS,2020435325,"28,681.00"
Department for Work and Pensions,Housing Benefits,14/04/2011,Housing Benefit Admin,WWG Housing Benefit,CHRISTCHURCH BOROUGH COUNCIL,2020463915,"28,680.00"
Department for Work and Pensions,Jobcentre Plus,08/04/2011,PRINTING SATIONERY IT CONSUMABLES,Jobcentre Plus,XEROX UK LTD 3W,2020358011,"28,675.00"
Department for Work and Pensions,Employment Programmes,21/04/2011,FND,WWEG EMPLOYMENT PROGRAMMES,WORKING LINKS,2020589439,"28,490.00"
Department for Work and Pensions,Employment Programmes,13/04/2011,FND,WWEG EMPLOYMENT PROGRAMMES,A4E LTD,2020385690,"28,488.00"
Department for Work and Pensions,Housing Benefits,14/04/2011,Housing Benefit Admin,WWG Housing Benefit,WEST DEVON BOROUGH COUNCIL,2020464206,"28,428.00"
Department for Work and Pensions,Corporate,19/04/2011,COMPUTER SERVICES,CHANGE MANAGEMENT DIRECTORATE,BT GLOBAL SERVICES,2020478891,"28,356.60"
Department for Work and Pensions,Employment Programmes,04/04/2011,YOUNG PERSON'S GUARANTEE,WWEG EMPLOYMENT PROGRAMMES,NEWHAM COLLEGE OF FURTHER EDUCATION,2020253027,"28,350.00"
Department for Work and Pensions,Jobcentre Plus,05/04/2011,COMPUTER SERVICES,Jobcentre Plus,ACCENTURE UK LTD,2020257364,"28,249.13"
Department for Work and Pensions,Employment Programmes,26/04/2011,FND,WWEG EMPLOYMENT PROGRAMMES,A4E LTD,2020597248,"28,176.00"
Department for Work and Pensions,Housing Benefits,14/04/2011,Housing Benefit Admin,WWG Housing Benefit,UTTLESFORD DISTRICT COUNCIL,2020464193,"28,131.00"
Department for Work and Pensions,Corporate,20/04/2011,APPS DEV,Corporate IT ,HP ENTERPRISE SERVICES UK LTD,2020520600,"28,117.26"
Department for Work and Pensions,Housing Benefits,14/04/2011,Housing Benefit Admin,WWG Housing Benefit,DERBYSHIRE DALES DISTRICT COUNCIL,2020463940,"28,096.00"
Department for Work and Pensions,Jobcentre Plus,12/04/2011,WORKSTEP,Jobcentre Plus,LINCOLNSHIRE COUNTY COUNCIL,2020373866,"28,000.00"
Department for Work and Pensions,Jobcentre Plus,14/04/2011,EMPLOYMENT PROGRAMMES,Balance Sheet Payments,ASL RECRUITMENT LTD,2020455654,"28,000.00"
Department for Work and Pensions,Employment Programmes,18/04/2011,YOUNG PERSON'S GUARANTEE,WWEG EMPLOYMENT PROGRAMMES,LONDON BOROUGH OF HARINGEY,2020474824,"27,900.00"
Department for Work and Pensions,Employment Programmes,04/04/2011,FND,WWEG EMPLOYMENT PROGRAMMES,SKILLS TRAINING UK LIMITED,2020254266,"27,864.00"
Department for Work and Pensions,Corporate,15/04/2011,ACCOMMODATION,SHARED SERVICES,TELEREAL TRILLIUM,2020469787,"27,824.87"
Department for Work and Pensions,Employment Programmes,04/04/2011,FND,WWEG EMPLOYMENT PROGRAMMES,SERCO LTD,2020254241,"27,804.00"
Department for Work and Pensions,Employment Programmes,20/04/2011,JSP ESF DEL P COSTS,WWEG EMPLOYMENT PROGRAMMES,INGEUS UK LTD,2020521325,"27,765.82"
Department for Work and Pensions,Corporate,05/04/2011,MANAGEMENT CONSULTANCY,Corporate IT ,BRAMBLE CC LTD,2020257659,"27,720.09"
Department for Work and Pensions,Employment Programmes,12/04/2011,PROGRESS TO WORK,WWEG EMPLOYMENT PROGRAMMES,WORKING LINKS,5000000532,"27,691.93"
Department for Work and Pensions,Jobcentre Plus,14/04/2011,EMPLOYMENT PROGRAMMES,Balance Sheet Payments,SEETEC,2020461338,"27,642.52"
Department for Work and Pensions,Employment Programmes,26/04/2011,FND,WWEG EMPLOYMENT PROGRAMMES,INGEUS UK LTD,2020617717,"27,594.00"
Department for Work and Pensions,Housing Benefits,14/04/2011,Housing Benefit Admin,WWG Housing Benefit,SOUTH NORTHANTS COUNCIL,2020464148,"27,583.00"
Department for Work and Pensions,Corporate,05/04/2011,TELEPHONE AND POSTAGE,Group Finance,POST OFFICE LTD,2020265557,"27,500.00"
Department for Work and Pensions,Employment Programmes,20/04/2011,FND,WWEG EMPLOYMENT PROGRAMMES,PERTEMPS,2020554108,"27,374.00"
Department for Work and Pensions,Corporate,08/04/2011,EU PROGRAMMES,WWG SUMMARY,WAKEFIELD COLLEGE,2020358001,"27,369.77"
Department for Work and Pensions,Employment Programmes,21/04/2011,YOUNG PERSON'S GUARANTEE,WWEG EMPLOYMENT PROGRAMMES,LONDON BOROUGH OF HARINGEY,2020584525,"27,300.00"
Department for Work and Pensions,Corporate,18/04/2011,APPS DEV,Group Finance,HP ENTERPRISE SERVICES UK LTD,2020473925,"27,200.82"
Department for Work and Pensions,Employment Programmes,15/04/2011,FND,WWEG EMPLOYMENT PROGRAMMES,A4E LTD,2020464672,"27,194.00"
Department for Work and Pensions,Housing Benefits,14/04/2011,Housing Benefit Admin,WWG Housing Benefit,WEST SOMERSET DISTRICT COUNCIL,2020464213,"27,186.00"
Department for Work and Pensions,Employment Programmes,27/04/2011,FND,WWEG EMPLOYMENT PROGRAMMES,A4E LTD,2020665750,"27,146.00"
Department for Work and Pensions,Corporate,06/04/2011,IS/IT,Corporate and Support Services,SPECIALIST COMPUTER CENTRES PLC,2020338508,"27,047.56"
Department for Work and Pensions,Corporate,27/04/2011,EMPLOYMENT ZONES,Group Finance,WHITE ROSE CREDIT UNION LTD,606411,"27,000.00"
Department for Work and Pensions,Employment Programmes,15/04/2011,FND,WWEG EMPLOYMENT PROGRAMMES,A4E LTD,2020464672,"26,935.00"
Department for Work and Pensions,Employment Programmes,13/04/2011,YOUNG PERSON'S GUARANTEE,WWEG EMPLOYMENT PROGRAMMES,LONDON BOROUGH OF HARINGEY,2020424197,"26,850.00"
Department for Work and Pensions,Employment Programmes,15/04/2011,YOUNG PERSON'S GUARANTEE,WWEG EMPLOYMENT PROGRAMMES,NBP COMMUNITY INTEREST COMPANY,2020468442,"26,850.00"
Department for Work and Pensions,Jobcentre Plus,14/04/2011,STAFF COSTS,Jobcentre Plus,EXPOTEL,2020458276,"26,784.74"
Department for Work and Pensions,Employment Programmes,15/04/2011,JSP ESF DEL P COSTS,WWEG EMPLOYMENT PROGRAMMES,INGEUS UK LTD,2020466670,"26,690.91"
Department for Work and Pensions,Employment Programmes,13/04/2011,FND,WWEG EMPLOYMENT PROGRAMMES,A4E LTD,2020385690,"26,642.00"
Department for Work and Pensions,Corporate,27/04/2011,COMPUTER SERVICES,Corporate IT ,ACCENTURE,2020665757,"26,530.88"
Department for Work and Pensions,Employment Programmes,11/04/2011,FND,WWEG EMPLOYMENT PROGRAMMES,A4E LTD,2020359689,"26,416.00"
Department for Work and Pensions,Employment Programmes,14/04/2011,RESIDENTIAL TRAINING,WWEG EMPLOYMENT PROGRAMMES,ENHAM,2020458270,"26,377.08"
Department for Work and Pensions,Employment Programmes,06/04/2011,FND,WWEG EMPLOYMENT PROGRAMMES,SERCO LTD,2020338266,"26,096.00"
Department for Work and Pensions,Housing Benefits,14/04/2011,Housing Benefit Admin,WWG Housing Benefit,HART DISTRICT COUNCIL,2020463991,"26,089.00"
Department for Work and Pensions,Employment Programmes,19/04/2011,PROGRESS TO WORK,WWEG EMPLOYMENT PROGRAMMES,COMPASS CROSSOVER,2020479702,"26,071.68"
Department for Work and Pensions,Employment Programmes,21/04/2011,NDDP,WWEG EMPLOYMENT PROGRAMMES,INGEUS UK LTD,2020581864,"26,050.12"
Department for Work and Pensions,Jobcentre Plus,05/04/2011,HELP FOR UNEMPLOYED PEOPLE OTHER,Jobcentre Plus,TNS BMRB,2020267635,"26,028.00"
Department for Work and Pensions,Corporate,07/04/2011,PRINTING SATIONERY IT CONSUMABLES,Corporate and Support Services,XEROX UK LTD 3W,2020350414,"26,025.08"
Department for Work and Pensions,Corporate,06/04/2011,EMPLOYMENT ZONES,Group Finance,CHESHIRE NEIGHBOURS CREDIT UNION LIMITED,2020282953,"26,000.00"
Department for Work and Pensions,Employment Programmes,27/04/2011,FND,WWEG EMPLOYMENT PROGRAMMES,A4E LTD,2020665750,"25,908.00"
Department for Work and Pensions,Jobcentre Plus,07/04/2011,Accomodation Costs,Jobcentre Plus,VALUATION OFFICE AGENCY,2002561,"25,887.35"
Department for Work and Pensions,Jobcentre Plus,21/04/2011,EMPLOYMENT PROGRAMMES,Balance Sheet Payments,BOURNEMOUTH & POOLE COLLEGE,2020577194,"25,807.45"
Department for Work and Pensions,Housing Benefits,14/04/2011,Housing Benefit Admin,WWG Housing Benefit,RYEDALE DISTRICT COUNCIL,2020464122,"25,805.00"
Department for Work and Pensions,Employment Programmes,14/04/2011,FND,WWEG EMPLOYMENT PROGRAMMES,SKILLS TRAINING UK LIMITED,2020461360,"25,758.00"
Department for Work and Pensions,Employment Programmes,21/04/2011,FND,WWEG EMPLOYMENT PROGRAMMES,SKILLS TRAINING UK LIMITED,2020588572,"25,758.00"
Department for Work and Pensions,Corporate,07/04/2011,SPECIAL PAYMENTS EXTRA STATUTORY,Balance Sheet Payments,DWP PROGRAMME NIF MANUAL PAYMENTS,2002559,"25,749.00"
Department for Work and Pensions,European Social Fund,04/04/2011,MA ESF(D) LA NON-PREFUNDED EXPENDITURE,WWEG EUROPEAN SOCIAL FUND,CORNWALL COUNTY COUNCIL,5000000523,"25,727.00"
Department for Work and Pensions,Corporate,28/04/2011,ACCOMMODATION,Group Finance,TELEREAL TRILLIUM,2020687070,"25,724.46"
Department for Work and Pensions,Employment Programmes,28/04/2011,ACCESS TO WORK,WWEG EMPLOYMENT PROGRAMMES,AME DISABILITY CONSULTANT,2020673331,"25,688.64"
Department for Work and Pensions,Housing Benefits,14/04/2011,Housing Benefit Admin,WWG Housing Benefit,SOUTH BUCKS DISTRICT COUNCIL,2020464138,"25,623.00"
Department for Work and Pensions,Corporate,28/04/2011,ACCOMMODATION,Group Finance,TELEREAL TRILLIUM,2020687069,"25,591.63"
Department for Work and Pensions,Employment Programmes,06/04/2011,FND,WWEG EMPLOYMENT PROGRAMMES,SERCO LTD,2020338266,"25,488.00"
Department for Work and Pensions,Employment Programmes,11/04/2011,FND,WWEG EMPLOYMENT PROGRAMMES,SERCO LTD,2020364560,"25,488.00"
Department for Work and Pensions,Employment Programmes,21/04/2011,YOUNG PERSON'S GUARANTEE,WWEG EMPLOYMENT PROGRAMMES,CAMBRIDGESHIRE COUNTY COUNCIL,2020578053,"25,446.51"
Department for Work and Pensions,Corporate,18/04/2011,MISCELLANEOUS EXPENDITURE,EG SUMMARY,UNIVERSITY OF WESTMINSTER PSI,2020476448,"25,411.16"
Department for Work and Pensions,Employment Programmes,21/04/2011,ACCESS TO WORK,WWEG EMPLOYMENT PROGRAMMES,SCOUT ENTERPRISES WESTERN LTD,2020588528,"25,365.41"
Department for Work and Pensions,Employment Programmes,28/04/2011,YOUNG PERSON'S GUARANTEE,WWEG EMPLOYMENT PROGRAMMES,CREATIVE & CULTURAL SKILLS,2020674765,"25,350.00"
Department for Work and Pensions,Employment Programmes,13/04/2011,FND,WWEG EMPLOYMENT PROGRAMMES,DUDLEY MBC FUTURE SKILLS,2020398299,"25,306.00"
Department for Work and Pensions,Jobcentre Plus,15/04/2011,ACCOMMODATION,Jobcentre Plus,TELEREAL TRILLIUM,2020469787,"25,280.10"
Department for Work and Pensions,Jobcentre Plus,14/04/2011,EMPLOYMENT PROGRAMMES,Balance Sheet Payments,PROSPECTS SERVICES LTD 2,2020460621,"25,179.23"
Department for Work and Pensions,Jobcentre Plus,21/04/2011,EMPLOYMENT PROGRAMMES,Balance Sheet Payments,INBIZ LTD,2020581862,"25,176.86"
Department for Work and Pensions,Jobcentre Plus,15/04/2011,IS/IT,Jobcentre Plus,SPECIALIST COMPUTER CENTRES PLC,2020469607,"25,145.93"
Department for Work and Pensions,Housing Benefits,14/04/2011,Housing Benefit Admin,WWG Housing Benefit,CRAVEN DISTRICT COUNCIL,2020463931,"25,141.00"
Department for Work and Pensions,Corporate,18/04/2011,APPS DEV,Corporate IT ,HP ENTERPRISE SERVICES UK LTD,2020473925,"25,107.42"
Department for Work and Pensions,Corporate,19/04/2011,NETWORK,CHANGE MANAGEMENT DIRECTORATE,BT GLOBAL SERVICES,2020478891,"25,082.79"
Department for Work and Pensions,Employment Programmes,14/04/2011,PATHWAY TO WORK,WWEG EMPLOYMENT PROGRAMMES,DERBYSHIRE COUNTY PCT,2020456503,"25,000.00"
Department for Work and Pensions,Employment Programmes,04/04/2011,YOUNG PERSON'S GUARANTEE,WWEG EMPLOYMENT PROGRAMMES,SKILLS FOR HEALTH,2020254265,"25,000.00"
Department for Work and Pensions,Corporate,18/04/2011,TOTAL IT & EQUIPMENT COSTS,Corporate IT ,TAMESIDE BOROUGH COUNCIL,2020476411,"25,000.00"
Department for Work and Pensions,Corporate,04/04/2011,PROFESSIONAL FEES,Corporate and Support Services,INSITE RESEARCH & CONSULTING,2020251110,"25,000.00"
Department for Work and Pensions,Corporate,08/04/2011,IS/IT,Universal Credit,SPECIALIST COMPUTER CENTRES PLC,2020357701,"24,998.94"
Department for Work and Pensions,Corporate,27/04/2011,COMPUTER SERVICES,Universal Credit,SPECIALIST COMPUTER CENTRE PLC,2020670563,"24,775.18"
Department for Work and Pensions,Corporate,07/04/2011,COMPUTER SERVICES,Corporate IT ,ACCENTURE,2020347183,"24,760.24"
Department for Work and Pensions,Corporate,19/04/2011,APPS DEV,CHANGE MANAGEMENT DIRECTORATE,HP ENTERPRISE SERVICES UK LTD,2020483520,"24,757.12"
Department for Work and Pensions,"Pension, Disability Carers Services",20/04/2011,COMPUTER SERVICES,Pensions & Disability Carers Service ,HP ENTERPRISE SERVICES UK LTD,2020520600,"24,735.39"
Department for Work and Pensions,Corporate,05/04/2011,APPS DEV,Group Finance,SIEMENS IT SOLUTIONS & SERVICES LTD,2020267221,"24,668.04"
Department for Work and Pensions,Corporate,11/04/2011,IS/IT,SHARED SERVICES,SPECIALIST COMPUTER CENTRES PLC,2020364588,"24,578.11"
Department for Work and Pensions,Employment Programmes,28/04/2011,FND,WWEG EMPLOYMENT PROGRAMMES,INGEUS UK LTD,2020678549,"24,544.00"
Department for Work and Pensions,"Pension, Disability Carers Services",04/04/2011,COMPUTER SERVICES,Pensions & Disability Carers Service ,ATOS ORIGIN IT SERVICES UK LTD,2020247325,"24,386.40"
Department for Work and Pensions,Employment Programmes,28/04/2011,FND,WWEG EMPLOYMENT PROGRAMMES,FOURSTAR EMPLOYMENT & SKILLS LTD,2020677544,"24,370.00"
Department for Work and Pensions,Jobcentre Plus,04/04/2011,TELEPHONE AND POSTAGE,Jobcentre Plus,ROYAL MAIL GROUP PLC,2020253702,"24,357.41"
Department for Work and Pensions,Corporate,11/04/2011,IS/IT,Group Finance,SPECIALIST COMPUTER CENTRES PLC,2020364588,"24,352.95"
Department for Work and Pensions,Housing Benefits,14/04/2011,Housing Benefit Admin,WWG Housing Benefit,PURBECK DISTRICT COUNCIL,2020464103,"24,267.00"
Department for Work and Pensions,Employment Programmes,28/04/2011,FND,WWEG EMPLOYMENT PROGRAMMES,PERTEMPS,2020684233,"24,208.00"
Department for Work and Pensions,Corporate,04/04/2011,TEMPORARY (TEMP) STAFF COSTS,Corporate IT ,CAPITA RESOURCING LIMITED,2020247837,"24,063.18"
Department for Work and Pensions,Jobcentre Plus,04/04/2011,STAFF COSTS,Jobcentre Plus,AMA ASSOCIATES LTD,2020247306,"24,024.90"
Department for Work and Pensions,Employment Programmes,27/04/2011,PROGRESS TO WORK,WWEG EMPLOYMENT PROGRAMMES,TURNING POINT,2020670734,"23,972.44"
Department for Work and Pensions,Corporate,04/04/2011,IS/IT,Corporate and Support Services,SPECIALIST COMPUTER CENTRES PLC,2020254280,"23,954.76"
Department for Work and Pensions,Corporate,20/04/2011,TEMPORARY (TEMP) STAFF COSTS,Corporate IT ,CAPITA RESOURCING LIMITED,2020505569,"23,902.50"
Department for Work and Pensions,Employment Programmes,15/04/2011,FND,WWEG EMPLOYMENT PROGRAMMES,SERCO LTD,2020469591,"23,868.00"
Department for Work and Pensions,Employment Programmes,19/04/2011,PROGRESS TO WORK,WWEG EMPLOYMENT PROGRAMMES,TURNING POINT,2020491272,"23,867.92"
Department for Work and Pensions,Housing Benefits,14/04/2011,Housing Benefit Admin,WWG Housing Benefit,OADBY & WIGSTON BOROUGH COUNCIL,2020464090,"23,736.00"
Department for Work and Pensions,Employment Programmes,20/04/2011,FND,WWEG EMPLOYMENT PROGRAMMES,WORKING LINKS,2020572976,"23,715.00"
Department for Work and Pensions,Employment Programmes,04/04/2011,FND,WWEG EMPLOYMENT PROGRAMMES,SERCO LTD,2020254241,"23,702.00"
Department for Work and Pensions,Corporate,04/04/2011,TEMPORARY (TEMP) STAFF COSTS,Corporate IT ,CAPITA RESOURCING LIMITED,2020247837,"23,605.80"
Department for Work and Pensions,Employment Programmes,27/04/2011,FND,WWEG EMPLOYMENT PROGRAMMES,THE WISE GROUP,2020670721,"23,490.00"
Department for Work and Pensions,Employment Programmes,18/04/2011,FND,WWEG EMPLOYMENT PROGRAMMES,MAXIMUS EMPLOYMENT UK LTD,2020475188,"23,375.00"
Department for Work and Pensions,Corporate,28/04/2011,ACCOMMODATION,Group Finance,TELEREAL TRILLIUM,2020687069,"23,354.06"
Department for Work and Pensions,Employment Programmes,28/04/2011,PROGRESS TO WORK,WWEG EMPLOYMENT PROGRAMMES,MAXIMUS EMPLOYMENT & TRAINING LTD,2020682874,"23,207.58"
Department for Work and Pensions,Employment Programmes,13/04/2011,PROGRESS TO WORK,WWEG EMPLOYMENT PROGRAMMES,TURNING POINT,2020453895,"23,199.04"
Department for Work and Pensions,Employment Programmes,04/04/2011,JSP ESF DEL P COSTS,WWEG EMPLOYMENT PROGRAMMES,WORKING LINKS,2020254726,"23,053.59"
Department for Work and Pensions,Corporate,19/04/2011,COMPUTER SERVICES,Corporate IT ,REMPLOY LTD,2020488282,"22,958.50"
Department for Work and Pensions,Employment Programmes,18/04/2011,FND,WWEG EMPLOYMENT PROGRAMMES,SERCO LTD,2020476240,"22,839.00"
Department for Work and Pensions,Corporate,26/04/2011,IT EQUIPMENT CAPITAL,Corporate and Support Services,PLANET IT LTD,2020646208,"22,778.18"
Department for Work and Pensions,Employment Programmes,20/04/2011,FND,WWEG EMPLOYMENT PROGRAMMES,SERCO LTD,2020567262,"22,750.00"
Department for Work and Pensions,Corporate,20/04/2011,APPS DEV,WWG SUMMARY,HP ENTERPRISE SERVICES UK LTD,2020520600,"22,717.39"
Department for Work and Pensions,Employment Programmes,15/04/2011,FND,WWEG EMPLOYMENT PROGRAMMES,REMPLOY LTD,2020469065,"22,605.00"
Department for Work and Pensions,Corporate,04/04/2011,AOS CONTRACTED OUT SERVICES,SHARED SERVICES,FAIRFAX SOLICITORS LTD,2020250639,"22,583.08"
Department for Work and Pensions,Employment Programmes,05/04/2011,PROGRESS TO WORK,WWEG EMPLOYMENT PROGRAMMES,EVERYDAY SKILLS,2020260698,"22,574.98"
Department for Work and Pensions,Employment Programmes,19/04/2011,LOW VALUE PROCUREMENT,WWEG EMPLOYMENT PROGRAMMES,PINNACLE PEOPLE LTD,2020487719,"22,500.00"
Department for Work and Pensions,Corporate,18/04/2011,COMPUTER SERVICES,CHANGE MANAGEMENT DIRECTORATE,HP ENTERPRISE SERVICES UK LTD,2020473925,"22,498.05"
Department for Work and Pensions,"Pension, Disability Carers Services",05/04/2011,PROFESSIONAL FEES,Pensions & Disability Carers Service ,192.COM BUSINESS SERVICES,2020256470,"22,380.00"
Department for Work and Pensions,Employment Programmes,04/04/2011,FND,WWEG EMPLOYMENT PROGRAMMES,SERCO LTD,2020254241,"22,368.00"
Department for Work and Pensions,Jobcentre Plus,26/04/2011,PROFESSIONAL FEES,Jobcentre Plus,THE BIG WORD INTERPRETING SERVICES LTD,2020660794,"22,340.41"
Department for Work and Pensions,Employment Programmes,28/04/2011,PROGRESS TO WORK,WWEG EMPLOYMENT PROGRAMMES,WORKING LINKS EMPLOYMENT LIMITED,2020687499,"22,324.93"
Department for Work and Pensions,Employment Programmes,07/04/2011,FND,WWEG EMPLOYMENT PROGRAMMES,SERCO LTD,2020350119,"22,302.00"
Department for Work and Pensions,Employment Programmes,12/04/2011,FND,WWEG EMPLOYMENT PROGRAMMES,SERCO LTD,2020378004,"22,302.00"
Department for Work and Pensions,Employment Programmes,27/04/2011,FND,WWEG EMPLOYMENT PROGRAMMES,SKILLS TRAINING UK LIMITED,2020670549,"22,288.00"
Department for Work and Pensions,Jobcentre Plus,26/04/2011,PROFESSIONAL FEES,Jobcentre Plus,THE BIG WORD INTERPRETING SERVICES LTD,2020660794,"22,287.23"
Department for Work and Pensions,Housing Benefits,14/04/2011,Housing Benefit Admin,WWG Housing Benefit,COMHAIRLE NAN EILEAN SIAR COUNCIL,2020463922,"22,138.00"
Department for Work and Pensions,Corporate,20/04/2011,TELEPHONE AND POSTAGE,Group Finance,G3 WORLDWIDE MAIL UK LTD,2020518614,"22,131.25"
Department for Work and Pensions,Corporate,08/04/2011,AOS CONTRACTED OUT SERVICES,SHARED SERVICES,IQOR RECOVERY SERVICES LTD,2020355278,"22,097.69"
Department for Work and Pensions,Corporate,08/04/2011,TEMPORARY (TEMP) STAFF COSTS,Corporate IT ,CAPITA RESOURCING LIMITED,2020353028,"22,079.60"
Department for Work and Pensions,Corporate,28/04/2011,ACCOMMODATION,Group Finance,TELEREAL TRILLIUM,2020687069,"22,073.78"
Department for Work and Pensions,Employment Programmes,14/04/2011,FND,WWEG EMPLOYMENT PROGRAMMES,FOURSTAR EMPLOYMENT & SKILLS LTD,2020458334,"22,057.00"
Department for Work and Pensions,Corporate,15/04/2011,PROFESSIONAL FEES,WWG SUMMARY,NATIONAL DEVELOPMENT TEAM FOR INCLUSION,2020468441,"22,055.00"
Department for Work and Pensions,Employment Programmes,19/04/2011,FND,WWEG EMPLOYMENT PROGRAMMES,SERCO LTD,2020489426,"22,032.00"
Department for Work and Pensions,Corporate,11/04/2011,PROFESSIONAL FEES,Corporate and Support Services,TNS BMRB,2020364737,"22,010.00"
Department for Work and Pensions,Employment Programmes,08/04/2011,FND,WWEG EMPLOYMENT PROGRAMMES,WORKING LINKS,2020358010,"21,826.00"
Department for Work and Pensions,Employment Programmes,14/04/2011,FND,WWEG EMPLOYMENT PROGRAMMES,WORKING LINKS,2020461749,"21,826.00"
Department for Work and Pensions,Employment Programmes,26/04/2011,FND,WWEG EMPLOYMENT PROGRAMMES,A4E LTD,2020597248,"21,820.00"
Department for Work and Pensions,Housing Benefits,14/04/2011,Housing Benefit Admin,WWG Housing Benefit,EDEN DISTRICT COUNCIL,2020463962,"21,795.00"
Department for Work and Pensions,"Pension, Disability Carers Services",04/04/2011,TELEPHONE AND POSTAGE,Pensions & Disability Carers Service ,ROYAL MAIL GROUP PLC,2020253702,"21,752.52"
Department for Work and Pensions,Employment Programmes,11/04/2011,FND,WWEG EMPLOYMENT PROGRAMMES,FOURSTAR EMPLOYMENT & SKILLS LTD,2020362086,"21,639.00"
Department for Work and Pensions,Corporate,18/04/2011,AMS,Corporate and Support Services,HP ENTERPRISE SERVICES UK LTD,2020473925,"21,525.00"
Department for Work and Pensions,Employment Programmes,14/04/2011,FND,WWEG EMPLOYMENT PROGRAMMES,INGEUS UK LTD,2020458712,"21,476.00"
Department for Work and Pensions,Employment Programmes,13/04/2011,FND,WWEG EMPLOYMENT PROGRAMMES,SKILLS TRAINING UK LIMITED,2020447192,"21,472.00"
Department for Work and Pensions,Employment Programmes,15/04/2011,FND,WWEG EMPLOYMENT PROGRAMMES,SKILLS TRAINING UK LIMITED,2020469598,"21,465.00"
Department for Work and Pensions,Housing Benefits,14/04/2011,Housing Benefit Admin,WWG Housing Benefit,MELTON BOROUGH COUNCIL,2020464054,"21,427.00"
Department for Work and Pensions,Corporate,15/04/2011,COMPUTER SERVICES,Corporate IT ,SPECIALIST COMPUTER CENTRES PLC,2020469607,"21,287.16"
Department for Work and Pensions,Corporate,19/04/2011,COMPUTER SERVICES,Corporate IT ,BT GLOBAL SERVICES,2020478891,"21,231.60"
Department for Work and Pensions,Corporate,04/04/2011,MISCELLANEOUS EXPENDITURE,EG SUMMARY,CENTRE FOR SOCIAL INCLUSION,2020247852,"21,218.00"
Department for Work and Pensions,Corporate,28/04/2011,ACCOMMODATION,Group Finance,TELEREAL TRILLIUM,2020687069,"21,214.12"
Department for Work and Pensions,Employment Programmes,13/04/2011,ACCESS TO WORK,WWEG EMPLOYMENT PROGRAMMES,KEY 4 LEARNING LTD T/A A2A,2020418133,"21,176.33"
Department for Work and Pensions,Corporate,20/04/2011,TEMPORARY (TEMP) STAFF COSTS,Corporate IT ,CAPITA RESOURCING LIMITED,2020505569,"21,154.09"
Department for Work and Pensions,Jobcentre Plus,26/04/2011,PROFESSIONAL FEES,Jobcentre Plus,THE BIG WORD INTERPRETING SERVICES LTD,2020660794,"21,150.88"
Department for Work and Pensions,Employment Programmes,04/04/2011,FND,WWEG EMPLOYMENT PROGRAMMES,SERCO LTD,2020254241,"21,125.00"
Department for Work and Pensions,Employment Programmes,13/04/2011,FND,WWEG EMPLOYMENT PROGRAMMES,SERCO LTD,2020447077,"21,125.00"
Department for Work and Pensions,Employment Programmes,06/04/2011,FND,WWEG EMPLOYMENT PROGRAMMES,CALDER UK LTD,2020282890,"21,097.00"
Department for Work and Pensions,Employment Programmes,07/04/2011,FND,WWEG EMPLOYMENT PROGRAMMES,CALDER UK LTD,2020347502,"21,097.00"
Department for Work and Pensions,Corporate,18/04/2011,COMPUTER SERVICES,Universal Credit,HP ENTERPRISE SERVICES UK LTD,2020473925,"21,090.40"
Department for Work and Pensions,"Pension, Disability Carers Services",21/04/2011,COMPUTER SERVICES,Pensions & Disability Carers Service ,ATOS ORIGIN IT SERVICES UK LTD,2020576903,"21,049.60"
Department for Work and Pensions,Housing Benefits,14/04/2011,Housing Benefit Admin,WWG Housing Benefit,RICHMONDSHIRE DISTRICT COUNCIL,2020464110,"20,986.00"
Department for Work and Pensions,Employment Programmes,28/04/2011,FND,WWEG EMPLOYMENT PROGRAMMES,DUDLEY MBC FUTURE SKILLS,2020677023,"20,822.00"
Department for Work and Pensions,Employment Programmes,19/04/2011,PROGRESS TO WORK,WWEG EMPLOYMENT PROGRAMMES,TURNING POINT,2020491272,"20,741.62"
Department for Work and Pensions,Employment Programmes,04/04/2011,FND,WWEG EMPLOYMENT PROGRAMMES,THE WISE GROUP,2020254516,"20,657.00"
Department for Work and Pensions,Employment Programmes,06/04/2011,FND,WWEG EMPLOYMENT PROGRAMMES,PERTEMPS,2020326458,"20,648.00"
Department for Work and Pensions,"Pension, Disability Carers Services",19/04/2011,NETWORK,Pensions & Disability Carers Service ,BT GLOBAL SERVICES,2020478891,"20,530.80"
Department for Work and Pensions,"Pension, Disability Carers Services",21/04/2011,STATIONERY/ PUBLICATIONS/IT CONSUMABLES,Pensions & Disability Carers Service ,XEROX UK LTD 3W,2020589449,"20,496.00"
Department for Work and Pensions,Jobcentre Plus,07/04/2011,IS/IT,Jobcentre Plus,SPECIALIST COMPUTER CENTRES PLC,2020350151,"20,491.94"
Department for Work and Pensions,"Pension, Disability Carers Services",04/04/2011,TELEPHONE AND POSTAGE,Pensions & Disability Carers Service ,ROYAL MAIL GROUP PLC,2020253702,"20,410.84"
Department for Work and Pensions,Corporate,20/04/2011,APPS DEV,CHANGE MANAGEMENT DIRECTORATE,HP ENTERPRISE SERVICES UK LTD,2020520600,"20,392.04"
Department for Work and Pensions,Employment Programmes,18/04/2011,FND,WWEG EMPLOYMENT PROGRAMMES,SERCO LTD,2020476240,"20,316.00"
Department for Work and Pensions,Employment Programmes,27/04/2011,FND,WWEG EMPLOYMENT PROGRAMMES,SERCO LTD,2020670541,"20,316.00"
Department for Work and Pensions,Employment Programmes,15/04/2011,ND 18-24 GATEWAY,WWEG EMPLOYMENT PROGRAMMES,THE WISE GROUP,2020469798,"20,291.04"
Department for Work and Pensions,Housing Benefits,14/04/2011,Housing Benefit Admin,WWG Housing Benefit,RIBBLE VALLEY BOROUGH COUNCIL,2020464109,"20,256.00"
Department for Work and Pensions,Jobcentre Plus,19/04/2011,NETWORK,Jobcentre Plus,BT GLOBAL SERVICES,2020478891,"20,233.14"
Department for Work and Pensions,Employment Programmes,27/04/2011,FND,WWEG EMPLOYMENT PROGRAMMES,SERCO LTD,2020670541,"20,196.00"
Department for Work and Pensions,Employment Programmes,08/04/2011,FND,WWEG EMPLOYMENT PROGRAMMES,REMPLOY LTD,2020357231,"20,150.00"
Department for Work and Pensions,Employment Programmes,15/04/2011,FND,WWEG EMPLOYMENT PROGRAMMES,A4E LTD,2020464672,"20,110.00"
Department for Work and Pensions,Employment Programmes,27/04/2011,FND,WWEG EMPLOYMENT PROGRAMMES,SEETEC BUSINESS TECHNOLOGY CENTRE LTD,2020670539,"20,064.00"
Department for Work and Pensions,Employment Programmes,07/04/2011,FND,WWEG EMPLOYMENT PROGRAMMES,WORKING LINKS,2020350408,"20,020.00"
Department for Work and Pensions,Employment Programmes,13/04/2011,PROGRESS TO WORK,WWEG EMPLOYMENT PROGRAMMES,TURNING POINT,2020453895,"20,000.86"
Department for Work and Pensions,Employment Programmes,08/04/2011,FND,WWEG EMPLOYMENT PROGRAMMES,CALDER UK LTD,2020353024,"19,936.00"
Department for Work and Pensions,Employment Programmes,13/04/2011,FND,WWEG EMPLOYMENT PROGRAMMES,A4E LTD,2020385690,"19,856.00"
Department for Work and Pensions,Employment Programmes,04/04/2011,FND,WWEG EMPLOYMENT PROGRAMMES,CALDER UK LTD,2020247831,"19,856.00"
Department for Work and Pensions,Jobcentre Plus,18/04/2011,COMPUTER SERVICES,Jobcentre Plus,HP ENTERPRISE SERVICES UK LTD,2020473925,"19,804.32"
Department for Work and Pensions,"Pension, Disability Carers Services",20/04/2011,APPS DEV,Pensions & Disability Carers Service ,HP ENTERPRISE SERVICES UK LTD,2020520600,"19,767.32"
Department for Work and Pensions,"Pension, Disability Carers Services",07/04/2011,AOS CONTRACTED OUT SERVICES,Pensions & Disability Carers Service ,XEROX UK LTD 3W,2020350414,"19,736.58"
Department for Work and Pensions,Employment Programmes,28/04/2011,PROGRESS TO WORK,WWEG EMPLOYMENT PROGRAMMES,MBW TRAINING,2020682879,"19,719.84"
Department for Work and Pensions,Employment Programmes,28/04/2011,PROGRESS TO WORK,WWEG EMPLOYMENT PROGRAMMES,MBW TRAINING,2020682879,"19,719.84"
Department for Work and Pensions,Corporate,20/04/2011,EMPLOYMENT ZONES,Group Finance,NORTH YORKSHIRE CREDIT UNION LTD,2020550972,"19,635.00"
Department for Work and Pensions,Corporate,28/04/2011,ACCOMMODATION,Group Finance,TELEREAL TRILLIUM,2020687068,"19,521.31"
Department for Work and Pensions,"Pension, Disability Carers Services",18/04/2011,APPS DEV,Pensions & Disability Carers Service ,HP ENTERPRISE SERVICES UK LTD,2020473925,"19,516.69"
Department for Work and Pensions,Employment Programmes,13/04/2011,FND,WWEG EMPLOYMENT PROGRAMMES,MAXIMUS EMPLOYMENT UK LTD,2020429762,"19,450.00"
Department for Work and Pensions,Jobcentre Plus,26/04/2011,PROFESSIONAL FEES,Jobcentre Plus,THE BIG WORD INTERPRETING SERVICES LTD,2020660794,"19,343.58"
Department for Work and Pensions,Employment Programmes,05/04/2011,FND,WWEG EMPLOYMENT PROGRAMMES,A4E LTD,2020257354,"19,256.00"
Department for Work and Pensions,Employment Programmes,27/04/2011,FND,WWEG EMPLOYMENT PROGRAMMES,MAXIMUS EMPLOYMENT UK LTD,2020669512,"19,250.00"
Department for Work and Pensions,Employment Programmes,18/04/2011,ACCESS TO WORK,WWEG EMPLOYMENT PROGRAMMES,ST ANDREWS HEALTH CARE,2020476273,"19,242.60"
Department for Work and Pensions,Employment Programmes,06/04/2011,FND,WWEG EMPLOYMENT PROGRAMMES,CALDER UK LTD,2020282890,"19,228.00"
Department for Work and Pensions,Employment Programmes,15/04/2011,FND,WWEG EMPLOYMENT PROGRAMMES,PERTEMPS,2020468766,"19,224.00"
Department for Work and Pensions,Employment Programmes,26/04/2011,FND,WWEG EMPLOYMENT PROGRAMMES,SERCO LTD,2020657626,"19,116.00"
Department for Work and Pensions,Employment Programmes,27/04/2011,FND,WWEG EMPLOYMENT PROGRAMMES,SERCO LTD,2020670541,"19,116.00"
Department for Work and Pensions,Jobcentre Plus,04/04/2011,TELEPHONE AND POSTAGE,Jobcentre Plus,ROYAL MAIL GROUP PLC,2020253702,"18,894.38"
Department for Work and Pensions,Employment Programmes,06/04/2011,FND,WWEG EMPLOYMENT PROGRAMMES,SERCO LTD,2020338266,"18,867.00"
Department for Work and Pensions,Employment Programmes,11/04/2011,FND,WWEG EMPLOYMENT PROGRAMMES,CALDER UK LTD,2020360067,"18,622.00"
Department for Work and Pensions,Employment Programmes,11/04/2011,FND,WWEG EMPLOYMENT PROGRAMMES,SKILLS TRAINING UK LIMITED,2020364577,"18,610.00"
Department for Work and Pensions,Employment Programmes,28/04/2011,FND,WWEG EMPLOYMENT PROGRAMMES,SKILLS TRAINING UK LIMITED,2020686573,"18,603.00"
Department for Work and Pensions,Employment Programmes,18/04/2011,FND,WWEG EMPLOYMENT PROGRAMMES,A4E LTD,2020471626,"18,530.00"
Department for Work and Pensions,Employment Programmes,12/04/2011,PROGRESS TO WORK,WWEG EMPLOYMENT PROGRAMMES,WORKING LINKS,5000000532,"18,522.75"
